{"text_format":"3","workbook":"xlsx","n_sheets":5,"sheets":["SĀKUMS","PLĀNOTIE IZDEVUMI","FAKTISKIE IZDEVUMI","IZDEVUMU NOVIRZES","IZDEVUMU ANALĪZE"],"not_rendered":{"charts":3,"images":4,"defined_names":1},"read":"whole","date_system":"1900"}

{"sheet":"SĀKUMS","index":0,"n_rows":8,"n_cols":2,"rows_kept":8}
[null,"PAR ŠO VEIDNI"]
[null,"Izmantojiet šo uzņēmuma izdevumu budžeta darbgrāmatu, lai sekotu plānotajiem un faktiskajiem izdevumiem un novirzēm."]
[null,"Aizpildiet uzņēmuma nosaukumu un pievienojiet logotipu."]
[null,"Ievadiet detalizētu informāciju tabulās darblapās Plānotie izdevumi un Faktiskie izdevumi."]
[null,"Tabulas tiek automātiski atjauninātas darblapā Izdevumu novirzes un diagrammās darblapā Izdevumu analīze"]
[null,"Piezīme. "]
[null,"Papildu norādījumi ir sniegti kolonnā A katrā darblapā. Šis teksts ir paslēpts ar nolūku. Lai tekstu noņemtu, atlasiet kolonnu A, pēc tam atlasiet DZĒST. Lai parādītu slēpto tekstu, atlasiet kolonnu A, pēc tam nomainiet fonta krāsu."]
[null,"Lai iegūtu papildinformāciju par tabulām, nospiediet taustiņu SHIFT un pēc tam F10 tabulā, atlasiet opciju TABULA un pēc tam atlasiet ALTERNATĪVAIS TEKSTS"]

{"sheet":"PLĀNOTIE IZDEVUMI","index":1,"n_rows":37,"n_cols":18,"rows_kept":37,"merged":[[1,1,2,3],[1,10,1,12],[1,13,2,14],[2,10,2,12],[3,17,12,19],[8,1,8,2],[19,1,19,2],[28,1,28,2],[33,1,33,2]]}
["Ievadiet plānotās darbinieku izmaksas, biroja izmaksas, mārketinga izmaksas un apmācību vai komandējumu izmaksas attiecīgajās tabulās šajā darblapā. Kopsummas tiek aprēķinātas automātiski. Noderīgi norādījumi par to, kā lietot šo darblapu, ir šīs kolonnas šūnās. Bultiņa uz leju, lai sāktu darbu.",{"$nulls":14}," "]
["Ievadiet uzņēmuma nosaukumu šūnā pa labi un logotipu šūnā N2. Šūnā K2 ir šīs darblapas nosaukums.","Uzņēmuma nosaukumu",{"$nulls":8},"Detalizēti izdevumu aprēķini",null,null,"Logotipa vietturis ir šajā šūnā."]
["Padoms ir šūnā K3",{"$nulls":9},"Ēnotās šūnas ir aprēķini."]
["Etiķete Plānotie izdevumi ir šūnā pa labi, mēneši šūnās no C4 līdz N4, etiķete Gads šūnā O4 un norādījumi par šīs veidnes lietošanu šūnā R4.","PLĀNOTIE IZDEVUMI","JAN","FEB","MAR","APR","MAI","JŪN","JŪL","AUG","SEPT","OKT","NOV","DEC","GADS",null,null,"Padoms. KĀ IZMANTOT ŠO VEIDNI\nIevadiet datus baltajās šūnās darblapās PLĀNOTIE IZDEVUMI un FAKTISKIE IZDEVUMI, un IZDEVUMU NOVIRZES un IZDEVUMU ANALĪZE tiks aprēķinātas jūsu vietā. Ja pievienojat rindu vienā lapā, pārējām lapām ir jābūt atbilstošām."]
["Ievadiet darbinieku izmaksas tabulā Darbinieku plāns, sākot ar šūnu pa labi. Nākamais norādījums ir šūnā A10.","Darbinieku izmaksas","Jan","Feb","Mar","Apr","Maijs","Jūn","Jūl","Aug","Sep","Okt","Nov","Dec","GADS"]
[null,"Alga",{"v":85000,"d":"85,000.00 EUR"},{"v":85000,"d":"85,000.00 EUR"},{"v":85000,"d":"85,000.00 EUR"},{"v":87500,"d":"87,500.00 EUR"},{"v":87500,"d":"87,500.00 EUR"},{"v":87500,"d":"87,500.00 EUR"},{"v":87500,"d":"87,500.00 EUR"},{"v":92400,"d":"92,400.00 EUR"},{"v":92400,"d":"92,400.00 EUR"},{"v":92400,"d":"92,400.00 EUR"},{"v":92400,"d":"92,400.00 EUR"},{"v":92400,"d":"92,400.00 EUR"},{"$f":"SUM(C6:N6)","v":{"v":1067000,"d":"1,067,000.00 EUR"}}]
[null,"Labumi",{"$f":"C6*0.27","v":{"v":22950,"d":"22,950.00 EUR"}},{"$f":"D6*0.27","v":{"v":22950,"d":"22,950.00 EUR"}},{"$f":"E6*0.27","v":{"v":22950,"d":"22,950.00 EUR"}},{"$f":"F6*0.27","v":{"v":23625,"d":"23,625.00 EUR"}},{"$f":"G6*0.27","v":{"v":23625,"d":"23,625.00 EUR"}},{"$f":"H6*0.27","v":{"v":23625,"d":"23,625.00 EUR"}},{"$f":"I6*0.27","v":{"v":23625,"d":"23,625.00 EUR"}},{"$f":"J6*0.27","v":{"v":24948,"d":"24,948.00 EUR"}},{"$f":"K6*0.27","v":{"v":24948,"d":"24,948.00 EUR"}},{"$f":"L6*0.27","v":{"v":24948,"d":"24,948.00 EUR"}},{"$f":"M6*0.27","v":{"v":24948,"d":"24,948.00 EUR"}},{"$f":"N6*0.27","v":{"v":24948,"d":"24,948.00 EUR"}},{"$f":"SUM(C7:N7)","v":{"v":288090,"d":"288,090.00 EUR"}}]
[null,"Starpsumma",{"$f":"SUBTOTAL(109,Darbinieku_plāns[Jan])","v":{"v":107950,"d":"107,950.00 EUR"}},{"$f":"SUBTOTAL(109,Darbinieku_plāns[Feb])","v":{"v":107950,"d":"107,950.00 EUR"}},{"$f":"SUBTOTAL(109,Darbinieku_plāns[Mar])","v":{"v":107950,"d":"107,950.00 EUR"}},{"$f":"SUBTOTAL(109,Darbinieku_plāns[Apr])","v":{"v":111125,"d":"111,125.00 EUR"}},{"$f":"SUBTOTAL(109,Darbinieku_plāns[Maijs])","v":{"v":111125,"d":"111,125.00 EUR"}},{"$f":"SUBTOTAL(109,Darbinieku_plāns[Jūn])","v":{"v":111125,"d":"111,125.00 EUR"}},{"$f":"SUBTOTAL(109,Darbinieku_plāns[Jūl])","v":{"v":111125,"d":"111,125.00 EUR"}},{"$f":"SUBTOTAL(109,Darbinieku_plāns[Aug])","v":{"v":117348,"d":"117,348.00 EUR"}},{"$f":"SUBTOTAL(109,Darbinieku_plāns[Sep])","v":{"v":117348,"d":"117,348.00 EUR"}},{"$f":"SUBTOTAL(109,Darbinieku_plāns[Okt])","v":{"v":117348,"d":"117,348.00 EUR"}},{"$f":"SUBTOTAL(109,Darbinieku_plāns[Nov])","v":{"v":117348,"d":"117,348.00 EUR"}},{"$f":"SUBTOTAL(109,Darbinieku_plāns[Dec])","v":{"v":117348,"d":"117,348.00 EUR"}},{"$f":"SUBTOTAL(109,Darbinieku_plāns[GADS])","v":{"v":1355090,"d":"1,355,090.00 EUR"}}]
[]
["Ievadiet biroja izmaksas tabulā Biroja plāns, sākot ar šūnu pa labi. Nākamais norādījums ir šūnā A21.","Biroja izmaksas","Jan","Feb","Mar","Apr","Maijs","Jūn","Jūl","Aug","Sep","Okt","Nov","Dec","GADS"]
[null,"Biroja noma",{"v":9800,"d":"9,800.00 EUR"},{"v":9800,"d":"9,800.00 EUR"},{"v":9800,"d":"9,800.00 EUR"},{"v":9800,"d":"9,800.00 EUR"},{"v":9800,"d":"9,800.00 EUR"},{"v":9800,"d":"9,800.00 EUR"},{"v":9800,"d":"9,800.00 EUR"},{"v":9800,"d":"9,800.00 EUR"},{"v":9800,"d":"9,800.00 EUR"},{"v":9800,"d":"9,800.00 EUR"},{"v":9800,"d":"9,800.00 EUR"},{"v":9800,"d":"9,800.00 EUR"},{"$f":"SUM(C11:N11)","v":{"v":117600,"d":"117,600.00 EUR"}}]
[null,"Gāze",null,{"v":400,"d":"400.00 EUR"},{"v":400,"d":"400.00 EUR"},{"v":100,"d":"100.00 EUR"},{"v":100,"d":"100.00 EUR"},{"v":100,"d":"100.00 EUR"},{"v":100,"d":"100.00 EUR"},{"v":100,"d":"100.00 EUR"},{"v":100,"d":"100.00 EUR"},{"v":100,"d":"100.00 EUR"},{"v":400,"d":"400.00 EUR"},{"v":400,"d":"400.00 EUR"},{"v":2300,"d":"2,300.00 EUR"}]
[null,"Elektrība",{"v":300,"d":"300.00 EUR"},{"v":300,"d":"300.00 EUR"},{"v":300,"d":"300.00 EUR"},{"v":300,"d":"300.00 EUR"},{"v":300,"d":"300.00 EUR"},{"v":300,"d":"300.00 EUR"},{"v":300,"d":"300.00 EUR"},{"v":300,"d":"300.00 EUR"},{"v":300,"d":"300.00 EUR"},{"v":300,"d":"300.00 EUR"},{"v":300,"d":"300.00 EUR"},{"v":300,"d":"300.00 EUR"},{"v":3600,"d":"3,600.00 EUR"}]
[null,"Ūdens",{"v":40,"d":"40.00 EUR"},{"v":40,"d":"40.00 EUR"},{"v":40,"d":"40.00 EUR"},{"v":40,"d":"40.00 EUR"},{"v":40,"d":"40.00 EUR"},{"v":40,"d":"40.00 EUR"},{"v":40,"d":"40.00 EUR"},{"v":40,"d":"40.00 EUR"},{"v":40,"d":"40.00 EUR"},{"v":40,"d":"40.00 EUR"},{"v":40,"d":"40.00 EUR"},{"v":40,"d":"40.00 EUR"},{"v":480,"d":"480.00 EUR"}]
[null,"Tālrunis",{"v":250,"d":"250.00 EUR"},{"v":250,"d":"250.00 EUR"},{"v":250,"d":"250.00 EUR"},{"v":250,"d":"250.00 EUR"},{"v":250,"d":"250.00 EUR"},{"v":250,"d":"250.00 EUR"},{"v":250,"d":"250.00 EUR"},{"v":250,"d":"250.00 EUR"},{"v":250,"d":"250.00 EUR"},{"v":250,"d":"250.00 EUR"},{"v":250,"d":"250.00 EUR"},{"v":250,"d":"250.00 EUR"},{"v":3000,"d":"3,000.00 EUR"}]
[null,"Interneta piekļuve",{"v":180,"d":"180.00 EUR"},{"v":180,"d":"180.00 EUR"},{"v":180,"d":"180.00 EUR"},{"v":180,"d":"180.00 EUR"},{"v":180,"d":"180.00 EUR"},{"v":180,"d":"180.00 EUR"},{"v":180,"d":"180.00 EUR"},{"v":180,"d":"180.00 EUR"},{"v":180,"d":"180.00 EUR"},{"v":180,"d":"180.00 EUR"},{"v":180,"d":"180.00 EUR"},{"v":180,"d":"180.00 EUR"},{"v":2160,"d":"2,160.00 EUR"}]
[null,"Biroja piederumi",{"v":200,"d":"200.00 EUR"},{"v":200,"d":"200.00 EUR"},{"v":200,"d":"200.00 EUR"},{"v":200,"d":"200.00 EUR"},{"v":200,"d":"200.00 EUR"},{"v":200,"d":"200.00 EUR"},{"v":200,"d":"200.00 EUR"},{"v":200,"d":"200.00 EUR"},{"v":200,"d":"200.00 EUR"},{"v":200,"d":"200.00 EUR"},{"v":200,"d":"200.00 EUR"},{"v":200,"d":"200.00 EUR"},{"v":2400,"d":"2,400.00 EUR"}]
[null,"Drošība",{"v":600,"d":"600.00 EUR"},{"v":600,"d":"600.00 EUR"},{"v":600,"d":"600.00 EUR"},{"v":600,"d":"600.00 EUR"},{"v":600,"d":"600.00 EUR"},{"v":600,"d":"600.00 EUR"},{"v":600,"d":"600.00 EUR"},{"v":600,"d":"600.00 EUR"},{"v":600,"d":"600.00 EUR"},{"v":600,"d":"600.00 EUR"},{"v":600,"d":"600.00 EUR"},{"v":600,"d":"600.00 EUR"},{"v":7200,"d":"7,200.00 EUR"}]
[null,"Starpsumma",{"$f":"SUBTOTAL(109,Biroja_plāns[Jan])","v":{"v":11370,"d":"11,370.00 EUR"}},{"$f":"SUBTOTAL(109,Biroja_plāns[Feb])","v":{"v":11770,"d":"11,770.00 EUR"}},{"$f":"SUBTOTAL(109,Biroja_plāns[Mar])","v":{"v":11770,"d":"11,770.00 EUR"}},{"$f":"SUBTOTAL(109,Biroja_plāns[Apr])","v":{"v":11470,"d":"11,470.00 EUR"}},{"$f":"SUBTOTAL(109,Biroja_plāns[Maijs])","v":{"v":11470,"d":"11,470.00 EUR"}},{"$f":"SUBTOTAL(109,Biroja_plāns[Jūn])","v":{"v":11470,"d":"11,470.00 EUR"}},{"$f":"SUBTOTAL(109,Biroja_plāns[Jūl])","v":{"v":11470,"d":"11,470.00 EUR"}},{"$f":"SUBTOTAL(109,Biroja_plāns[Aug])","v":{"v":11470,"d":"11,470.00 EUR"}},{"$f":"SUBTOTAL(109,Biroja_plāns[Sep])","v":{"v":11470,"d":"11,470.00 EUR"}},{"$f":"SUBTOTAL(109,Biroja_plāns[Okt])","v":{"v":11470,"d":"11,470.00 EUR"}},{"$f":"SUBTOTAL(109,Biroja_plāns[Nov])","v":{"v":11770,"d":"11,770.00 EUR"}},{"$f":"SUBTOTAL(109,Biroja_plāns[Dec])","v":{"v":11770,"d":"11,770.00 EUR"}},{"$f":"SUBTOTAL(109,Biroja_plāns[GADS])","v":{"v":138740,"d":"138,740.00 EUR"}}]
[]
["Ievadiet mārketinga izmaksas tabulā Mārketinga plāns, sākot ar šūnu pa labi. Nākamais norādījums ir šūnā A30.","Mārketinga izmaksas","Jan","Feb","Mar","Apr","Maijs","Jūn","Jūl","Aug","Sep","Okt","Nov","Dec","GADS"]
[null,"Tīmekļa vietnes viesošana",{"v":500,"d":"500.00 EUR"},{"v":500,"d":"500.00 EUR"},{"v":500,"d":"500.00 EUR"},{"v":500,"d":"500.00 EUR"},{"v":500,"d":"500.00 EUR"},{"v":500,"d":"500.00 EUR"},{"v":500,"d":"500.00 EUR"},{"v":500,"d":"500.00 EUR"},{"v":500,"d":"500.00 EUR"},{"v":500,"d":"500.00 EUR"},{"v":500,"d":"500.00 EUR"},{"v":500,"d":"500.00 EUR"},{"$f":"SUM(C22:N22)","v":{"v":6000,"d":"6,000.00 EUR"}}]
[null,"Tīmekļa vietnes atjauninājumi",{"v":200,"d":"200.00 EUR"},{"v":200,"d":"200.00 EUR"},{"v":200,"d":"200.00 EUR"},{"v":200,"d":"200.00 EUR"},{"v":200,"d":"200.00 EUR"},{"v":1000,"d":"1,000.00 EUR"},{"v":200,"d":"200.00 EUR"},{"v":200,"d":"200.00 EUR"},{"v":200,"d":"200.00 EUR"},{"v":200,"d":"200.00 EUR"},{"v":200,"d":"200.00 EUR"},{"v":1000,"d":"1,000.00 EUR"},{"v":4000,"d":"4,000.00 EUR"}]
[null,"Papildu sagatavošana",{"v":5000,"d":"5,000.00 EUR"},{"v":0,"d":"0.00 EUR"},{"v":0,"d":"0.00 EUR"},{"v":5000,"d":"5,000.00 EUR"},{"v":0,"d":"0.00 EUR"},{"v":0,"d":"0.00 EUR"},{"v":5000,"d":"5,000.00 EUR"},{"v":0,"d":"0.00 EUR"},{"v":0,"d":"0.00 EUR"},{"v":5000,"d":"5,000.00 EUR"},{"v":0,"d":"0.00 EUR"},{"v":0,"d":"0.00 EUR"},{"v":20000,"d":"20,000.00 EUR"}]
[null,"Papildu drukāšana",{"v":200,"d":"200.00 EUR"},{"v":200,"d":"200.00 EUR"},{"v":200,"d":"200.00 EUR"},{"v":200,"d":"200.00 EUR"},{"v":200,"d":"200.00 EUR"},{"v":200,"d":"200.00 EUR"},{"v":200,"d":"200.00 EUR"},{"v":200,"d":"200.00 EUR"},{"v":200,"d":"200.00 EUR"},{"v":200,"d":"200.00 EUR"},{"v":200,"d":"200.00 EUR"},{"v":200,"d":"200.00 EUR"},{"v":2400,"d":"2,400.00 EUR"}]
[null,"Mārketinga pasākumi",{"v":2000,"d":"2,000.00 EUR"},{"v":2000,"d":"2,000.00 EUR"},{"v":2000,"d":"2,000.00 EUR"},{"v":5000,"d":"5,000.00 EUR"},{"v":2000,"d":"2,000.00 EUR"},{"v":2000,"d":"2,000.00 EUR"},{"v":2000,"d":"2,000.00 EUR"},{"v":5000,"d":"5,000.00 EUR"},{"v":2000,"d":"2,000.00 EUR"},{"v":2000,"d":"2,000.00 EUR"},{"v":2000,"d":"2,000.00 EUR"},{"v":5000,"d":"5,000.00 EUR"},{"v":33000,"d":"33,000.00 EUR"}]
[null,"Dažādi izdevumi",{"v":200,"d":"200.00 EUR"},{"v":200,"d":"200.00 EUR"},{"v":200,"d":"200.00 EUR"},{"v":200,"d":"200.00 EUR"},{"v":200,"d":"200.00 EUR"},{"v":200,"d":"200.00 EUR"},{"v":200,"d":"200.00 EUR"},{"v":200,"d":"200.00 EUR"},{"v":200,"d":"200.00 EUR"},{"v":200,"d":"200.00 EUR"},{"v":200,"d":"200.00 EUR"},{"v":200,"d":"200.00 EUR"},{"v":2400,"d":"2,400.00 EUR"}]
[null,"Starpsumma",{"$f":"SUBTOTAL(109,Mārketinga_plāns[Jan])","v":{"v":8100,"d":"8,100.00 EUR"}},{"$f":"SUBTOTAL(109,Mārketinga_plāns[Feb])","v":{"v":3100,"d":"3,100.00 EUR"}},{"$f":"SUBTOTAL(109,Mārketinga_plāns[Mar])","v":{"v":3100,"d":"3,100.00 EUR"}},{"$f":"SUBTOTAL(109,Mārketinga_plāns[Apr])","v":{"v":11100,"d":"11,100.00 EUR"}},{"$f":"SUBTOTAL(109,Mārketinga_plāns[Maijs])","v":{"v":3100,"d":"3,100.00 EUR"}},{"$f":"SUBTOTAL(109,Mārketinga_plāns[Jūn])","v":{"v":3900,"d":"3,900.00 EUR"}},{"$f":"SUBTOTAL(109,Mārketinga_plāns[Jūl])","v":{"v":8100,"d":"8,100.00 EUR"}},{"$f":"SUBTOTAL(109,Mārketinga_plāns[Aug])","v":{"v":6100,"d":"6,100.00 EUR"}},{"$f":"SUBTOTAL(109,Mārketinga_plāns[Sep])","v":{"v":3100,"d":"3,100.00 EUR"}},{"$f":"SUBTOTAL(109,Mārketinga_plāns[Okt])","v":{"v":8100,"d":"8,100.00 EUR"}},{"$f":"SUBTOTAL(109,Mārketinga_plāns[Nov])","v":{"v":3100,"d":"3,100.00 EUR"}},{"$f":"SUBTOTAL(109,Mārketinga_plāns[Dec])","v":{"v":6900,"d":"6,900.00 EUR"}},{"$f":"SUBTOTAL(109,Mārketinga_plāns[GADS])","v":{"v":67800,"d":"67,800.00 EUR"}}]
[]
["Ievadiet apmācību un komandējumu izmaksas tabulā Apmācību un komandējumu plāns, sākot ar šūnu pa labi. Nākamais norādījums ir šūnā A35.","Apmācības/komandējumi","Jan","Feb","Mar","Apr","Maijs","Jūn","Jūl","Aug","Sep","Okt","Nov","Dec","GADS"]
[null,"Apmācību nodarbības",{"v":2000,"d":"2,000.00 EUR"},{"v":2000,"d":"2,000.00 EUR"},{"v":2000,"d":"2,000.00 EUR"},{"v":2000,"d":"2,000.00 EUR"},{"v":2000,"d":"2,000.00 EUR"},{"v":2000,"d":"2,000.00 EUR"},{"v":2000,"d":"2,000.00 EUR"},{"v":2000,"d":"2,000.00 EUR"},{"v":2000,"d":"2,000.00 EUR"},{"v":2000,"d":"2,000.00 EUR"},{"v":2000,"d":"2,000.00 EUR"},{"v":2000,"d":"2,000.00 EUR"},{"$f":"SUM(C31:N31)","v":{"v":24000,"d":"24,000.00 EUR"}}]
[null,"Ar apmācībām saistītu komandējumu izmaksas",{"v":2000,"d":"2,000.00 EUR"},{"v":2000,"d":"2,000.00 EUR"},{"v":2000,"d":"2,000.00 EUR"},{"v":2000,"d":"2,000.00 EUR"},{"v":2000,"d":"2,000.00 EUR"},{"v":2000,"d":"2,000.00 EUR"},{"v":2000,"d":"2,000.00 EUR"},{"v":2000,"d":"2,000.00 EUR"},{"v":2000,"d":"2,000.00 EUR"},{"v":2000,"d":"2,000.00 EUR"},{"v":2000,"d":"2,000.00 EUR"},{"v":2000,"d":"2,000.00 EUR"},{"$f":"SUM(C32:N32)","v":{"v":24000,"d":"24,000.00 EUR"}}]
[null,"Starpsumma",{"$f":"SUBTOTAL(109,Apmācību_un_komandējumu_plāns[Jan])","v":{"v":4000,"d":"4,000.00 EUR"}},{"$f":"SUBTOTAL(109,Apmācību_un_komandējumu_plāns[Feb])","v":{"v":4000,"d":"4,000.00 EUR"}},{"$f":"SUBTOTAL(109,Apmācību_un_komandējumu_plāns[Mar])","v":{"v":4000,"d":"4,000.00 EUR"}},{"$f":"SUBTOTAL(109,Apmācību_un_komandējumu_plāns[Apr])","v":{"v":4000,"d":"4,000.00 EUR"}},{"$f":"SUBTOTAL(109,Apmācību_un_komandējumu_plāns[Maijs])","v":{"v":4000,"d":"4,000.00 EUR"}},{"$f":"SUBTOTAL(109,Apmācību_un_komandējumu_plāns[Jūn])","v":{"v":4000,"d":"4,000.00 EUR"}},{"$f":"SUBTOTAL(109,Apmācību_un_komandējumu_plāns[Jūl])","v":{"v":4000,"d":"4,000.00 EUR"}},{"$f":"SUBTOTAL(109,Apmācību_un_komandējumu_plāns[Aug])","v":{"v":4000,"d":"4,000.00 EUR"}},{"$f":"SUBTOTAL(109,Apmācību_un_komandējumu_plāns[Sep])","v":{"v":4000,"d":"4,000.00 EUR"}},{"$f":"SUBTOTAL(109,Apmācību_un_komandējumu_plāns[Okt])","v":{"v":4000,"d":"4,000.00 EUR"}},{"$f":"SUBTOTAL(109,Apmācību_un_komandējumu_plāns[Nov])","v":{"v":4000,"d":"4,000.00 EUR"}},{"$f":"SUBTOTAL(109,Apmācību_un_komandējumu_plāns[Dec])","v":{"v":4000,"d":"4,000.00 EUR"}},{"$f":"SUBTOTAL(109,Apmācību_un_komandējumu_plāns[GADS])","v":{"v":48000,"d":"48,000.00 EUR"}}]
[]
["Kopsummas tiek automātiski aprēķinātas tabulā Plānotā kopsumma, sākot ar šūnu pa labi.","KOPSUMMAS","Jan","Feb","Mar","Apr","Maijs","Jūn","Jūl","Aug","Sep","Okt","Nov","Dec","Gads"]
[null,"Ikmēneša plānotie izdevumi",{"$f":"Apmācību_un_komandējumu_plāns[[#Totals],[Jan]]+Mārketinga_plāns[[#Totals],[Jan]]+Biroja_plāns[[#Totals],[Jan]]+Darbinieku_plāns[[#Totals],[Jan]]","v":{"v":131420,"d":"131,420.00 EUR"}},{"$f":"Apmācību_un_komandējumu_plāns[[#Totals],[Feb]]+Mārketinga_plāns[[#Totals],[Feb]]+Biroja_plāns[[#Totals],[Feb]]+Darbinieku_plāns[[#Totals],[Feb]]","v":{"v":126820,"d":"126,820.00 EUR"}},{"$f":"Apmācību_un_komandējumu_plāns[[#Totals],[Mar]]+Mārketinga_plāns[[#Totals],[Mar]]+Biroja_plāns[[#Totals],[Mar]]+Darbinieku_plāns[[#Totals],[Mar]]","v":{"v":126820,"d":"126,820.00 EUR"}},{"$f":"Apmācību_un_komandējumu_plāns[[#Totals],[Apr]]+Mārketinga_plāns[[#Totals],[Apr]]+Biroja_plāns[[#Totals],[Apr]]+Darbinieku_plāns[[#Totals],[Apr]]","v":{"v":137695,"d":"137,695.00 EUR"}},{"$f":"Apmācību_un_komandējumu_plāns[[#Totals],[Maijs]]+Mārketinga_plāns[[#Totals],[Maijs]]+Biroja_plāns[[#Totals],[Maijs]]+Darbinieku_plāns[[#Totals],[Maijs]]","v":{"v":129695,"d":"129,695.00 EUR"}},{"$f":"Apmācību_un_komandējumu_plāns[[#Totals],[Jūn]]+Mārketinga_plāns[[#Totals],[Jūn]]+Biroja_plāns[[#Totals],[Jūn]]+Darbinieku_plāns[[#Totals],[Jūn]]","v":{"v":130495,"d":"130,495.00 EUR"}},{"$f":"Apmācību_un_komandējumu_plāns[[#Totals],[Jūl]]+Mārketinga_plāns[[#Totals],[Jūl]]+Biroja_plāns[[#Totals],[Jūl]]+Darbinieku_plāns[[#Totals],[Jūl]]","v":{"v":134695,"d":"134,695.00 EUR"}},{"$f":"Apmācību_un_komandējumu_plāns[[#Totals],[Aug]]+Mārketinga_plāns[[#Totals],[Aug]]+Biroja_plāns[[#Totals],[Aug]]+Darbinieku_plāns[[#Totals],[Aug]]","v":{"v":138918,"d":"138,918.00 EUR"}},{"$f":"Apmācību_un_komandējumu_plāns[[#Totals],[Sep]]+Mārketinga_plāns[[#Totals],[Sep]]+Biroja_plāns[[#Totals],[Sep]]+Darbinieku_plāns[[#Totals],[Sep]]","v":{"v":135918,"d":"135,918.00 EUR"}},{"$f":"Apmācību_un_komandējumu_plāns[[#Totals],[Okt]]+Mārketinga_plāns[[#Totals],[Okt]]+Biroja_plāns[[#Totals],[Okt]]+Darbinieku_plāns[[#Totals],[Okt]]","v":{"v":140918,"d":"140,918.00 EUR"}},{"$f":"Apmācību_un_komandējumu_plāns[[#Totals],[Nov]]+Mārketinga_plāns[[#Totals],[Nov]]+Biroja_plāns[[#Totals],[Nov]]+Darbinieku_plāns[[#Totals],[Nov]]","v":{"v":136218,"d":"136,218.00 EUR"}},{"$f":"Apmācību_un_komandējumu_plāns[[#Totals],[Dec]]+Mārketinga_plāns[[#Totals],[Dec]]+Biroja_plāns[[#Totals],[Dec]]+Darbinieku_plāns[[#Totals],[Dec]]","v":{"v":140018,"d":"140,018.00 EUR"}},{"$f":"Apmācību_un_komandējumu_plāns[[#Totals],[GADS]]+Mārketinga_plāns[[#Totals],[GADS]]+Biroja_plāns[[#Totals],[GADS]]+Darbinieku_plāns[[#Totals],[GADS]]","v":{"v":1609630,"d":"1,609,630.00 EUR"}}]
[null,"KOPĒJIE plānotie izdevumi",{"$f":"SUM($C$36:C36)","v":{"v":131420,"d":"131,420.00 EUR"}},{"$f":"SUM($C$36:D36)","v":{"v":258240,"d":"258,240.00 EUR"}},{"$f":"SUM($C$36:E36)","v":{"v":385060,"d":"385,060.00 EUR"}},{"$f":"SUM($C$36:F36)","v":{"v":522755,"d":"522,755.00 EUR"}},{"$f":"SUM($C$36:G36)","v":{"v":652450,"d":"652,450.00 EUR"}},{"$f":"SUM($C$36:H36)","v":{"v":782945,"d":"782,945.00 EUR"}},{"$f":"SUM($C$36:I36)","v":{"v":917640,"d":"917,640.00 EUR"}},{"$f":"SUM($C$36:J36)","v":{"v":1056558,"d":"1,056,558.00 EUR"}},{"$f":"SUM($C$36:K36)","v":{"v":1192476,"d":"1,192,476.00 EUR"}},{"$f":"SUM($C$36:L36)","v":{"v":1333394,"d":"1,333,394.00 EUR"}},{"$f":"SUM($C$36:M36)","v":{"v":1469612,"d":"1,469,612.00 EUR"}},{"$f":"SUM($C$36:N36)","v":{"v":1609630,"d":"1,609,630.00 EUR"}}]

{"sheet":"FAKTISKIE IZDEVUMI","index":2,"n_rows":37,"n_cols":16,"rows_kept":37,"merged":[[1,1,2,3],[1,10,1,12],[1,13,2,14],[2,10,2,12],[8,1,8,2],[19,1,19,2],[28,1,28,2],[33,1,33,2]]}
["Ievadiet faktiskās darbinieku izmaksas, biroja izmaksas, mārketinga izmaksas un apmācību vai komandējumu izmaksas attiecīgajās tabulās šajā darblapā. Kopsummas tiek aprēķinātas automātiski. Noderīgi norādījumi par to, kā lietot šo darblapu, ir šīs kolonnas šūnās. Bultiņa uz leju, lai sāktu darbu.",{"$nulls":14}," "]
["Šūnā pa labi tiek automātiski atjaunināts uzņēmuma nosaukumu. Šūnā K2 ir šīs darblapas nosaukums. Ievadiet logotipu šūnā N2.",{"$f":"'PLĀNOTIE IZDEVUMI'!B2:D3","v":"Uzņēmuma nosaukumu"},{"$nulls":8},{"$f":"darblapas_nosaukums","v":"Detalizēti izdevumu aprēķini"},null,null,"Logotipa vietturis ir šajā šūnā."]
["Padoms ir šūnā K3",{"$nulls":9},"Ēnotās šūnas ir aprēķini."]
["Etiķete Faktiskie izdevumi ir šūnā pa labi, mēneši šūnās no C4 līdz N4 un etiķete Gads šūnā O4.","FAKTISKIE IZDEVUMI","JAN","FEB","MAR","APR","MAI","JŪN","JŪL","AUG","SEPT","OKT","NOV","DEC","GADS"]
["Ievadiet darbinieku izmaksas tabulā Darbinieku faktiskās izmaksas, sākot ar šūnu pa labi. Nākamais norādījums ir šūnā A10.","Darbinieku izmaksas","Jan","Feb","Mar","Apr","Maijs","Jūn","Jūl","Aug","Sep","Okt","Nov","Dec","GADS"]
[null,"Alga",{"v":85000,"d":"85,000.00 EUR"},{"v":85000,"d":"85,000.00 EUR"},{"v":85000,"d":"85,000.00 EUR"},{"v":88000,"d":"88,000.00 EUR"},{"v":88000,"d":"88,000.00 EUR"},{"v":88000,"d":"88,000.00 EUR"},{"$nulls":6},{"$f":"SUM(C6:N6)","v":{"v":519000,"d":"519,000.00 EUR"}}]
[null,"Labumi",{"$f":"C6*0.27","v":{"v":22950,"d":"22,950.00 EUR"}},{"$f":"D6*0.27","v":{"v":22950,"d":"22,950.00 EUR"}},{"$f":"E6*0.27","v":{"v":22950,"d":"22,950.00 EUR"}},{"$f":"F6*0.27","v":{"v":23760,"d":"23,760.00 EUR"}},{"$f":"G6*0.27","v":{"v":23760,"d":"23,760.00 EUR"}},{"$f":"H6*0.27","v":{"v":23760,"d":"23,760.00 EUR"}},{"$f":"I6*0.27","v":{"v":0,"d":"0.00 EUR"}},{"$f":"J6*0.27","v":{"v":0,"d":"0.00 EUR"}},{"$f":"K6*0.27","v":{"v":0,"d":"0.00 EUR"}},{"$f":"L6*0.27","v":{"v":0,"d":"0.00 EUR"}},{"$f":"M6*0.27","v":{"v":0,"d":"0.00 EUR"}},{"$f":"N6*0.27","v":{"v":0,"d":"0.00 EUR"}},{"$f":"SUM(C7:N7)","v":{"v":140130,"d":"140,130.00 EUR"}}]
[null,"Starpsumma",{"$f":"SUBTOTAL(109,Darbinieku_faktiskās_izmaksas[Jan])","v":{"v":107950,"d":"107,950.00 EUR"}},{"$f":"SUBTOTAL(109,Darbinieku_faktiskās_izmaksas[Feb])","v":{"v":107950,"d":"107,950.00 EUR"}},{"$f":"SUBTOTAL(109,Darbinieku_faktiskās_izmaksas[Mar])","v":{"v":107950,"d":"107,950.00 EUR"}},{"$f":"SUBTOTAL(109,Darbinieku_faktiskās_izmaksas[Apr])","v":{"v":111760,"d":"111,760.00 EUR"}},{"$f":"SUBTOTAL(109,Darbinieku_faktiskās_izmaksas[Maijs])","v":{"v":111760,"d":"111,760.00 EUR"}},{"$f":"SUBTOTAL(109,Darbinieku_faktiskās_izmaksas[Jūn])","v":{"v":111760,"d":"111,760.00 EUR"}},{"$f":"SUBTOTAL(109,Darbinieku_faktiskās_izmaksas[Jūl])","v":{"v":0,"d":"0.00 EUR"}},{"$f":"SUBTOTAL(109,Darbinieku_faktiskās_izmaksas[Aug])","v":{"v":0,"d":"0.00 EUR"}},{"$f":"SUBTOTAL(109,Darbinieku_faktiskās_izmaksas[Sep])","v":{"v":0,"d":"0.00 EUR"}},{"$f":"SUBTOTAL(109,Darbinieku_faktiskās_izmaksas[Okt])","v":{"v":0,"d":"0.00 EUR"}},{"$f":"SUBTOTAL(109,Darbinieku_faktiskās_izmaksas[Nov])","v":{"v":0,"d":"0.00 EUR"}},{"$f":"SUBTOTAL(109,Darbinieku_faktiskās_izmaksas[Dec])","v":{"v":0,"d":"0.00 EUR"}},{"$f":"SUBTOTAL(109,Darbinieku_faktiskās_izmaksas[GADS])","v":{"v":659130,"d":"659,130.00 EUR"}}]
[]
["Ievadiet biroja izmaksas tabulā Biroja faktiskās izmaksas, sākot ar šūnu pa labi. Nākamais norādījums ir šūnā A21.","Biroja izmaksas","Jan","Feb","Mar","Apr","Maijs","Jūn","Jūl","Aug","Sep","Okt","Nov","Dec","GADS"]
[null,"Biroja noma",{"v":9800,"d":"9,800.00 EUR"},{"v":9800,"d":"9,800.00 EUR"},{"v":9800,"d":"9,800.00 EUR"},{"v":9800,"d":"9,800.00 EUR"},{"v":9800,"d":"9,800.00 EUR"},{"v":9800,"d":"9,800.00 EUR"},{"$nulls":6},{"$f":"SUM(C11:N11)","v":{"v":58800,"d":"58,800.00 EUR"}}]
[null,"Gāze",{"v":4,"d":"4.00 EUR"},{"v":430,"d":"430.00 EUR"},{"v":385,"d":"385.00 EUR"},{"v":230,"d":"230.00 EUR"},{"v":87,"d":"87.00 EUR"},{"v":88,"d":"88.00 EUR"},{"$nulls":6},{"v":1224,"d":"1,224.00 EUR"}]
[null,"Elektrība",{"v":288,"d":"288.00 EUR"},{"v":278,"d":"278.00 EUR"},{"v":268,"d":"268.00 EUR"},{"v":299,"d":"299.00 EUR"},{"v":306,"d":"306.00 EUR"},{"v":290,"d":"290.00 EUR"},{"$nulls":6},{"v":1729,"d":"1,729.00 EUR"}]
[null,"Ūdens",{"v":35,"d":"35.00 EUR"},{"v":33,"d":"33.00 EUR"},{"v":34,"d":"34.00 EUR"},{"v":36,"d":"36.00 EUR"},{"v":34,"d":"34.00 EUR"},{"v":36,"d":"36.00 EUR"},{"$nulls":6},{"v":208,"d":"208.00 EUR"}]
[null,"Tālrunis",{"v":224,"d":"224.00 EUR"},{"v":235,"d":"235.00 EUR"},{"v":265,"d":"265.00 EUR"},{"v":245,"d":"245.00 EUR"},{"v":245,"d":"245.00 EUR"},{"v":220,"d":"220.00 EUR"},{"$nulls":6},{"v":1434,"d":"1,434.00 EUR"}]
[null,"Interneta piekļuve",{"v":180,"d":"180.00 EUR"},{"v":180,"d":"180.00 EUR"},{"v":180,"d":"180.00 EUR"},{"v":180,"d":"180.00 EUR"},{"v":180,"d":"180.00 EUR"},{"v":180,"d":"180.00 EUR"},{"$nulls":6},{"v":1080,"d":"1,080.00 EUR"}]
[null,"Biroja piederumi",{"v":256,"d":"256.00 EUR"},{"v":142,"d":"142.00 EUR"},{"v":160,"d":"160.00 EUR"},{"v":221,"d":"221.00 EUR"},{"v":256,"d":"256.00 EUR"},{"v":240,"d":"240.00 EUR"},{"$nulls":6},{"v":1275,"d":"1,275.00 EUR"}]
[null,"Drošība",{"v":600,"d":"600.00 EUR"},{"v":600,"d":"600.00 EUR"},{"v":600,"d":"600.00 EUR"},{"v":600,"d":"600.00 EUR"},{"v":600,"d":"600.00 EUR"},{"v":600,"d":"600.00 EUR"},{"$nulls":6},{"v":3600,"d":"3,600.00 EUR"}]
[null,"Starpsumma",{"$f":"SUBTOTAL(109,Biroja_faktiskās_izmaksas[Jan])","v":{"v":11387,"d":"11,387.00 EUR"}},{"$f":"SUBTOTAL(109,Biroja_faktiskās_izmaksas[Feb])","v":{"v":11698,"d":"11,698.00 EUR"}},{"$f":"SUBTOTAL(109,Biroja_faktiskās_izmaksas[Mar])","v":{"v":11692,"d":"11,692.00 EUR"}},{"$f":"SUBTOTAL(109,Biroja_faktiskās_izmaksas[Apr])","v":{"v":11611,"d":"11,611.00 EUR"}},{"$f":"SUBTOTAL(109,Biroja_faktiskās_izmaksas[Maijs])","v":{"v":11508,"d":"11,508.00 EUR"}},{"$f":"SUBTOTAL(109,Biroja_faktiskās_izmaksas[Jūn])","v":{"v":11454,"d":"11,454.00 EUR"}},{"$f":"SUBTOTAL(109,Biroja_faktiskās_izmaksas[Jūl])","v":{"v":0,"d":"0.00 EUR"}},{"$f":"SUBTOTAL(109,Biroja_faktiskās_izmaksas[Aug])","v":{"v":0,"d":"0.00 EUR"}},{"$f":"SUBTOTAL(109,Biroja_faktiskās_izmaksas[Sep])","v":{"v":0,"d":"0.00 EUR"}},{"$f":"SUBTOTAL(109,Biroja_faktiskās_izmaksas[Okt])","v":{"v":0,"d":"0.00 EUR"}},{"$f":"SUBTOTAL(109,Biroja_faktiskās_izmaksas[Nov])","v":{"v":0,"d":"0.00 EUR"}},{"$f":"SUBTOTAL(109,Biroja_faktiskās_izmaksas[Dec])","v":{"v":0,"d":"0.00 EUR"}},{"$f":"SUBTOTAL(109,Biroja_faktiskās_izmaksas[GADS])","v":{"v":69350,"d":"69,350.00 EUR"}}]
[]
["Ievadiet mārketinga izmaksas tabulā Mārketinga faktiskās izmaksas, sākot ar šūnu pa labi. Nākamais norādījums ir šūnā A30.","Mārketinga izmaksas","Jan","Feb","Mar","Apr","Maijs","Jūn","Jūl","Aug","Sep","Okt","Nov","Dec","GADS"]
[null,"Tīmekļa vietnes viesošana",{"v":500,"d":"500.00 EUR"},{"v":500,"d":"500.00 EUR"},{"v":500,"d":"500.00 EUR"},{"v":500,"d":"500.00 EUR"},{"v":500,"d":"500.00 EUR"},{"v":500,"d":"500.00 EUR"},{"$nulls":6},{"$f":"SUM(C22:N22)","v":{"v":3000,"d":"3,000.00 EUR"}}]
[null,"Tīmekļa vietnes atjauninājumi",{"v":200,"d":"200.00 EUR"},{"v":200,"d":"200.00 EUR"},{"v":200,"d":"200.00 EUR"},{"v":200,"d":"200.00 EUR"},{"v":200,"d":"200.00 EUR"},{"v":1500,"d":"1,500.00 EUR"},{"$nulls":6},{"v":2500,"d":"2,500.00 EUR"}]
[null,"Papildu sagatavošana",{"v":4800,"d":"4,800.00 EUR"},{"v":0,"d":"0.00 EUR"},{"v":0,"d":"0.00 EUR"},{"v":5500,"d":"5,500.00 EUR"},{"v":0,"d":"0.00 EUR"},{"v":0,"d":"0.00 EUR"},{"$nulls":6},{"v":10300,"d":"10,300.00 EUR"}]
[null,"Papildu drukāšana",{"v":100,"d":"100.00 EUR"},{"v":500,"d":"500.00 EUR"},{"v":100,"d":"100.00 EUR"},{"v":100,"d":"100.00 EUR"},{"v":600,"d":"600.00 EUR"},{"v":180,"d":"180.00 EUR"},{"$nulls":6},{"v":1580,"d":"1,580.00 EUR"}]
[null,"Mārketinga pasākumi",{"v":1800,"d":"1,800.00 EUR"},{"v":2200,"d":"2,200.00 EUR"},{"v":2200,"d":"2,200.00 EUR"},{"v":4700,"d":"4,700.00 EUR"},{"v":1500,"d":"1,500.00 EUR"},{"v":2300,"d":"2,300.00 EUR"},{"$nulls":6},{"v":14700,"d":"14,700.00 EUR"}]
[null,"Dažādi izdevumi",{"v":145,"d":"145.00 EUR"},{"v":156,"d":"156.00 EUR"},{"v":123,"d":"123.00 EUR"},{"v":223,"d":"223.00 EUR"},{"v":187,"d":"187.00 EUR"},{"v":245,"d":"245.00 EUR"},{"$nulls":6},{"v":1079,"d":"1,079.00 EUR"}]
[null,"Starpsumma",{"$f":"SUBTOTAL(109,Mārketinga_faktiskās_izmaksas[Jan])","v":{"v":7545,"d":"7,545.00 EUR"}},{"$f":"SUBTOTAL(109,Mārketinga_faktiskās_izmaksas[Feb])","v":{"v":3556,"d":"3,556.00 EUR"}},{"$f":"SUBTOTAL(109,Mārketinga_faktiskās_izmaksas[Mar])","v":{"v":3123,"d":"3,123.00 EUR"}},{"$f":"SUBTOTAL(109,Mārketinga_faktiskās_izmaksas[Apr])","v":{"v":11223,"d":"11,223.00 EUR"}},{"$f":"SUBTOTAL(109,Mārketinga_faktiskās_izmaksas[Maijs])","v":{"v":2987,"d":"2,987.00 EUR"}},{"$f":"SUBTOTAL(109,Mārketinga_faktiskās_izmaksas[Jūn])","v":{"v":4725,"d":"4,725.00 EUR"}},{"$f":"SUBTOTAL(109,Mārketinga_faktiskās_izmaksas[Jūl])","v":{"v":0,"d":"0.00 EUR"}},{"$f":"SUBTOTAL(109,Mārketinga_faktiskās_izmaksas[Aug])","v":{"v":0,"d":"0.00 EUR"}},{"$f":"SUBTOTAL(109,Mārketinga_faktiskās_izmaksas[Sep])","v":{"v":0,"d":"0.00 EUR"}},{"$f":"SUBTOTAL(109,Mārketinga_faktiskās_izmaksas[Okt])","v":{"v":0,"d":"0.00 EUR"}},{"$f":"SUBTOTAL(109,Mārketinga_faktiskās_izmaksas[Nov])","v":{"v":0,"d":"0.00 EUR"}},{"$f":"SUBTOTAL(109,Mārketinga_faktiskās_izmaksas[Dec])","v":{"v":0,"d":"0.00 EUR"}},{"$f":"SUBTOTAL(109,Mārketinga_faktiskās_izmaksas[GADS])","v":{"v":33159,"d":"33,159.00 EUR"}}]
[]
["Ievadiet apmācību vai komandējumu izmaksas tabulā Apmācību un komandējumu faktiskās izmaksas, sākot ar šūnu pa labi. Nākamais norādījums ir šūnā A35.","Apmācības/komandējumi","Jan","Feb","Mar","Apr","Maijs","Jūn","Jūl","Aug","Sep","Okt","Nov","Dec","GADS"]
[null,"Apmācību nodarbības",{"v":1600,"d":"1,600.00 EUR"},{"v":2400,"d":"2,400.00 EUR"},{"v":1400,"d":"1,400.00 EUR"},{"v":1600,"d":"1,600.00 EUR"},{"v":1200,"d":"1,200.00 EUR"},{"v":2800,"d":"2,800.00 EUR"},{"$nulls":6},{"$f":"SUM(C31:N31)","v":{"v":11000,"d":"11,000.00 EUR"}}]
[null,"Ar apmācībām saistītu komandējumu izmaksas",{"v":1200,"d":"1,200.00 EUR"},{"v":2200,"d":"2,200.00 EUR"},{"v":1400,"d":"1,400.00 EUR"},{"v":1200,"d":"1,200.00 EUR"},{"v":800,"d":"800.00 EUR"},{"v":3500,"d":"3,500.00 EUR"},{"$nulls":6},{"$f":"SUM(C32:N32)","v":{"v":10300,"d":"10,300.00 EUR"}}]
[null,"Starpsumma",{"$f":"SUBTOTAL(109,Apmācību_un_komandējumu_faktiskās_izmaksas[Jan])","v":{"v":2800,"d":"2,800.00 EUR"}},{"$f":"SUBTOTAL(109,Apmācību_un_komandējumu_faktiskās_izmaksas[Feb])","v":{"v":4600,"d":"4,600.00 EUR"}},{"$f":"SUBTOTAL(109,Apmācību_un_komandējumu_faktiskās_izmaksas[Mar])","v":{"v":2800,"d":"2,800.00 EUR"}},{"$f":"SUBTOTAL(109,Apmācību_un_komandējumu_faktiskās_izmaksas[Apr])","v":{"v":2800,"d":"2,800.00 EUR"}},{"$f":"SUBTOTAL(109,Apmācību_un_komandējumu_faktiskās_izmaksas[Maijs])","v":{"v":2000,"d":"2,000.00 EUR"}},{"$f":"SUBTOTAL(109,Apmācību_un_komandējumu_faktiskās_izmaksas[Jūn])","v":{"v":6300,"d":"6,300.00 EUR"}},{"$f":"SUBTOTAL(109,Apmācību_un_komandējumu_faktiskās_izmaksas[Jūl])","v":{"v":0,"d":"0.00 EUR"}},{"$f":"SUBTOTAL(109,Apmācību_un_komandējumu_faktiskās_izmaksas[Aug])","v":{"v":0,"d":"0.00 EUR"}},{"$f":"SUBTOTAL(109,Apmācību_un_komandējumu_faktiskās_izmaksas[Sep])","v":{"v":0,"d":"0.00 EUR"}},{"$f":"SUBTOTAL(109,Apmācību_un_komandējumu_faktiskās_izmaksas[Okt])","v":{"v":0,"d":"0.00 EUR"}},{"$f":"SUBTOTAL(109,Apmācību_un_komandējumu_faktiskās_izmaksas[Nov])","v":{"v":0,"d":"0.00 EUR"}},{"$f":"SUBTOTAL(109,Apmācību_un_komandējumu_faktiskās_izmaksas[Dec])","v":{"v":0,"d":"0.00 EUR"}},{"$f":"SUBTOTAL(109,Apmācību_un_komandējumu_faktiskās_izmaksas[GADS])","v":{"v":21300,"d":"21,300.00 EUR"}}]
[]
["Kopējie faktiskie izdevumi tiek automātiski aprēķināti tabulā Kopējās faktiskās izmaksas, sākot ar šūnu pa labi.","KOPĒJIE plānotie izdevumi","Jan","Feb","Mar","Apr","Maijs","Jūn","Jūl","Aug","Sep","Okt","Nov","Dec","Gads"]
[null,"Mēneša faktiskie izdevumi",{"$f":"Apmācību_un_komandējumu_faktiskās_izmaksas[[#Totals],[Jan]]+Mārketinga_faktiskās_izmaksas[[#Totals],[Jan]]+Biroja_faktiskās_izmaksas[[#Totals],[Jan]]+Darbinieku_faktiskās_izmaksas[[#Totals],[Jan]]","v":{"v":129682,"d":"129,682.00 EUR"}},{"$f":"Apmācību_un_komandējumu_faktiskās_izmaksas[[#Totals],[Feb]]+Mārketinga_faktiskās_izmaksas[[#Totals],[Feb]]+Biroja_faktiskās_izmaksas[[#Totals],[Feb]]+Darbinieku_faktiskās_izmaksas[[#Totals],[Feb]]","v":{"v":127804,"d":"127,804.00 EUR"}},{"$f":"Apmācību_un_komandējumu_faktiskās_izmaksas[[#Totals],[Mar]]+Mārketinga_faktiskās_izmaksas[[#Totals],[Mar]]+Biroja_faktiskās_izmaksas[[#Totals],[Mar]]+Darbinieku_faktiskās_izmaksas[[#Totals],[Mar]]","v":{"v":125565,"d":"125,565.00 EUR"}},{"$f":"Apmācību_un_komandējumu_faktiskās_izmaksas[[#Totals],[Apr]]+Mārketinga_faktiskās_izmaksas[[#Totals],[Apr]]+Biroja_faktiskās_izmaksas[[#Totals],[Apr]]+Darbinieku_faktiskās_izmaksas[[#Totals],[Apr]]","v":{"v":137394,"d":"137,394.00 EUR"}},{"$f":"Apmācību_un_komandējumu_faktiskās_izmaksas[[#Totals],[Maijs]]+Mārketinga_faktiskās_izmaksas[[#Totals],[Maijs]]+Biroja_faktiskās_izmaksas[[#Totals],[Maijs]]+Darbinieku_faktiskās_izmaksas[[#Totals],[Maijs]]","v":{"v":128255,"d":"128,255.00 EUR"}},{"$f":"Apmācību_un_komandējumu_faktiskās_izmaksas[[#Totals],[Jūn]]+Mārketinga_faktiskās_izmaksas[[#Totals],[Jūn]]+Biroja_faktiskās_izmaksas[[#Totals],[Jūn]]+Darbinieku_faktiskās_izmaksas[[#Totals],[Jūn]]","v":{"v":134239,"d":"134,239.00 EUR"}},{"$f":"Apmācību_un_komandējumu_faktiskās_izmaksas[[#Totals],[Jūl]]+Mārketinga_faktiskās_izmaksas[[#Totals],[Jūl]]+Biroja_faktiskās_izmaksas[[#Totals],[Jūl]]+Darbinieku_faktiskās_izmaksas[[#Totals],[Jūl]]","v":{"v":0,"d":"0.00 EUR"}},{"$f":"Apmācību_un_komandējumu_faktiskās_izmaksas[[#Totals],[Aug]]+Mārketinga_faktiskās_izmaksas[[#Totals],[Aug]]+Biroja_faktiskās_izmaksas[[#Totals],[Aug]]+Darbinieku_faktiskās_izmaksas[[#Totals],[Aug]]","v":{"v":0,"d":"0.00 EUR"}},{"$f":"Apmācību_un_komandējumu_faktiskās_izmaksas[[#Totals],[Sep]]+Mārketinga_faktiskās_izmaksas[[#Totals],[Sep]]+Biroja_faktiskās_izmaksas[[#Totals],[Sep]]+Darbinieku_faktiskās_izmaksas[[#Totals],[Sep]]","v":{"v":0,"d":"0.00 EUR"}},{"$f":"Apmācību_un_komandējumu_faktiskās_izmaksas[[#Totals],[Okt]]+Mārketinga_faktiskās_izmaksas[[#Totals],[Okt]]+Biroja_faktiskās_izmaksas[[#Totals],[Okt]]+Darbinieku_faktiskās_izmaksas[[#Totals],[Okt]]","v":{"v":0,"d":"0.00 EUR"}},{"$f":"Apmācību_un_komandējumu_faktiskās_izmaksas[[#Totals],[Nov]]+Mārketinga_faktiskās_izmaksas[[#Totals],[Nov]]+Biroja_faktiskās_izmaksas[[#Totals],[Nov]]+Darbinieku_faktiskās_izmaksas[[#Totals],[Nov]]","v":{"v":0,"d":"0.00 EUR"}},{"$f":"Apmācību_un_komandējumu_faktiskās_izmaksas[[#Totals],[Dec]]+Mārketinga_faktiskās_izmaksas[[#Totals],[Dec]]+Biroja_faktiskās_izmaksas[[#Totals],[Dec]]+Darbinieku_faktiskās_izmaksas[[#Totals],[Dec]]","v":{"v":0,"d":"0.00 EUR"}},{"$f":"Apmācību_un_komandējumu_faktiskās_izmaksas[[#Totals],[GADS]]+Mārketinga_faktiskās_izmaksas[[#Totals],[GADS]]+Biroja_faktiskās_izmaksas[[#Totals],[GADS]]+Darbinieku_faktiskās_izmaksas[[#Totals],[GADS]]","v":{"v":782939,"d":"782,939.00 EUR"}}]
[null,"KOPĒJIE faktiskie izdevumi",{"$f":"SUM($C$36:C36)","v":{"v":129682,"d":"129,682.00 EUR"}},{"$f":"SUM($C$36:D36)","v":{"v":257486,"d":"257,486.00 EUR"}},{"$f":"SUM($C$36:E36)","v":{"v":383051,"d":"383,051.00 EUR"}},{"$f":"SUM($C$36:F36)","v":{"v":520445,"d":"520,445.00 EUR"}},{"$f":"SUM($C$36:G36)","v":{"v":648700,"d":"648,700.00 EUR"}},{"$f":"SUM($C$36:H36)","v":{"v":782939,"d":"782,939.00 EUR"}},{"$f":"SUM($C$36:I36)","v":{"v":782939,"d":"782,939.00 EUR"}},{"$f":"SUM($C$36:J36)","v":{"v":782939,"d":"782,939.00 EUR"}},{"$f":"SUM($C$36:K36)","v":{"v":782939,"d":"782,939.00 EUR"}},{"$f":"SUM($C$36:L36)","v":{"v":782939,"d":"782,939.00 EUR"}},{"$f":"SUM($C$36:M36)","v":{"v":782939,"d":"782,939.00 EUR"}},{"$f":"SUM($C$36:N36)","v":{"v":782939,"d":"782,939.00 EUR"}}]

{"sheet":"IZDEVUMU NOVIRZES","index":3,"n_rows":37,"n_cols":16,"rows_kept":37,"merged":[[1,1,2,3],[1,10,1,12],[1,13,2,14],[2,10,2,12],[8,1,8,2],[19,1,19,2],[28,1,28,2],[33,1,33,2]]}
["Izdevumu novirze arī tiek automātiski aprēķināta šajā darblapā par darbinieku izmaksas, biroja izmaksas, mārketinga izmaksas un apmācību vai komandējumu izmaksas attiecīgajās tabulās šajā darblapā. Noderīgi norādījumi par to, kā lietot šo darblapu, ir šīs kolonnas šūnās. Bultiņa uz leju, lai sāktu darbu.",{"$nulls":14}," "]
["Šūnā pa labi tiek automātiski atjaunināts uzņēmuma nosaukumu. Šūnā K2 ir šīs darblapas nosaukums. Ievadiet logotipu šūnā N2.",{"$f":"'PLĀNOTIE IZDEVUMI'!B2:D3","v":"Uzņēmuma nosaukumu"},{"$nulls":8},{"$f":"darblapas_nosaukums","v":"Detalizēti izdevumu aprēķini"},null,null,"Logotipa vietturis ir šajā šūnā."]
["Padoms ir šūnā K3",{"$nulls":9},"Ēnotās šūnas ir aprēķini."]
["Etiķete Izdevumu novirzes ir šūnā pa labi, mēneši šūnās no C4 līdz N4 un etiķete Gads šūnā O4.","IZDEVUMU NOVIRZES","JAN","FEB","MAR","APR","MAI","JŪN","JŪL","AUG","SEPT","OKT","NOV","DEC","GADS"]
["Darbinieku izmaksas novirze tiek automātiski aprēķināta tabulā Darbinieku vērtību novirzes, sākot ar šūnu pa labi. Nākamais norādījums ir šūnā A10.","Darbinieku izmaksas","Jan","Feb","Mar","Apr","Maijs","Jūn","Jūl","Aug","Sep","Okt","Nov","Dec","GADS"]
[null,"Alga",{"$f":"INDEX(Darbinieku_plāns[],MATCH(INDEX(Darbinieku_vērtību_novirzes[],ROW()-ROW(Darbinieku_vērtību_novirzes[[#Headers],[Jan]]),1),INDEX(Darbinieku_plāns[],,1),0),MATCH(Darbinieku_vērtību_novirzes[[#Headers],[Jan]],Darbinieku_plāns[#Headers],0))-INDEX(Darbinieku_faktiskās_izmaksas[],MATCH(INDEX(Darbinieku_vērtību_novirzes[],ROW()-ROW(Darbinieku_vērtību_novirzes[[#Headers],[Jan]]),1),INDEX(Darbinieku_plāns[],,1),0),MATCH(Darbinieku_vērtību_novirzes[[#Headers],[Jan]],Darbinieku_faktiskās_izmaksas[#Headers],0))","v":{"v":0,"d":"0.00 EUR"}},{"$f":"INDEX(Darbinieku_plāns[],MATCH(INDEX(Darbinieku_vērtību_novirzes[],ROW()-ROW(Darbinieku_vērtību_novirzes[[#Headers],[Feb]]),1),INDEX(Darbinieku_plāns[],,1),0),MATCH(Darbinieku_vērtību_novirzes[[#Headers],[Feb]],Darbinieku_plāns[#Headers],0))-INDEX(Darbinieku_faktiskās_izmaksas[],MATCH(INDEX(Darbinieku_vērtību_novirzes[],ROW()-ROW(Darbinieku_vērtību_novirzes[[#Headers],[Feb]]),1),INDEX(Darbinieku_plāns[],,1),0),MATCH(Darbinieku_vērtību_novirzes[[#Headers],[Feb]],Darbinieku_faktiskās_izmaksas[#Headers],0))","v":{"v":0,"d":"0.00 EUR"}},{"$f":"INDEX(Darbinieku_plāns[],MATCH(INDEX(Darbinieku_vērtību_novirzes[],ROW()-ROW(Darbinieku_vērtību_novirzes[[#Headers],[Mar]]),1),INDEX(Darbinieku_plāns[],,1),0),MATCH(Darbinieku_vērtību_novirzes[[#Headers],[Mar]],Darbinieku_plāns[#Headers],0))-INDEX(Darbinieku_faktiskās_izmaksas[],MATCH(INDEX(Darbinieku_vērtību_novirzes[],ROW()-ROW(Darbinieku_vērtību_novirzes[[#Headers],[Mar]]),1),INDEX(Darbinieku_plāns[],,1),0),MATCH(Darbinieku_vērtību_novirzes[[#Headers],[Mar]],Darbinieku_faktiskās_izmaksas[#Headers],0))","v":{"v":0,"d":"0.00 EUR"}},{"$f":"INDEX(Darbinieku_plāns[],MATCH(INDEX(Darbinieku_vērtību_novirzes[],ROW()-ROW(Darbinieku_vērtību_novirzes[[#Headers],[Apr]]),1),INDEX(Darbinieku_plāns[],,1),0),MATCH(Darbinieku_vērtību_novirzes[[#Headers],[Apr]],Darbinieku_plāns[#Headers],0))-INDEX(Darbinieku_faktiskās_izmaksas[],MATCH(INDEX(Darbinieku_vērtību_novirzes[],ROW()-ROW(Darbinieku_vērtību_novirzes[[#Headers],[Apr]]),1),INDEX(Darbinieku_plāns[],,1),0),MATCH(Darbinieku_vērtību_novirzes[[#Headers],[Apr]],Darbinieku_faktiskās_izmaksas[#Headers],0))","v":{"v":-500,"d":"-500.00 EUR"}},{"$f":"INDEX(Darbinieku_plāns[],MATCH(INDEX(Darbinieku_vērtību_novirzes[],ROW()-ROW(Darbinieku_vērtību_novirzes[[#Headers],[Maijs]]),1),INDEX(Darbinieku_plāns[],,1),0),MATCH(Darbinieku_vērtību_novirzes[[#Headers],[Maijs]],Darbinieku_plāns[#Headers],0))-INDEX(Darbinieku_faktiskās_izmaksas[],MATCH(INDEX(Darbinieku_vērtību_novirzes[],ROW()-ROW(Darbinieku_vērtību_novirzes[[#Headers],[Maijs]]),1),INDEX(Darbinieku_plāns[],,1),0),MATCH(Darbinieku_vērtību_novirzes[[#Headers],[Maijs]],Darbinieku_faktiskās_izmaksas[#Headers],0))","v":{"v":-500,"d":"-500.00 EUR"}},{"$f":"INDEX(Darbinieku_plāns[],MATCH(INDEX(Darbinieku_vērtību_novirzes[],ROW()-ROW(Darbinieku_vērtību_novirzes[[#Headers],[Jūn]]),1),INDEX(Darbinieku_plāns[],,1),0),MATCH(Darbinieku_vērtību_novirzes[[#Headers],[Jūn]],Darbinieku_plāns[#Headers],0))-INDEX(Darbinieku_faktiskās_izmaksas[],MATCH(INDEX(Darbinieku_vērtību_novirzes[],ROW()-ROW(Darbinieku_vērtību_novirzes[[#Headers],[Jūn]]),1),INDEX(Darbinieku_plāns[],,1),0),MATCH(Darbinieku_vērtību_novirzes[[#Headers],[Jūn]],Darbinieku_faktiskās_izmaksas[#Headers],0))","v":{"v":-500,"d":"-500.00 EUR"}},{"$f":"INDEX(Darbinieku_plāns[],MATCH(INDEX(Darbinieku_vērtību_novirzes[],ROW()-ROW(Darbinieku_vērtību_novirzes[[#Headers],[Jūl]]),1),INDEX(Darbinieku_plāns[],,1),0),MATCH(Darbinieku_vērtību_novirzes[[#Headers],[Jūl]],Darbinieku_plāns[#Headers],0))-INDEX(Darbinieku_faktiskās_izmaksas[],MATCH(INDEX(Darbinieku_vērtību_novirzes[],ROW()-ROW(Darbinieku_vērtību_novirzes[[#Headers],[Jūl]]),1),INDEX(Darbinieku_plāns[],,1),0),MATCH(Darbinieku_vērtību_novirzes[[#Headers],[Jūl]],Darbinieku_faktiskās_izmaksas[#Headers],0))","v":{"v":87500,"d":"87,500.00 EUR"}},{"$f":"INDEX(Darbinieku_plāns[],MATCH(INDEX(Darbinieku_vērtību_novirzes[],ROW()-ROW(Darbinieku_vērtību_novirzes[[#Headers],[Aug]]),1),INDEX(Darbinieku_plāns[],,1),0),MATCH(Darbinieku_vērtību_novirzes[[#Headers],[Aug]],Darbinieku_plāns[#Headers],0))-INDEX(Darbinieku_faktiskās_izmaksas[],MATCH(INDEX(Darbinieku_vērtību_novirzes[],ROW()-ROW(Darbinieku_vērtību_novirzes[[#Headers],[Aug]]),1),INDEX(Darbinieku_plāns[],,1),0),MATCH(Darbinieku_vērtību_novirzes[[#Headers],[Aug]],Darbinieku_faktiskās_izmaksas[#Headers],0))","v":{"v":92400,"d":"92,400.00 EUR"}},{"$f":"INDEX(Darbinieku_plāns[],MATCH(INDEX(Darbinieku_vērtību_novirzes[],ROW()-ROW(Darbinieku_vērtību_novirzes[[#Headers],[Sep]]),1),INDEX(Darbinieku_plāns[],,1),0),MATCH(Darbinieku_vērtību_novirzes[[#Headers],[Sep]],Darbinieku_plāns[#Headers],0))-INDEX(Darbinieku_faktiskās_izmaksas[],MATCH(INDEX(Darbinieku_vērtību_novirzes[],ROW()-ROW(Darbinieku_vērtību_novirzes[[#Headers],[Sep]]),1),INDEX(Darbinieku_plāns[],,1),0),MATCH(Darbinieku_vērtību_novirzes[[#Headers],[Sep]],Darbinieku_faktiskās_izmaksas[#Headers],0))","v":{"v":92400,"d":"92,400.00 EUR"}},{"$f":"INDEX(Darbinieku_plāns[],MATCH(INDEX(Darbinieku_vērtību_novirzes[],ROW()-ROW(Darbinieku_vērtību_novirzes[[#Headers],[Okt]]),1),INDEX(Darbinieku_plāns[],,1),0),MATCH(Darbinieku_vērtību_novirzes[[#Headers],[Okt]],Darbinieku_plāns[#Headers],0))-INDEX(Darbinieku_faktiskās_izmaksas[],MATCH(INDEX(Darbinieku_vērtību_novirzes[],ROW()-ROW(Darbinieku_vērtību_novirzes[[#Headers],[Okt]]),1),INDEX(Darbinieku_plāns[],,1),0),MATCH(Darbinieku_vērtību_novirzes[[#Headers],[Okt]],Darbinieku_faktiskās_izmaksas[#Headers],0))","v":{"v":92400,"d":"92,400.00 EUR"}},{"$f":"INDEX(Darbinieku_plāns[],MATCH(INDEX(Darbinieku_vērtību_novirzes[],ROW()-ROW(Darbinieku_vērtību_novirzes[[#Headers],[Nov]]),1),INDEX(Darbinieku_plāns[],,1),0),MATCH(Darbinieku_vērtību_novirzes[[#Headers],[Nov]],Darbinieku_plāns[#Headers],0))-INDEX(Darbinieku_faktiskās_izmaksas[],MATCH(INDEX(Darbinieku_vērtību_novirzes[],ROW()-ROW(Darbinieku_vērtību_novirzes[[#Headers],[Nov]]),1),INDEX(Darbinieku_plāns[],,1),0),MATCH(Darbinieku_vērtību_novirzes[[#Headers],[Nov]],Darbinieku_faktiskās_izmaksas[#Headers],0))","v":{"v":92400,"d":"92,400.00 EUR"}},{"$f":"INDEX(Darbinieku_plāns[],MATCH(INDEX(Darbinieku_vērtību_novirzes[],ROW()-ROW(Darbinieku_vērtību_novirzes[[#Headers],[Dec]]),1),INDEX(Darbinieku_plāns[],,1),0),MATCH(Darbinieku_vērtību_novirzes[[#Headers],[Dec]],Darbinieku_plāns[#Headers],0))-INDEX(Darbinieku_faktiskās_izmaksas[],MATCH(INDEX(Darbinieku_vērtību_novirzes[],ROW()-ROW(Darbinieku_vērtību_novirzes[[#Headers],[Dec]]),1),INDEX(Darbinieku_plāns[],,1),0),MATCH(Darbinieku_vērtību_novirzes[[#Headers],[Dec]],Darbinieku_faktiskās_izmaksas[#Headers],0))","v":{"v":92400,"d":"92,400.00 EUR"}},{"$f":"SUM(Darbinieku_vērtību_novirzes[[#This Row],[Jan]:[Dec]])","v":{"v":548000,"d":"548,000.00 EUR"}}]
[null,"Labumi",{"$f":"INDEX(Darbinieku_plāns[],MATCH(INDEX(Darbinieku_vērtību_novirzes[],ROW()-ROW(Darbinieku_vērtību_novirzes[[#Headers],[Jan]]),1),INDEX(Darbinieku_plāns[],,1),0),MATCH(Darbinieku_vērtību_novirzes[[#Headers],[Jan]],Darbinieku_plāns[#Headers],0))-INDEX(Darbinieku_faktiskās_izmaksas[],MATCH(INDEX(Darbinieku_vērtību_novirzes[],ROW()-ROW(Darbinieku_vērtību_novirzes[[#Headers],[Jan]]),1),INDEX(Darbinieku_plāns[],,1),0),MATCH(Darbinieku_vērtību_novirzes[[#Headers],[Jan]],Darbinieku_faktiskās_izmaksas[#Headers],0))","v":{"v":0,"d":"0.00 EUR"}},{"$f":"INDEX(Darbinieku_plāns[],MATCH(INDEX(Darbinieku_vērtību_novirzes[],ROW()-ROW(Darbinieku_vērtību_novirzes[[#Headers],[Feb]]),1),INDEX(Darbinieku_plāns[],,1),0),MATCH(Darbinieku_vērtību_novirzes[[#Headers],[Feb]],Darbinieku_plāns[#Headers],0))-INDEX(Darbinieku_faktiskās_izmaksas[],MATCH(INDEX(Darbinieku_vērtību_novirzes[],ROW()-ROW(Darbinieku_vērtību_novirzes[[#Headers],[Feb]]),1),INDEX(Darbinieku_plāns[],,1),0),MATCH(Darbinieku_vērtību_novirzes[[#Headers],[Feb]],Darbinieku_faktiskās_izmaksas[#Headers],0))","v":{"v":0,"d":"0.00 EUR"}},{"$f":"INDEX(Darbinieku_plāns[],MATCH(INDEX(Darbinieku_vērtību_novirzes[],ROW()-ROW(Darbinieku_vērtību_novirzes[[#Headers],[Mar]]),1),INDEX(Darbinieku_plāns[],,1),0),MATCH(Darbinieku_vērtību_novirzes[[#Headers],[Mar]],Darbinieku_plāns[#Headers],0))-INDEX(Darbinieku_faktiskās_izmaksas[],MATCH(INDEX(Darbinieku_vērtību_novirzes[],ROW()-ROW(Darbinieku_vērtību_novirzes[[#Headers],[Mar]]),1),INDEX(Darbinieku_plāns[],,1),0),MATCH(Darbinieku_vērtību_novirzes[[#Headers],[Mar]],Darbinieku_faktiskās_izmaksas[#Headers],0))","v":{"v":0,"d":"0.00 EUR"}},{"$f":"INDEX(Darbinieku_plāns[],MATCH(INDEX(Darbinieku_vērtību_novirzes[],ROW()-ROW(Darbinieku_vērtību_novirzes[[#Headers],[Apr]]),1),INDEX(Darbinieku_plāns[],,1),0),MATCH(Darbinieku_vērtību_novirzes[[#Headers],[Apr]],Darbinieku_plāns[#Headers],0))-INDEX(Darbinieku_faktiskās_izmaksas[],MATCH(INDEX(Darbinieku_vērtību_novirzes[],ROW()-ROW(Darbinieku_vērtību_novirzes[[#Headers],[Apr]]),1),INDEX(Darbinieku_plāns[],,1),0),MATCH(Darbinieku_vērtību_novirzes[[#Headers],[Apr]],Darbinieku_faktiskās_izmaksas[#Headers],0))","v":{"v":-135,"d":"-135.00 EUR"}},{"$f":"INDEX(Darbinieku_plāns[],MATCH(INDEX(Darbinieku_vērtību_novirzes[],ROW()-ROW(Darbinieku_vērtību_novirzes[[#Headers],[Maijs]]),1),INDEX(Darbinieku_plāns[],,1),0),MATCH(Darbinieku_vērtību_novirzes[[#Headers],[Maijs]],Darbinieku_plāns[#Headers],0))-INDEX(Darbinieku_faktiskās_izmaksas[],MATCH(INDEX(Darbinieku_vērtību_novirzes[],ROW()-ROW(Darbinieku_vērtību_novirzes[[#Headers],[Maijs]]),1),INDEX(Darbinieku_plāns[],,1),0),MATCH(Darbinieku_vērtību_novirzes[[#Headers],[Maijs]],Darbinieku_faktiskās_izmaksas[#Headers],0))","v":{"v":-135,"d":"-135.00 EUR"}},{"$f":"INDEX(Darbinieku_plāns[],MATCH(INDEX(Darbinieku_vērtību_novirzes[],ROW()-ROW(Darbinieku_vērtību_novirzes[[#Headers],[Jūn]]),1),INDEX(Darbinieku_plāns[],,1),0),MATCH(Darbinieku_vērtību_novirzes[[#Headers],[Jūn]],Darbinieku_plāns[#Headers],0))-INDEX(Darbinieku_faktiskās_izmaksas[],MATCH(INDEX(Darbinieku_vērtību_novirzes[],ROW()-ROW(Darbinieku_vērtību_novirzes[[#Headers],[Jūn]]),1),INDEX(Darbinieku_plāns[],,1),0),MATCH(Darbinieku_vērtību_novirzes[[#Headers],[Jūn]],Darbinieku_faktiskās_izmaksas[#Headers],0))","v":{"v":-135,"d":"-135.00 EUR"}},{"$f":"INDEX(Darbinieku_plāns[],MATCH(INDEX(Darbinieku_vērtību_novirzes[],ROW()-ROW(Darbinieku_vērtību_novirzes[[#Headers],[Jūl]]),1),INDEX(Darbinieku_plāns[],,1),0),MATCH(Darbinieku_vērtību_novirzes[[#Headers],[Jūl]],Darbinieku_plāns[#Headers],0))-INDEX(Darbinieku_faktiskās_izmaksas[],MATCH(INDEX(Darbinieku_vērtību_novirzes[],ROW()-ROW(Darbinieku_vērtību_novirzes[[#Headers],[Jūl]]),1),INDEX(Darbinieku_plāns[],,1),0),MATCH(Darbinieku_vērtību_novirzes[[#Headers],[Jūl]],Darbinieku_faktiskās_izmaksas[#Headers],0))","v":{"v":23625,"d":"23,625.00 EUR"}},{"$f":"INDEX(Darbinieku_plāns[],MATCH(INDEX(Darbinieku_vērtību_novirzes[],ROW()-ROW(Darbinieku_vērtību_novirzes[[#Headers],[Aug]]),1),INDEX(Darbinieku_plāns[],,1),0),MATCH(Darbinieku_vērtību_novirzes[[#Headers],[Aug]],Darbinieku_plāns[#Headers],0))-INDEX(Darbinieku_faktiskās_izmaksas[],MATCH(INDEX(Darbinieku_vērtību_novirzes[],ROW()-ROW(Darbinieku_vērtību_novirzes[[#Headers],[Aug]]),1),INDEX(Darbinieku_plāns[],,1),0),MATCH(Darbinieku_vērtību_novirzes[[#Headers],[Aug]],Darbinieku_faktiskās_izmaksas[#Headers],0))","v":{"v":24948,"d":"24,948.00 EUR"}},{"$f":"INDEX(Darbinieku_plāns[],MATCH(INDEX(Darbinieku_vērtību_novirzes[],ROW()-ROW(Darbinieku_vērtību_novirzes[[#Headers],[Sep]]),1),INDEX(Darbinieku_plāns[],,1),0),MATCH(Darbinieku_vērtību_novirzes[[#Headers],[Sep]],Darbinieku_plāns[#Headers],0))-INDEX(Darbinieku_faktiskās_izmaksas[],MATCH(INDEX(Darbinieku_vērtību_novirzes[],ROW()-ROW(Darbinieku_vērtību_novirzes[[#Headers],[Sep]]),1),INDEX(Darbinieku_plāns[],,1),0),MATCH(Darbinieku_vērtību_novirzes[[#Headers],[Sep]],Darbinieku_faktiskās_izmaksas[#Headers],0))","v":{"v":24948,"d":"24,948.00 EUR"}},{"$f":"INDEX(Darbinieku_plāns[],MATCH(INDEX(Darbinieku_vērtību_novirzes[],ROW()-ROW(Darbinieku_vērtību_novirzes[[#Headers],[Okt]]),1),INDEX(Darbinieku_plāns[],,1),0),MATCH(Darbinieku_vērtību_novirzes[[#Headers],[Okt]],Darbinieku_plāns[#Headers],0))-INDEX(Darbinieku_faktiskās_izmaksas[],MATCH(INDEX(Darbinieku_vērtību_novirzes[],ROW()-ROW(Darbinieku_vērtību_novirzes[[#Headers],[Okt]]),1),INDEX(Darbinieku_plāns[],,1),0),MATCH(Darbinieku_vērtību_novirzes[[#Headers],[Okt]],Darbinieku_faktiskās_izmaksas[#Headers],0))","v":{"v":24948,"d":"24,948.00 EUR"}},{"$f":"INDEX(Darbinieku_plāns[],MATCH(INDEX(Darbinieku_vērtību_novirzes[],ROW()-ROW(Darbinieku_vērtību_novirzes[[#Headers],[Nov]]),1),INDEX(Darbinieku_plāns[],,1),0),MATCH(Darbinieku_vērtību_novirzes[[#Headers],[Nov]],Darbinieku_plāns[#Headers],0))-INDEX(Darbinieku_faktiskās_izmaksas[],MATCH(INDEX(Darbinieku_vērtību_novirzes[],ROW()-ROW(Darbinieku_vērtību_novirzes[[#Headers],[Nov]]),1),INDEX(Darbinieku_plāns[],,1),0),MATCH(Darbinieku_vērtību_novirzes[[#Headers],[Nov]],Darbinieku_faktiskās_izmaksas[#Headers],0))","v":{"v":24948,"d":"24,948.00 EUR"}},{"$f":"INDEX(Darbinieku_plāns[],MATCH(INDEX(Darbinieku_vērtību_novirzes[],ROW()-ROW(Darbinieku_vērtību_novirzes[[#Headers],[Dec]]),1),INDEX(Darbinieku_plāns[],,1),0),MATCH(Darbinieku_vērtību_novirzes[[#Headers],[Dec]],Darbinieku_plāns[#Headers],0))-INDEX(Darbinieku_faktiskās_izmaksas[],MATCH(INDEX(Darbinieku_vērtību_novirzes[],ROW()-ROW(Darbinieku_vērtību_novirzes[[#Headers],[Dec]]),1),INDEX(Darbinieku_plāns[],,1),0),MATCH(Darbinieku_vērtību_novirzes[[#Headers],[Dec]],Darbinieku_faktiskās_izmaksas[#Headers],0))","v":{"v":24948,"d":"24,948.00 EUR"}},{"$f":"SUM(Darbinieku_vērtību_novirzes[[#This Row],[Jan]:[Dec]])","v":{"v":147960,"d":"147,960.00 EUR"}}]
[null,"Starpsumma",{"$f":"SUBTOTAL(109,Darbinieku_vērtību_novirzes[Jan])","v":{"v":0,"d":"0.00 EUR"}},{"$f":"SUBTOTAL(109,Darbinieku_vērtību_novirzes[Feb])","v":{"v":0,"d":"0.00 EUR"}},{"$f":"SUBTOTAL(109,Darbinieku_vērtību_novirzes[Mar])","v":{"v":0,"d":"0.00 EUR"}},{"$f":"SUBTOTAL(109,Darbinieku_vērtību_novirzes[Apr])","v":{"v":-635,"d":"-635.00 EUR"}},{"$f":"SUBTOTAL(109,Darbinieku_vērtību_novirzes[Maijs])","v":{"v":-635,"d":"-635.00 EUR"}},{"$f":"SUBTOTAL(109,Darbinieku_vērtību_novirzes[Jūn])","v":{"v":-635,"d":"-635.00 EUR"}},{"$f":"SUBTOTAL(109,Darbinieku_vērtību_novirzes[Jūl])","v":{"v":111125,"d":"111,125.00 EUR"}},{"$f":"SUBTOTAL(109,Darbinieku_vērtību_novirzes[Aug])","v":{"v":117348,"d":"117,348.00 EUR"}},{"$f":"SUBTOTAL(109,Darbinieku_vērtību_novirzes[Sep])","v":{"v":117348,"d":"117,348.00 EUR"}},{"$f":"SUBTOTAL(109,Darbinieku_vērtību_novirzes[Okt])","v":{"v":117348,"d":"117,348.00 EUR"}},{"$f":"SUBTOTAL(109,Darbinieku_vērtību_novirzes[Nov])","v":{"v":117348,"d":"117,348.00 EUR"}},{"$f":"SUBTOTAL(109,Darbinieku_vērtību_novirzes[Dec])","v":{"v":117348,"d":"117,348.00 EUR"}},{"$f":"SUBTOTAL(109,Darbinieku_vērtību_novirzes[GADS])","v":{"v":695960,"d":"695,960.00 EUR"}}]
[]
["Biroja izmaksas novirze tiek automātiski aprēķināta tabulā Biroja vērtību novirzes, sākot ar šūnu pa labi. Nākamais norādījums ir šūnā A21.","Biroja izmaksas","Jan","Feb","Mar","Apr","Maijs","Jūn","Jūl","Aug","Sep","Okt","Nov","Dec","GADS"]
[null,"Biroja noma",{"$f":"INDEX(Biroja_plāns[],MATCH(INDEX(Biroja_vērtību_novirzes[],ROW()-ROW(Biroja_vērtību_novirzes[[#Headers],[Jan]]),1),INDEX(Biroja_plāns[],,1),0),MATCH(Biroja_vērtību_novirzes[[#Headers],[Jan]],Biroja_plāns[#Headers],0))-INDEX(Biroja_faktiskās_izmaksas[],MATCH(INDEX(Biroja_vērtību_novirzes[],ROW()-ROW(Biroja_vērtību_novirzes[[#Headers],[Jan]]),1),INDEX(Biroja_plāns[],,1),0),MATCH(Biroja_vērtību_novirzes[[#Headers],[Jan]],Biroja_faktiskās_izmaksas[#Headers],0))","v":{"v":0,"d":"0.00 EUR"}},{"$f":"INDEX(Biroja_plāns[],MATCH(INDEX(Biroja_vērtību_novirzes[],ROW()-ROW(Biroja_vērtību_novirzes[[#Headers],[Feb]]),1),INDEX(Biroja_plāns[],,1),0),MATCH(Biroja_vērtību_novirzes[[#Headers],[Feb]],Biroja_plāns[#Headers],0))-INDEX(Biroja_faktiskās_izmaksas[],MATCH(INDEX(Biroja_vērtību_novirzes[],ROW()-ROW(Biroja_vērtību_novirzes[[#Headers],[Feb]]),1),INDEX(Biroja_plāns[],,1),0),MATCH(Biroja_vērtību_novirzes[[#Headers],[Feb]],Biroja_faktiskās_izmaksas[#Headers],0))","v":{"v":0,"d":"0.00 EUR"}},{"$f":"INDEX(Biroja_plāns[],MATCH(INDEX(Biroja_vērtību_novirzes[],ROW()-ROW(Biroja_vērtību_novirzes[[#Headers],[Mar]]),1),INDEX(Biroja_plāns[],,1),0),MATCH(Biroja_vērtību_novirzes[[#Headers],[Mar]],Biroja_plāns[#Headers],0))-INDEX(Biroja_faktiskās_izmaksas[],MATCH(INDEX(Biroja_vērtību_novirzes[],ROW()-ROW(Biroja_vērtību_novirzes[[#Headers],[Mar]]),1),INDEX(Biroja_plāns[],,1),0),MATCH(Biroja_vērtību_novirzes[[#Headers],[Mar]],Biroja_faktiskās_izmaksas[#Headers],0))","v":{"v":0,"d":"0.00 EUR"}},{"$f":"INDEX(Biroja_plāns[],MATCH(INDEX(Biroja_vērtību_novirzes[],ROW()-ROW(Biroja_vērtību_novirzes[[#Headers],[Apr]]),1),INDEX(Biroja_plāns[],,1),0),MATCH(Biroja_vērtību_novirzes[[#Headers],[Apr]],Biroja_plāns[#Headers],0))-INDEX(Biroja_faktiskās_izmaksas[],MATCH(INDEX(Biroja_vērtību_novirzes[],ROW()-ROW(Biroja_vērtību_novirzes[[#Headers],[Apr]]),1),INDEX(Biroja_plāns[],,1),0),MATCH(Biroja_vērtību_novirzes[[#Headers],[Apr]],Biroja_faktiskās_izmaksas[#Headers],0))","v":{"v":0,"d":"0.00 EUR"}},{"$f":"INDEX(Biroja_plāns[],MATCH(INDEX(Biroja_vērtību_novirzes[],ROW()-ROW(Biroja_vērtību_novirzes[[#Headers],[Maijs]]),1),INDEX(Biroja_plāns[],,1),0),MATCH(Biroja_vērtību_novirzes[[#Headers],[Maijs]],Biroja_plāns[#Headers],0))-INDEX(Biroja_faktiskās_izmaksas[],MATCH(INDEX(Biroja_vērtību_novirzes[],ROW()-ROW(Biroja_vērtību_novirzes[[#Headers],[Maijs]]),1),INDEX(Biroja_plāns[],,1),0),MATCH(Biroja_vērtību_novirzes[[#Headers],[Maijs]],Biroja_faktiskās_izmaksas[#Headers],0))","v":{"v":0,"d":"0.00 EUR"}},{"$f":"INDEX(Biroja_plāns[],MATCH(INDEX(Biroja_vērtību_novirzes[],ROW()-ROW(Biroja_vērtību_novirzes[[#Headers],[Jūn]]),1),INDEX(Biroja_plāns[],,1),0),MATCH(Biroja_vērtību_novirzes[[#Headers],[Jūn]],Biroja_plāns[#Headers],0))-INDEX(Biroja_faktiskās_izmaksas[],MATCH(INDEX(Biroja_vērtību_novirzes[],ROW()-ROW(Biroja_vērtību_novirzes[[#Headers],[Jūn]]),1),INDEX(Biroja_plāns[],,1),0),MATCH(Biroja_vērtību_novirzes[[#Headers],[Jūn]],Biroja_faktiskās_izmaksas[#Headers],0))","v":{"v":0,"d":"0.00 EUR"}},{"$f":"INDEX(Biroja_plāns[],MATCH(INDEX(Biroja_vērtību_novirzes[],ROW()-ROW(Biroja_vērtību_novirzes[[#Headers],[Jūl]]),1),INDEX(Biroja_plāns[],,1),0),MATCH(Biroja_vērtību_novirzes[[#Headers],[Jūl]],Biroja_plāns[#Headers],0))-INDEX(Biroja_faktiskās_izmaksas[],MATCH(INDEX(Biroja_vērtību_novirzes[],ROW()-ROW(Biroja_vērtību_novirzes[[#Headers],[Jūl]]),1),INDEX(Biroja_plāns[],,1),0),MATCH(Biroja_vērtību_novirzes[[#Headers],[Jūl]],Biroja_faktiskās_izmaksas[#Headers],0))","v":{"v":9800,"d":"9,800.00 EUR"}},{"$f":"INDEX(Biroja_plāns[],MATCH(INDEX(Biroja_vērtību_novirzes[],ROW()-ROW(Biroja_vērtību_novirzes[[#Headers],[Aug]]),1),INDEX(Biroja_plāns[],,1),0),MATCH(Biroja_vērtību_novirzes[[#Headers],[Aug]],Biroja_plāns[#Headers],0))-INDEX(Biroja_faktiskās_izmaksas[],MATCH(INDEX(Biroja_vērtību_novirzes[],ROW()-ROW(Biroja_vērtību_novirzes[[#Headers],[Aug]]),1),INDEX(Biroja_plāns[],,1),0),MATCH(Biroja_vērtību_novirzes[[#Headers],[Aug]],Biroja_faktiskās_izmaksas[#Headers],0))","v":{"v":9800,"d":"9,800.00 EUR"}},{"$f":"INDEX(Biroja_plāns[],MATCH(INDEX(Biroja_vērtību_novirzes[],ROW()-ROW(Biroja_vērtību_novirzes[[#Headers],[Sep]]),1),INDEX(Biroja_plāns[],,1),0),MATCH(Biroja_vērtību_novirzes[[#Headers],[Sep]],Biroja_plāns[#Headers],0))-INDEX(Biroja_faktiskās_izmaksas[],MATCH(INDEX(Biroja_vērtību_novirzes[],ROW()-ROW(Biroja_vērtību_novirzes[[#Headers],[Sep]]),1),INDEX(Biroja_plāns[],,1),0),MATCH(Biroja_vērtību_novirzes[[#Headers],[Sep]],Biroja_faktiskās_izmaksas[#Headers],0))","v":{"v":9800,"d":"9,800.00 EUR"}},{"$f":"INDEX(Biroja_plāns[],MATCH(INDEX(Biroja_vērtību_novirzes[],ROW()-ROW(Biroja_vērtību_novirzes[[#Headers],[Okt]]),1),INDEX(Biroja_plāns[],,1),0),MATCH(Biroja_vērtību_novirzes[[#Headers],[Okt]],Biroja_plāns[#Headers],0))-INDEX(Biroja_faktiskās_izmaksas[],MATCH(INDEX(Biroja_vērtību_novirzes[],ROW()-ROW(Biroja_vērtību_novirzes[[#Headers],[Okt]]),1),INDEX(Biroja_plāns[],,1),0),MATCH(Biroja_vērtību_novirzes[[#Headers],[Okt]],Biroja_faktiskās_izmaksas[#Headers],0))","v":{"v":9800,"d":"9,800.00 EUR"}},{"$f":"INDEX(Biroja_plāns[],MATCH(INDEX(Biroja_vērtību_novirzes[],ROW()-ROW(Biroja_vērtību_novirzes[[#Headers],[Nov]]),1),INDEX(Biroja_plāns[],,1),0),MATCH(Biroja_vērtību_novirzes[[#Headers],[Nov]],Biroja_plāns[#Headers],0))-INDEX(Biroja_faktiskās_izmaksas[],MATCH(INDEX(Biroja_vērtību_novirzes[],ROW()-ROW(Biroja_vērtību_novirzes[[#Headers],[Nov]]),1),INDEX(Biroja_plāns[],,1),0),MATCH(Biroja_vērtību_novirzes[[#Headers],[Nov]],Biroja_faktiskās_izmaksas[#Headers],0))","v":{"v":9800,"d":"9,800.00 EUR"}},{"$f":"INDEX(Biroja_plāns[],MATCH(INDEX(Biroja_vērtību_novirzes[],ROW()-ROW(Biroja_vērtību_novirzes[[#Headers],[Dec]]),1),INDEX(Biroja_plāns[],,1),0),MATCH(Biroja_vērtību_novirzes[[#Headers],[Dec]],Biroja_plāns[#Headers],0))-INDEX(Biroja_faktiskās_izmaksas[],MATCH(INDEX(Biroja_vērtību_novirzes[],ROW()-ROW(Biroja_vērtību_novirzes[[#Headers],[Dec]]),1),INDEX(Biroja_plāns[],,1),0),MATCH(Biroja_vērtību_novirzes[[#Headers],[Dec]],Biroja_faktiskās_izmaksas[#Headers],0))","v":{"v":9800,"d":"9,800.00 EUR"}},{"$f":"SUM(Biroja_vērtību_novirzes[[#This Row],[Jan]:[Dec]])","v":{"v":58800,"d":"58,800.00 EUR"}}]
[null,"Gāze",{"$f":"INDEX(Biroja_plāns[],MATCH(INDEX(Biroja_vērtību_novirzes[],ROW()-ROW(Biroja_vērtību_novirzes[[#Headers],[Jan]]),1),INDEX(Biroja_plāns[],,1),0),MATCH(Biroja_vērtību_novirzes[[#Headers],[Jan]],Biroja_plāns[#Headers],0))-INDEX(Biroja_faktiskās_izmaksas[],MATCH(INDEX(Biroja_vērtību_novirzes[],ROW()-ROW(Biroja_vērtību_novirzes[[#Headers],[Jan]]),1),INDEX(Biroja_plāns[],,1),0),MATCH(Biroja_vērtību_novirzes[[#Headers],[Jan]],Biroja_faktiskās_izmaksas[#Headers],0))","v":{"v":-4,"d":"-4.00 EUR"}},{"$f":"INDEX(Biroja_plāns[],MATCH(INDEX(Biroja_vērtību_novirzes[],ROW()-ROW(Biroja_vērtību_novirzes[[#Headers],[Feb]]),1),INDEX(Biroja_plāns[],,1),0),MATCH(Biroja_vērtību_novirzes[[#Headers],[Feb]],Biroja_plāns[#Headers],0))-INDEX(Biroja_faktiskās_izmaksas[],MATCH(INDEX(Biroja_vērtību_novirzes[],ROW()-ROW(Biroja_vērtību_novirzes[[#Headers],[Feb]]),1),INDEX(Biroja_plāns[],,1),0),MATCH(Biroja_vērtību_novirzes[[#Headers],[Feb]],Biroja_faktiskās_izmaksas[#Headers],0))","v":{"v":-30,"d":"-30.00 EUR"}},{"$f":"INDEX(Biroja_plāns[],MATCH(INDEX(Biroja_vērtību_novirzes[],ROW()-ROW(Biroja_vērtību_novirzes[[#Headers],[Mar]]),1),INDEX(Biroja_plāns[],,1),0),MATCH(Biroja_vērtību_novirzes[[#Headers],[Mar]],Biroja_plāns[#Headers],0))-INDEX(Biroja_faktiskās_izmaksas[],MATCH(INDEX(Biroja_vērtību_novirzes[],ROW()-ROW(Biroja_vērtību_novirzes[[#Headers],[Mar]]),1),INDEX(Biroja_plāns[],,1),0),MATCH(Biroja_vērtību_novirzes[[#Headers],[Mar]],Biroja_faktiskās_izmaksas[#Headers],0))","v":{"v":15,"d":"15.00 EUR"}},{"$f":"INDEX(Biroja_plāns[],MATCH(INDEX(Biroja_vērtību_novirzes[],ROW()-ROW(Biroja_vērtību_novirzes[[#Headers],[Apr]]),1),INDEX(Biroja_plāns[],,1),0),MATCH(Biroja_vērtību_novirzes[[#Headers],[Apr]],Biroja_plāns[#Headers],0))-INDEX(Biroja_faktiskās_izmaksas[],MATCH(INDEX(Biroja_vērtību_novirzes[],ROW()-ROW(Biroja_vērtību_novirzes[[#Headers],[Apr]]),1),INDEX(Biroja_plāns[],,1),0),MATCH(Biroja_vērtību_novirzes[[#Headers],[Apr]],Biroja_faktiskās_izmaksas[#Headers],0))","v":{"v":-130,"d":"-130.00 EUR"}},{"$f":"INDEX(Biroja_plāns[],MATCH(INDEX(Biroja_vērtību_novirzes[],ROW()-ROW(Biroja_vērtību_novirzes[[#Headers],[Maijs]]),1),INDEX(Biroja_plāns[],,1),0),MATCH(Biroja_vērtību_novirzes[[#Headers],[Maijs]],Biroja_plāns[#Headers],0))-INDEX(Biroja_faktiskās_izmaksas[],MATCH(INDEX(Biroja_vērtību_novirzes[],ROW()-ROW(Biroja_vērtību_novirzes[[#Headers],[Maijs]]),1),INDEX(Biroja_plāns[],,1),0),MATCH(Biroja_vērtību_novirzes[[#Headers],[Maijs]],Biroja_faktiskās_izmaksas[#Headers],0))","v":{"v":13,"d":"13.00 EUR"}},{"$f":"INDEX(Biroja_plāns[],MATCH(INDEX(Biroja_vērtību_novirzes[],ROW()-ROW(Biroja_vērtību_novirzes[[#Headers],[Jūn]]),1),INDEX(Biroja_plāns[],,1),0),MATCH(Biroja_vērtību_novirzes[[#Headers],[Jūn]],Biroja_plāns[#Headers],0))-INDEX(Biroja_faktiskās_izmaksas[],MATCH(INDEX(Biroja_vērtību_novirzes[],ROW()-ROW(Biroja_vērtību_novirzes[[#Headers],[Jūn]]),1),INDEX(Biroja_plāns[],,1),0),MATCH(Biroja_vērtību_novirzes[[#Headers],[Jūn]],Biroja_faktiskās_izmaksas[#Headers],0))","v":{"v":12,"d":"12.00 EUR"}},{"$f":"INDEX(Biroja_plāns[],MATCH(INDEX(Biroja_vērtību_novirzes[],ROW()-ROW(Biroja_vērtību_novirzes[[#Headers],[Jūl]]),1),INDEX(Biroja_plāns[],,1),0),MATCH(Biroja_vērtību_novirzes[[#Headers],[Jūl]],Biroja_plāns[#Headers],0))-INDEX(Biroja_faktiskās_izmaksas[],MATCH(INDEX(Biroja_vērtību_novirzes[],ROW()-ROW(Biroja_vērtību_novirzes[[#Headers],[Jūl]]),1),INDEX(Biroja_plāns[],,1),0),MATCH(Biroja_vērtību_novirzes[[#Headers],[Jūl]],Biroja_faktiskās_izmaksas[#Headers],0))","v":{"v":100,"d":"100.00 EUR"}},{"$f":"INDEX(Biroja_plāns[],MATCH(INDEX(Biroja_vērtību_novirzes[],ROW()-ROW(Biroja_vērtību_novirzes[[#Headers],[Aug]]),1),INDEX(Biroja_plāns[],,1),0),MATCH(Biroja_vērtību_novirzes[[#Headers],[Aug]],Biroja_plāns[#Headers],0))-INDEX(Biroja_faktiskās_izmaksas[],MATCH(INDEX(Biroja_vērtību_novirzes[],ROW()-ROW(Biroja_vērtību_novirzes[[#Headers],[Aug]]),1),INDEX(Biroja_plāns[],,1),0),MATCH(Biroja_vērtību_novirzes[[#Headers],[Aug]],Biroja_faktiskās_izmaksas[#Headers],0))","v":{"v":100,"d":"100.00 EUR"}},{"$f":"INDEX(Biroja_plāns[],MATCH(INDEX(Biroja_vērtību_novirzes[],ROW()-ROW(Biroja_vērtību_novirzes[[#Headers],[Sep]]),1),INDEX(Biroja_plāns[],,1),0),MATCH(Biroja_vērtību_novirzes[[#Headers],[Sep]],Biroja_plāns[#Headers],0))-INDEX(Biroja_faktiskās_izmaksas[],MATCH(INDEX(Biroja_vērtību_novirzes[],ROW()-ROW(Biroja_vērtību_novirzes[[#Headers],[Sep]]),1),INDEX(Biroja_plāns[],,1),0),MATCH(Biroja_vērtību_novirzes[[#Headers],[Sep]],Biroja_faktiskās_izmaksas[#Headers],0))","v":{"v":100,"d":"100.00 EUR"}},{"$f":"INDEX(Biroja_plāns[],MATCH(INDEX(Biroja_vērtību_novirzes[],ROW()-ROW(Biroja_vērtību_novirzes[[#Headers],[Okt]]),1),INDEX(Biroja_plāns[],,1),0),MATCH(Biroja_vērtību_novirzes[[#Headers],[Okt]],Biroja_plāns[#Headers],0))-INDEX(Biroja_faktiskās_izmaksas[],MATCH(INDEX(Biroja_vērtību_novirzes[],ROW()-ROW(Biroja_vērtību_novirzes[[#Headers],[Okt]]),1),INDEX(Biroja_plāns[],,1),0),MATCH(Biroja_vērtību_novirzes[[#Headers],[Okt]],Biroja_faktiskās_izmaksas[#Headers],0))","v":{"v":100,"d":"100.00 EUR"}},{"$f":"INDEX(Biroja_plāns[],MATCH(INDEX(Biroja_vērtību_novirzes[],ROW()-ROW(Biroja_vērtību_novirzes[[#Headers],[Nov]]),1),INDEX(Biroja_plāns[],,1),0),MATCH(Biroja_vērtību_novirzes[[#Headers],[Nov]],Biroja_plāns[#Headers],0))-INDEX(Biroja_faktiskās_izmaksas[],MATCH(INDEX(Biroja_vērtību_novirzes[],ROW()-ROW(Biroja_vērtību_novirzes[[#Headers],[Nov]]),1),INDEX(Biroja_plāns[],,1),0),MATCH(Biroja_vērtību_novirzes[[#Headers],[Nov]],Biroja_faktiskās_izmaksas[#Headers],0))","v":{"v":400,"d":"400.00 EUR"}},{"$f":"INDEX(Biroja_plāns[],MATCH(INDEX(Biroja_vērtību_novirzes[],ROW()-ROW(Biroja_vērtību_novirzes[[#Headers],[Dec]]),1),INDEX(Biroja_plāns[],,1),0),MATCH(Biroja_vērtību_novirzes[[#Headers],[Dec]],Biroja_plāns[#Headers],0))-INDEX(Biroja_faktiskās_izmaksas[],MATCH(INDEX(Biroja_vērtību_novirzes[],ROW()-ROW(Biroja_vērtību_novirzes[[#Headers],[Dec]]),1),INDEX(Biroja_plāns[],,1),0),MATCH(Biroja_vērtību_novirzes[[#Headers],[Dec]],Biroja_faktiskās_izmaksas[#Headers],0))","v":{"v":400,"d":"400.00 EUR"}},{"$f":"SUM(Biroja_vērtību_novirzes[[#This Row],[Jan]:[Dec]])","v":{"v":1076,"d":"1,076.00 EUR"}}]
[null,"Elektrība",{"$f":"INDEX(Biroja_plāns[],MATCH(INDEX(Biroja_vērtību_novirzes[],ROW()-ROW(Biroja_vērtību_novirzes[[#Headers],[Jan]]),1),INDEX(Biroja_plāns[],,1),0),MATCH(Biroja_vērtību_novirzes[[#Headers],[Jan]],Biroja_plāns[#Headers],0))-INDEX(Biroja_faktiskās_izmaksas[],MATCH(INDEX(Biroja_vērtību_novirzes[],ROW()-ROW(Biroja_vērtību_novirzes[[#Headers],[Jan]]),1),INDEX(Biroja_plāns[],,1),0),MATCH(Biroja_vērtību_novirzes[[#Headers],[Jan]],Biroja_faktiskās_izmaksas[#Headers],0))","v":{"v":12,"d":"12.00 EUR"}},{"$f":"INDEX(Biroja_plāns[],MATCH(INDEX(Biroja_vērtību_novirzes[],ROW()-ROW(Biroja_vērtību_novirzes[[#Headers],[Feb]]),1),INDEX(Biroja_plāns[],,1),0),MATCH(Biroja_vērtību_novirzes[[#Headers],[Feb]],Biroja_plāns[#Headers],0))-INDEX(Biroja_faktiskās_izmaksas[],MATCH(INDEX(Biroja_vērtību_novirzes[],ROW()-ROW(Biroja_vērtību_novirzes[[#Headers],[Feb]]),1),INDEX(Biroja_plāns[],,1),0),MATCH(Biroja_vērtību_novirzes[[#Headers],[Feb]],Biroja_faktiskās_izmaksas[#Headers],0))","v":{"v":22,"d":"22.00 EUR"}},{"$f":"INDEX(Biroja_plāns[],MATCH(INDEX(Biroja_vērtību_novirzes[],ROW()-ROW(Biroja_vērtību_novirzes[[#Headers],[Mar]]),1),INDEX(Biroja_plāns[],,1),0),MATCH(Biroja_vērtību_novirzes[[#Headers],[Mar]],Biroja_plāns[#Headers],0))-INDEX(Biroja_faktiskās_izmaksas[],MATCH(INDEX(Biroja_vērtību_novirzes[],ROW()-ROW(Biroja_vērtību_novirzes[[#Headers],[Mar]]),1),INDEX(Biroja_plāns[],,1),0),MATCH(Biroja_vērtību_novirzes[[#Headers],[Mar]],Biroja_faktiskās_izmaksas[#Headers],0))","v":{"v":32,"d":"32.00 EUR"}},{"$f":"INDEX(Biroja_plāns[],MATCH(INDEX(Biroja_vērtību_novirzes[],ROW()-ROW(Biroja_vērtību_novirzes[[#Headers],[Apr]]),1),INDEX(Biroja_plāns[],,1),0),MATCH(Biroja_vērtību_novirzes[[#Headers],[Apr]],Biroja_plāns[#Headers],0))-INDEX(Biroja_faktiskās_izmaksas[],MATCH(INDEX(Biroja_vērtību_novirzes[],ROW()-ROW(Biroja_vērtību_novirzes[[#Headers],[Apr]]),1),INDEX(Biroja_plāns[],,1),0),MATCH(Biroja_vērtību_novirzes[[#Headers],[Apr]],Biroja_faktiskās_izmaksas[#Headers],0))","v":{"v":1,"d":"1.00 EUR"}},{"$f":"INDEX(Biroja_plāns[],MATCH(INDEX(Biroja_vērtību_novirzes[],ROW()-ROW(Biroja_vērtību_novirzes[[#Headers],[Maijs]]),1),INDEX(Biroja_plāns[],,1),0),MATCH(Biroja_vērtību_novirzes[[#Headers],[Maijs]],Biroja_plāns[#Headers],0))-INDEX(Biroja_faktiskās_izmaksas[],MATCH(INDEX(Biroja_vērtību_novirzes[],ROW()-ROW(Biroja_vērtību_novirzes[[#Headers],[Maijs]]),1),INDEX(Biroja_plāns[],,1),0),MATCH(Biroja_vērtību_novirzes[[#Headers],[Maijs]],Biroja_faktiskās_izmaksas[#Headers],0))","v":{"v":-6,"d":"-6.00 EUR"}},{"$f":"INDEX(Biroja_plāns[],MATCH(INDEX(Biroja_vērtību_novirzes[],ROW()-ROW(Biroja_vērtību_novirzes[[#Headers],[Jūn]]),1),INDEX(Biroja_plāns[],,1),0),MATCH(Biroja_vērtību_novirzes[[#Headers],[Jūn]],Biroja_plāns[#Headers],0))-INDEX(Biroja_faktiskās_izmaksas[],MATCH(INDEX(Biroja_vērtību_novirzes[],ROW()-ROW(Biroja_vērtību_novirzes[[#Headers],[Jūn]]),1),INDEX(Biroja_plāns[],,1),0),MATCH(Biroja_vērtību_novirzes[[#Headers],[Jūn]],Biroja_faktiskās_izmaksas[#Headers],0))","v":{"v":10,"d":"10.00 EUR"}},{"$f":"INDEX(Biroja_plāns[],MATCH(INDEX(Biroja_vērtību_novirzes[],ROW()-ROW(Biroja_vērtību_novirzes[[#Headers],[Jūl]]),1),INDEX(Biroja_plāns[],,1),0),MATCH(Biroja_vērtību_novirzes[[#Headers],[Jūl]],Biroja_plāns[#Headers],0))-INDEX(Biroja_faktiskās_izmaksas[],MATCH(INDEX(Biroja_vērtību_novirzes[],ROW()-ROW(Biroja_vērtību_novirzes[[#Headers],[Jūl]]),1),INDEX(Biroja_plāns[],,1),0),MATCH(Biroja_vērtību_novirzes[[#Headers],[Jūl]],Biroja_faktiskās_izmaksas[#Headers],0))","v":{"v":300,"d":"300.00 EUR"}},{"$f":"INDEX(Biroja_plāns[],MATCH(INDEX(Biroja_vērtību_novirzes[],ROW()-ROW(Biroja_vērtību_novirzes[[#Headers],[Aug]]),1),INDEX(Biroja_plāns[],,1),0),MATCH(Biroja_vērtību_novirzes[[#Headers],[Aug]],Biroja_plāns[#Headers],0))-INDEX(Biroja_faktiskās_izmaksas[],MATCH(INDEX(Biroja_vērtību_novirzes[],ROW()-ROW(Biroja_vērtību_novirzes[[#Headers],[Aug]]),1),INDEX(Biroja_plāns[],,1),0),MATCH(Biroja_vērtību_novirzes[[#Headers],[Aug]],Biroja_faktiskās_izmaksas[#Headers],0))","v":{"v":300,"d":"300.00 EUR"}},{"$f":"INDEX(Biroja_plāns[],MATCH(INDEX(Biroja_vērtību_novirzes[],ROW()-ROW(Biroja_vērtību_novirzes[[#Headers],[Sep]]),1),INDEX(Biroja_plāns[],,1),0),MATCH(Biroja_vērtību_novirzes[[#Headers],[Sep]],Biroja_plāns[#Headers],0))-INDEX(Biroja_faktiskās_izmaksas[],MATCH(INDEX(Biroja_vērtību_novirzes[],ROW()-ROW(Biroja_vērtību_novirzes[[#Headers],[Sep]]),1),INDEX(Biroja_plāns[],,1),0),MATCH(Biroja_vērtību_novirzes[[#Headers],[Sep]],Biroja_faktiskās_izmaksas[#Headers],0))","v":{"v":300,"d":"300.00 EUR"}},{"$f":"INDEX(Biroja_plāns[],MATCH(INDEX(Biroja_vērtību_novirzes[],ROW()-ROW(Biroja_vērtību_novirzes[[#Headers],[Okt]]),1),INDEX(Biroja_plāns[],,1),0),MATCH(Biroja_vērtību_novirzes[[#Headers],[Okt]],Biroja_plāns[#Headers],0))-INDEX(Biroja_faktiskās_izmaksas[],MATCH(INDEX(Biroja_vērtību_novirzes[],ROW()-ROW(Biroja_vērtību_novirzes[[#Headers],[Okt]]),1),INDEX(Biroja_plāns[],,1),0),MATCH(Biroja_vērtību_novirzes[[#Headers],[Okt]],Biroja_faktiskās_izmaksas[#Headers],0))","v":{"v":300,"d":"300.00 EUR"}},{"$f":"INDEX(Biroja_plāns[],MATCH(INDEX(Biroja_vērtību_novirzes[],ROW()-ROW(Biroja_vērtību_novirzes[[#Headers],[Nov]]),1),INDEX(Biroja_plāns[],,1),0),MATCH(Biroja_vērtību_novirzes[[#Headers],[Nov]],Biroja_plāns[#Headers],0))-INDEX(Biroja_faktiskās_izmaksas[],MATCH(INDEX(Biroja_vērtību_novirzes[],ROW()-ROW(Biroja_vērtību_novirzes[[#Headers],[Nov]]),1),INDEX(Biroja_plāns[],,1),0),MATCH(Biroja_vērtību_novirzes[[#Headers],[Nov]],Biroja_faktiskās_izmaksas[#Headers],0))","v":{"v":300,"d":"300.00 EUR"}},{"$f":"INDEX(Biroja_plāns[],MATCH(INDEX(Biroja_vērtību_novirzes[],ROW()-ROW(Biroja_vērtību_novirzes[[#Headers],[Dec]]),1),INDEX(Biroja_plāns[],,1),0),MATCH(Biroja_vērtību_novirzes[[#Headers],[Dec]],Biroja_plāns[#Headers],0))-INDEX(Biroja_faktiskās_izmaksas[],MATCH(INDEX(Biroja_vērtību_novirzes[],ROW()-ROW(Biroja_vērtību_novirzes[[#Headers],[Dec]]),1),INDEX(Biroja_plāns[],,1),0),MATCH(Biroja_vērtību_novirzes[[#Headers],[Dec]],Biroja_faktiskās_izmaksas[#Headers],0))","v":{"v":300,"d":"300.00 EUR"}},{"$f":"SUM(Biroja_vērtību_novirzes[[#This Row],[Jan]:[Dec]])","v":{"v":1871,"d":"1,871.00 EUR"}}]
[null,"Ūdens",{"$f":"INDEX(Biroja_plāns[],MATCH(INDEX(Biroja_vērtību_novirzes[],ROW()-ROW(Biroja_vērtību_novirzes[[#Headers],[Jan]]),1),INDEX(Biroja_plāns[],,1),0),MATCH(Biroja_vērtību_novirzes[[#Headers],[Jan]],Biroja_plāns[#Headers],0))-INDEX(Biroja_faktiskās_izmaksas[],MATCH(INDEX(Biroja_vērtību_novirzes[],ROW()-ROW(Biroja_vērtību_novirzes[[#Headers],[Jan]]),1),INDEX(Biroja_plāns[],,1),0),MATCH(Biroja_vērtību_novirzes[[#Headers],[Jan]],Biroja_faktiskās_izmaksas[#Headers],0))","v":{"v":5,"d":"5.00 EUR"}},{"$f":"INDEX(Biroja_plāns[],MATCH(INDEX(Biroja_vērtību_novirzes[],ROW()-ROW(Biroja_vērtību_novirzes[[#Headers],[Feb]]),1),INDEX(Biroja_plāns[],,1),0),MATCH(Biroja_vērtību_novirzes[[#Headers],[Feb]],Biroja_plāns[#Headers],0))-INDEX(Biroja_faktiskās_izmaksas[],MATCH(INDEX(Biroja_vērtību_novirzes[],ROW()-ROW(Biroja_vērtību_novirzes[[#Headers],[Feb]]),1),INDEX(Biroja_plāns[],,1),0),MATCH(Biroja_vērtību_novirzes[[#Headers],[Feb]],Biroja_faktiskās_izmaksas[#Headers],0))","v":{"v":7,"d":"7.00 EUR"}},{"$f":"INDEX(Biroja_plāns[],MATCH(INDEX(Biroja_vērtību_novirzes[],ROW()-ROW(Biroja_vērtību_novirzes[[#Headers],[Mar]]),1),INDEX(Biroja_plāns[],,1),0),MATCH(Biroja_vērtību_novirzes[[#Headers],[Mar]],Biroja_plāns[#Headers],0))-INDEX(Biroja_faktiskās_izmaksas[],MATCH(INDEX(Biroja_vērtību_novirzes[],ROW()-ROW(Biroja_vērtību_novirzes[[#Headers],[Mar]]),1),INDEX(Biroja_plāns[],,1),0),MATCH(Biroja_vērtību_novirzes[[#Headers],[Mar]],Biroja_faktiskās_izmaksas[#Headers],0))","v":{"v":6,"d":"6.00 EUR"}},{"$f":"INDEX(Biroja_plāns[],MATCH(INDEX(Biroja_vērtību_novirzes[],ROW()-ROW(Biroja_vērtību_novirzes[[#Headers],[Apr]]),1),INDEX(Biroja_plāns[],,1),0),MATCH(Biroja_vērtību_novirzes[[#Headers],[Apr]],Biroja_plāns[#Headers],0))-INDEX(Biroja_faktiskās_izmaksas[],MATCH(INDEX(Biroja_vērtību_novirzes[],ROW()-ROW(Biroja_vērtību_novirzes[[#Headers],[Apr]]),1),INDEX(Biroja_plāns[],,1),0),MATCH(Biroja_vērtību_novirzes[[#Headers],[Apr]],Biroja_faktiskās_izmaksas[#Headers],0))","v":{"v":4,"d":"4.00 EUR"}},{"$f":"INDEX(Biroja_plāns[],MATCH(INDEX(Biroja_vērtību_novirzes[],ROW()-ROW(Biroja_vērtību_novirzes[[#Headers],[Maijs]]),1),INDEX(Biroja_plāns[],,1),0),MATCH(Biroja_vērtību_novirzes[[#Headers],[Maijs]],Biroja_plāns[#Headers],0))-INDEX(Biroja_faktiskās_izmaksas[],MATCH(INDEX(Biroja_vērtību_novirzes[],ROW()-ROW(Biroja_vērtību_novirzes[[#Headers],[Maijs]]),1),INDEX(Biroja_plāns[],,1),0),MATCH(Biroja_vērtību_novirzes[[#Headers],[Maijs]],Biroja_faktiskās_izmaksas[#Headers],0))","v":{"v":6,"d":"6.00 EUR"}},{"$f":"INDEX(Biroja_plāns[],MATCH(INDEX(Biroja_vērtību_novirzes[],ROW()-ROW(Biroja_vērtību_novirzes[[#Headers],[Jūn]]),1),INDEX(Biroja_plāns[],,1),0),MATCH(Biroja_vērtību_novirzes[[#Headers],[Jūn]],Biroja_plāns[#Headers],0))-INDEX(Biroja_faktiskās_izmaksas[],MATCH(INDEX(Biroja_vērtību_novirzes[],ROW()-ROW(Biroja_vērtību_novirzes[[#Headers],[Jūn]]),1),INDEX(Biroja_plāns[],,1),0),MATCH(Biroja_vērtību_novirzes[[#Headers],[Jūn]],Biroja_faktiskās_izmaksas[#Headers],0))","v":{"v":4,"d":"4.00 EUR"}},{"$f":"INDEX(Biroja_plāns[],MATCH(INDEX(Biroja_vērtību_novirzes[],ROW()-ROW(Biroja_vērtību_novirzes[[#Headers],[Jūl]]),1),INDEX(Biroja_plāns[],,1),0),MATCH(Biroja_vērtību_novirzes[[#Headers],[Jūl]],Biroja_plāns[#Headers],0))-INDEX(Biroja_faktiskās_izmaksas[],MATCH(INDEX(Biroja_vērtību_novirzes[],ROW()-ROW(Biroja_vērtību_novirzes[[#Headers],[Jūl]]),1),INDEX(Biroja_plāns[],,1),0),MATCH(Biroja_vērtību_novirzes[[#Headers],[Jūl]],Biroja_faktiskās_izmaksas[#Headers],0))","v":{"v":40,"d":"40.00 EUR"}},{"$f":"INDEX(Biroja_plāns[],MATCH(INDEX(Biroja_vērtību_novirzes[],ROW()-ROW(Biroja_vērtību_novirzes[[#Headers],[Aug]]),1),INDEX(Biroja_plāns[],,1),0),MATCH(Biroja_vērtību_novirzes[[#Headers],[Aug]],Biroja_plāns[#Headers],0))-INDEX(Biroja_faktiskās_izmaksas[],MATCH(INDEX(Biroja_vērtību_novirzes[],ROW()-ROW(Biroja_vērtību_novirzes[[#Headers],[Aug]]),1),INDEX(Biroja_plāns[],,1),0),MATCH(Biroja_vērtību_novirzes[[#Headers],[Aug]],Biroja_faktiskās_izmaksas[#Headers],0))","v":{"v":40,"d":"40.00 EUR"}},{"$f":"INDEX(Biroja_plāns[],MATCH(INDEX(Biroja_vērtību_novirzes[],ROW()-ROW(Biroja_vērtību_novirzes[[#Headers],[Sep]]),1),INDEX(Biroja_plāns[],,1),0),MATCH(Biroja_vērtību_novirzes[[#Headers],[Sep]],Biroja_plāns[#Headers],0))-INDEX(Biroja_faktiskās_izmaksas[],MATCH(INDEX(Biroja_vērtību_novirzes[],ROW()-ROW(Biroja_vērtību_novirzes[[#Headers],[Sep]]),1),INDEX(Biroja_plāns[],,1),0),MATCH(Biroja_vērtību_novirzes[[#Headers],[Sep]],Biroja_faktiskās_izmaksas[#Headers],0))","v":{"v":40,"d":"40.00 EUR"}},{"$f":"INDEX(Biroja_plāns[],MATCH(INDEX(Biroja_vērtību_novirzes[],ROW()-ROW(Biroja_vērtību_novirzes[[#Headers],[Okt]]),1),INDEX(Biroja_plāns[],,1),0),MATCH(Biroja_vērtību_novirzes[[#Headers],[Okt]],Biroja_plāns[#Headers],0))-INDEX(Biroja_faktiskās_izmaksas[],MATCH(INDEX(Biroja_vērtību_novirzes[],ROW()-ROW(Biroja_vērtību_novirzes[[#Headers],[Okt]]),1),INDEX(Biroja_plāns[],,1),0),MATCH(Biroja_vērtību_novirzes[[#Headers],[Okt]],Biroja_faktiskās_izmaksas[#Headers],0))","v":{"v":40,"d":"40.00 EUR"}},{"$f":"INDEX(Biroja_plāns[],MATCH(INDEX(Biroja_vērtību_novirzes[],ROW()-ROW(Biroja_vērtību_novirzes[[#Headers],[Nov]]),1),INDEX(Biroja_plāns[],,1),0),MATCH(Biroja_vērtību_novirzes[[#Headers],[Nov]],Biroja_plāns[#Headers],0))-INDEX(Biroja_faktiskās_izmaksas[],MATCH(INDEX(Biroja_vērtību_novirzes[],ROW()-ROW(Biroja_vērtību_novirzes[[#Headers],[Nov]]),1),INDEX(Biroja_plāns[],,1),0),MATCH(Biroja_vērtību_novirzes[[#Headers],[Nov]],Biroja_faktiskās_izmaksas[#Headers],0))","v":{"v":40,"d":"40.00 EUR"}},{"$f":"INDEX(Biroja_plāns[],MATCH(INDEX(Biroja_vērtību_novirzes[],ROW()-ROW(Biroja_vērtību_novirzes[[#Headers],[Dec]]),1),INDEX(Biroja_plāns[],,1),0),MATCH(Biroja_vērtību_novirzes[[#Headers],[Dec]],Biroja_plāns[#Headers],0))-INDEX(Biroja_faktiskās_izmaksas[],MATCH(INDEX(Biroja_vērtību_novirzes[],ROW()-ROW(Biroja_vērtību_novirzes[[#Headers],[Dec]]),1),INDEX(Biroja_plāns[],,1),0),MATCH(Biroja_vērtību_novirzes[[#Headers],[Dec]],Biroja_faktiskās_izmaksas[#Headers],0))","v":{"v":40,"d":"40.00 EUR"}},{"$f":"SUM(Biroja_vērtību_novirzes[[#This Row],[Jan]:[Dec]])","v":{"v":272,"d":"272.00 EUR"}}]
[null,"Tālrunis",{"$f":"INDEX(Biroja_plāns[],MATCH(INDEX(Biroja_vērtību_novirzes[],ROW()-ROW(Biroja_vērtību_novirzes[[#Headers],[Jan]]),1),INDEX(Biroja_plāns[],,1),0),MATCH(Biroja_vērtību_novirzes[[#Headers],[Jan]],Biroja_plāns[#Headers],0))-INDEX(Biroja_faktiskās_izmaksas[],MATCH(INDEX(Biroja_vērtību_novirzes[],ROW()-ROW(Biroja_vērtību_novirzes[[#Headers],[Jan]]),1),INDEX(Biroja_plāns[],,1),0),MATCH(Biroja_vērtību_novirzes[[#Headers],[Jan]],Biroja_faktiskās_izmaksas[#Headers],0))","v":{"v":26,"d":"26.00 EUR"}},{"$f":"INDEX(Biroja_plāns[],MATCH(INDEX(Biroja_vērtību_novirzes[],ROW()-ROW(Biroja_vērtību_novirzes[[#Headers],[Feb]]),1),INDEX(Biroja_plāns[],,1),0),MATCH(Biroja_vērtību_novirzes[[#Headers],[Feb]],Biroja_plāns[#Headers],0))-INDEX(Biroja_faktiskās_izmaksas[],MATCH(INDEX(Biroja_vērtību_novirzes[],ROW()-ROW(Biroja_vērtību_novirzes[[#Headers],[Feb]]),1),INDEX(Biroja_plāns[],,1),0),MATCH(Biroja_vērtību_novirzes[[#Headers],[Feb]],Biroja_faktiskās_izmaksas[#Headers],0))","v":{"v":15,"d":"15.00 EUR"}},{"$f":"INDEX(Biroja_plāns[],MATCH(INDEX(Biroja_vērtību_novirzes[],ROW()-ROW(Biroja_vērtību_novirzes[[#Headers],[Mar]]),1),INDEX(Biroja_plāns[],,1),0),MATCH(Biroja_vērtību_novirzes[[#Headers],[Mar]],Biroja_plāns[#Headers],0))-INDEX(Biroja_faktiskās_izmaksas[],MATCH(INDEX(Biroja_vērtību_novirzes[],ROW()-ROW(Biroja_vērtību_novirzes[[#Headers],[Mar]]),1),INDEX(Biroja_plāns[],,1),0),MATCH(Biroja_vērtību_novirzes[[#Headers],[Mar]],Biroja_faktiskās_izmaksas[#Headers],0))","v":{"v":-15,"d":"-15.00 EUR"}},{"$f":"INDEX(Biroja_plāns[],MATCH(INDEX(Biroja_vērtību_novirzes[],ROW()-ROW(Biroja_vērtību_novirzes[[#Headers],[Apr]]),1),INDEX(Biroja_plāns[],,1),0),MATCH(Biroja_vērtību_novirzes[[#Headers],[Apr]],Biroja_plāns[#Headers],0))-INDEX(Biroja_faktiskās_izmaksas[],MATCH(INDEX(Biroja_vērtību_novirzes[],ROW()-ROW(Biroja_vērtību_novirzes[[#Headers],[Apr]]),1),INDEX(Biroja_plāns[],,1),0),MATCH(Biroja_vērtību_novirzes[[#Headers],[Apr]],Biroja_faktiskās_izmaksas[#Headers],0))","v":{"v":5,"d":"5.00 EUR"}},{"$f":"INDEX(Biroja_plāns[],MATCH(INDEX(Biroja_vērtību_novirzes[],ROW()-ROW(Biroja_vērtību_novirzes[[#Headers],[Maijs]]),1),INDEX(Biroja_plāns[],,1),0),MATCH(Biroja_vērtību_novirzes[[#Headers],[Maijs]],Biroja_plāns[#Headers],0))-INDEX(Biroja_faktiskās_izmaksas[],MATCH(INDEX(Biroja_vērtību_novirzes[],ROW()-ROW(Biroja_vērtību_novirzes[[#Headers],[Maijs]]),1),INDEX(Biroja_plāns[],,1),0),MATCH(Biroja_vērtību_novirzes[[#Headers],[Maijs]],Biroja_faktiskās_izmaksas[#Headers],0))","v":{"v":5,"d":"5.00 EUR"}},{"$f":"INDEX(Biroja_plāns[],MATCH(INDEX(Biroja_vērtību_novirzes[],ROW()-ROW(Biroja_vērtību_novirzes[[#Headers],[Jūn]]),1),INDEX(Biroja_plāns[],,1),0),MATCH(Biroja_vērtību_novirzes[[#Headers],[Jūn]],Biroja_plāns[#Headers],0))-INDEX(Biroja_faktiskās_izmaksas[],MATCH(INDEX(Biroja_vērtību_novirzes[],ROW()-ROW(Biroja_vērtību_novirzes[[#Headers],[Jūn]]),1),INDEX(Biroja_plāns[],,1),0),MATCH(Biroja_vērtību_novirzes[[#Headers],[Jūn]],Biroja_faktiskās_izmaksas[#Headers],0))","v":{"v":30,"d":"30.00 EUR"}},{"$f":"INDEX(Biroja_plāns[],MATCH(INDEX(Biroja_vērtību_novirzes[],ROW()-ROW(Biroja_vērtību_novirzes[[#Headers],[Jūl]]),1),INDEX(Biroja_plāns[],,1),0),MATCH(Biroja_vērtību_novirzes[[#Headers],[Jūl]],Biroja_plāns[#Headers],0))-INDEX(Biroja_faktiskās_izmaksas[],MATCH(INDEX(Biroja_vērtību_novirzes[],ROW()-ROW(Biroja_vērtību_novirzes[[#Headers],[Jūl]]),1),INDEX(Biroja_plāns[],,1),0),MATCH(Biroja_vērtību_novirzes[[#Headers],[Jūl]],Biroja_faktiskās_izmaksas[#Headers],0))","v":{"v":250,"d":"250.00 EUR"}},{"$f":"INDEX(Biroja_plāns[],MATCH(INDEX(Biroja_vērtību_novirzes[],ROW()-ROW(Biroja_vērtību_novirzes[[#Headers],[Aug]]),1),INDEX(Biroja_plāns[],,1),0),MATCH(Biroja_vērtību_novirzes[[#Headers],[Aug]],Biroja_plāns[#Headers],0))-INDEX(Biroja_faktiskās_izmaksas[],MATCH(INDEX(Biroja_vērtību_novirzes[],ROW()-ROW(Biroja_vērtību_novirzes[[#Headers],[Aug]]),1),INDEX(Biroja_plāns[],,1),0),MATCH(Biroja_vērtību_novirzes[[#Headers],[Aug]],Biroja_faktiskās_izmaksas[#Headers],0))","v":{"v":250,"d":"250.00 EUR"}},{"$f":"INDEX(Biroja_plāns[],MATCH(INDEX(Biroja_vērtību_novirzes[],ROW()-ROW(Biroja_vērtību_novirzes[[#Headers],[Sep]]),1),INDEX(Biroja_plāns[],,1),0),MATCH(Biroja_vērtību_novirzes[[#Headers],[Sep]],Biroja_plāns[#Headers],0))-INDEX(Biroja_faktiskās_izmaksas[],MATCH(INDEX(Biroja_vērtību_novirzes[],ROW()-ROW(Biroja_vērtību_novirzes[[#Headers],[Sep]]),1),INDEX(Biroja_plāns[],,1),0),MATCH(Biroja_vērtību_novirzes[[#Headers],[Sep]],Biroja_faktiskās_izmaksas[#Headers],0))","v":{"v":250,"d":"250.00 EUR"}},{"$f":"INDEX(Biroja_plāns[],MATCH(INDEX(Biroja_vērtību_novirzes[],ROW()-ROW(Biroja_vērtību_novirzes[[#Headers],[Okt]]),1),INDEX(Biroja_plāns[],,1),0),MATCH(Biroja_vērtību_novirzes[[#Headers],[Okt]],Biroja_plāns[#Headers],0))-INDEX(Biroja_faktiskās_izmaksas[],MATCH(INDEX(Biroja_vērtību_novirzes[],ROW()-ROW(Biroja_vērtību_novirzes[[#Headers],[Okt]]),1),INDEX(Biroja_plāns[],,1),0),MATCH(Biroja_vērtību_novirzes[[#Headers],[Okt]],Biroja_faktiskās_izmaksas[#Headers],0))","v":{"v":250,"d":"250.00 EUR"}},{"$f":"INDEX(Biroja_plāns[],MATCH(INDEX(Biroja_vērtību_novirzes[],ROW()-ROW(Biroja_vērtību_novirzes[[#Headers],[Nov]]),1),INDEX(Biroja_plāns[],,1),0),MATCH(Biroja_vērtību_novirzes[[#Headers],[Nov]],Biroja_plāns[#Headers],0))-INDEX(Biroja_faktiskās_izmaksas[],MATCH(INDEX(Biroja_vērtību_novirzes[],ROW()-ROW(Biroja_vērtību_novirzes[[#Headers],[Nov]]),1),INDEX(Biroja_plāns[],,1),0),MATCH(Biroja_vērtību_novirzes[[#Headers],[Nov]],Biroja_faktiskās_izmaksas[#Headers],0))","v":{"v":250,"d":"250.00 EUR"}},{"$f":"INDEX(Biroja_plāns[],MATCH(INDEX(Biroja_vērtību_novirzes[],ROW()-ROW(Biroja_vērtību_novirzes[[#Headers],[Dec]]),1),INDEX(Biroja_plāns[],,1),0),MATCH(Biroja_vērtību_novirzes[[#Headers],[Dec]],Biroja_plāns[#Headers],0))-INDEX(Biroja_faktiskās_izmaksas[],MATCH(INDEX(Biroja_vērtību_novirzes[],ROW()-ROW(Biroja_vērtību_novirzes[[#Headers],[Dec]]),1),INDEX(Biroja_plāns[],,1),0),MATCH(Biroja_vērtību_novirzes[[#Headers],[Dec]],Biroja_faktiskās_izmaksas[#Headers],0))","v":{"v":250,"d":"250.00 EUR"}},{"$f":"SUM(Biroja_vērtību_novirzes[[#This Row],[Jan]:[Dec]])","v":{"v":1566,"d":"1,566.00 EUR"}}]
[null,"Interneta piekļuve",{"$f":"INDEX(Biroja_plāns[],MATCH(INDEX(Biroja_vērtību_novirzes[],ROW()-ROW(Biroja_vērtību_novirzes[[#Headers],[Jan]]),1),INDEX(Biroja_plāns[],,1),0),MATCH(Biroja_vērtību_novirzes[[#Headers],[Jan]],Biroja_plāns[#Headers],0))-INDEX(Biroja_faktiskās_izmaksas[],MATCH(INDEX(Biroja_vērtību_novirzes[],ROW()-ROW(Biroja_vērtību_novirzes[[#Headers],[Jan]]),1),INDEX(Biroja_plāns[],,1),0),MATCH(Biroja_vērtību_novirzes[[#Headers],[Jan]],Biroja_faktiskās_izmaksas[#Headers],0))","v":{"v":0,"d":"0.00 EUR"}},{"$f":"INDEX(Biroja_plāns[],MATCH(INDEX(Biroja_vērtību_novirzes[],ROW()-ROW(Biroja_vērtību_novirzes[[#Headers],[Feb]]),1),INDEX(Biroja_plāns[],,1),0),MATCH(Biroja_vērtību_novirzes[[#Headers],[Feb]],Biroja_plāns[#Headers],0))-INDEX(Biroja_faktiskās_izmaksas[],MATCH(INDEX(Biroja_vērtību_novirzes[],ROW()-ROW(Biroja_vērtību_novirzes[[#Headers],[Feb]]),1),INDEX(Biroja_plāns[],,1),0),MATCH(Biroja_vērtību_novirzes[[#Headers],[Feb]],Biroja_faktiskās_izmaksas[#Headers],0))","v":{"v":0,"d":"0.00 EUR"}},{"$f":"INDEX(Biroja_plāns[],MATCH(INDEX(Biroja_vērtību_novirzes[],ROW()-ROW(Biroja_vērtību_novirzes[[#Headers],[Mar]]),1),INDEX(Biroja_plāns[],,1),0),MATCH(Biroja_vērtību_novirzes[[#Headers],[Mar]],Biroja_plāns[#Headers],0))-INDEX(Biroja_faktiskās_izmaksas[],MATCH(INDEX(Biroja_vērtību_novirzes[],ROW()-ROW(Biroja_vērtību_novirzes[[#Headers],[Mar]]),1),INDEX(Biroja_plāns[],,1),0),MATCH(Biroja_vērtību_novirzes[[#Headers],[Mar]],Biroja_faktiskās_izmaksas[#Headers],0))","v":{"v":0,"d":"0.00 EUR"}},{"$f":"INDEX(Biroja_plāns[],MATCH(INDEX(Biroja_vērtību_novirzes[],ROW()-ROW(Biroja_vērtību_novirzes[[#Headers],[Apr]]),1),INDEX(Biroja_plāns[],,1),0),MATCH(Biroja_vērtību_novirzes[[#Headers],[Apr]],Biroja_plāns[#Headers],0))-INDEX(Biroja_faktiskās_izmaksas[],MATCH(INDEX(Biroja_vērtību_novirzes[],ROW()-ROW(Biroja_vērtību_novirzes[[#Headers],[Apr]]),1),INDEX(Biroja_plāns[],,1),0),MATCH(Biroja_vērtību_novirzes[[#Headers],[Apr]],Biroja_faktiskās_izmaksas[#Headers],0))","v":{"v":0,"d":"0.00 EUR"}},{"$f":"INDEX(Biroja_plāns[],MATCH(INDEX(Biroja_vērtību_novirzes[],ROW()-ROW(Biroja_vērtību_novirzes[[#Headers],[Maijs]]),1),INDEX(Biroja_plāns[],,1),0),MATCH(Biroja_vērtību_novirzes[[#Headers],[Maijs]],Biroja_plāns[#Headers],0))-INDEX(Biroja_faktiskās_izmaksas[],MATCH(INDEX(Biroja_vērtību_novirzes[],ROW()-ROW(Biroja_vērtību_novirzes[[#Headers],[Maijs]]),1),INDEX(Biroja_plāns[],,1),0),MATCH(Biroja_vērtību_novirzes[[#Headers],[Maijs]],Biroja_faktiskās_izmaksas[#Headers],0))","v":{"v":0,"d":"0.00 EUR"}},{"$f":"INDEX(Biroja_plāns[],MATCH(INDEX(Biroja_vērtību_novirzes[],ROW()-ROW(Biroja_vērtību_novirzes[[#Headers],[Jūn]]),1),INDEX(Biroja_plāns[],,1),0),MATCH(Biroja_vērtību_novirzes[[#Headers],[Jūn]],Biroja_plāns[#Headers],0))-INDEX(Biroja_faktiskās_izmaksas[],MATCH(INDEX(Biroja_vērtību_novirzes[],ROW()-ROW(Biroja_vērtību_novirzes[[#Headers],[Jūn]]),1),INDEX(Biroja_plāns[],,1),0),MATCH(Biroja_vērtību_novirzes[[#Headers],[Jūn]],Biroja_faktiskās_izmaksas[#Headers],0))","v":{"v":0,"d":"0.00 EUR"}},{"$f":"INDEX(Biroja_plāns[],MATCH(INDEX(Biroja_vērtību_novirzes[],ROW()-ROW(Biroja_vērtību_novirzes[[#Headers],[Jūl]]),1),INDEX(Biroja_plāns[],,1),0),MATCH(Biroja_vērtību_novirzes[[#Headers],[Jūl]],Biroja_plāns[#Headers],0))-INDEX(Biroja_faktiskās_izmaksas[],MATCH(INDEX(Biroja_vērtību_novirzes[],ROW()-ROW(Biroja_vērtību_novirzes[[#Headers],[Jūl]]),1),INDEX(Biroja_plāns[],,1),0),MATCH(Biroja_vērtību_novirzes[[#Headers],[Jūl]],Biroja_faktiskās_izmaksas[#Headers],0))","v":{"v":180,"d":"180.00 EUR"}},{"$f":"INDEX(Biroja_plāns[],MATCH(INDEX(Biroja_vērtību_novirzes[],ROW()-ROW(Biroja_vērtību_novirzes[[#Headers],[Aug]]),1),INDEX(Biroja_plāns[],,1),0),MATCH(Biroja_vērtību_novirzes[[#Headers],[Aug]],Biroja_plāns[#Headers],0))-INDEX(Biroja_faktiskās_izmaksas[],MATCH(INDEX(Biroja_vērtību_novirzes[],ROW()-ROW(Biroja_vērtību_novirzes[[#Headers],[Aug]]),1),INDEX(Biroja_plāns[],,1),0),MATCH(Biroja_vērtību_novirzes[[#Headers],[Aug]],Biroja_faktiskās_izmaksas[#Headers],0))","v":{"v":180,"d":"180.00 EUR"}},{"$f":"INDEX(Biroja_plāns[],MATCH(INDEX(Biroja_vērtību_novirzes[],ROW()-ROW(Biroja_vērtību_novirzes[[#Headers],[Sep]]),1),INDEX(Biroja_plāns[],,1),0),MATCH(Biroja_vērtību_novirzes[[#Headers],[Sep]],Biroja_plāns[#Headers],0))-INDEX(Biroja_faktiskās_izmaksas[],MATCH(INDEX(Biroja_vērtību_novirzes[],ROW()-ROW(Biroja_vērtību_novirzes[[#Headers],[Sep]]),1),INDEX(Biroja_plāns[],,1),0),MATCH(Biroja_vērtību_novirzes[[#Headers],[Sep]],Biroja_faktiskās_izmaksas[#Headers],0))","v":{"v":180,"d":"180.00 EUR"}},{"$f":"INDEX(Biroja_plāns[],MATCH(INDEX(Biroja_vērtību_novirzes[],ROW()-ROW(Biroja_vērtību_novirzes[[#Headers],[Okt]]),1),INDEX(Biroja_plāns[],,1),0),MATCH(Biroja_vērtību_novirzes[[#Headers],[Okt]],Biroja_plāns[#Headers],0))-INDEX(Biroja_faktiskās_izmaksas[],MATCH(INDEX(Biroja_vērtību_novirzes[],ROW()-ROW(Biroja_vērtību_novirzes[[#Headers],[Okt]]),1),INDEX(Biroja_plāns[],,1),0),MATCH(Biroja_vērtību_novirzes[[#Headers],[Okt]],Biroja_faktiskās_izmaksas[#Headers],0))","v":{"v":180,"d":"180.00 EUR"}},{"$f":"INDEX(Biroja_plāns[],MATCH(INDEX(Biroja_vērtību_novirzes[],ROW()-ROW(Biroja_vērtību_novirzes[[#Headers],[Nov]]),1),INDEX(Biroja_plāns[],,1),0),MATCH(Biroja_vērtību_novirzes[[#Headers],[Nov]],Biroja_plāns[#Headers],0))-INDEX(Biroja_faktiskās_izmaksas[],MATCH(INDEX(Biroja_vērtību_novirzes[],ROW()-ROW(Biroja_vērtību_novirzes[[#Headers],[Nov]]),1),INDEX(Biroja_plāns[],,1),0),MATCH(Biroja_vērtību_novirzes[[#Headers],[Nov]],Biroja_faktiskās_izmaksas[#Headers],0))","v":{"v":180,"d":"180.00 EUR"}},{"$f":"INDEX(Biroja_plāns[],MATCH(INDEX(Biroja_vērtību_novirzes[],ROW()-ROW(Biroja_vērtību_novirzes[[#Headers],[Dec]]),1),INDEX(Biroja_plāns[],,1),0),MATCH(Biroja_vērtību_novirzes[[#Headers],[Dec]],Biroja_plāns[#Headers],0))-INDEX(Biroja_faktiskās_izmaksas[],MATCH(INDEX(Biroja_vērtību_novirzes[],ROW()-ROW(Biroja_vērtību_novirzes[[#Headers],[Dec]]),1),INDEX(Biroja_plāns[],,1),0),MATCH(Biroja_vērtību_novirzes[[#Headers],[Dec]],Biroja_faktiskās_izmaksas[#Headers],0))","v":{"v":180,"d":"180.00 EUR"}},{"$f":"SUM(Biroja_vērtību_novirzes[[#This Row],[Jan]:[Dec]])","v":{"v":1080,"d":"1,080.00 EUR"}}]
[null,"Biroja piederumi",{"$f":"INDEX(Biroja_plāns[],MATCH(INDEX(Biroja_vērtību_novirzes[],ROW()-ROW(Biroja_vērtību_novirzes[[#Headers],[Jan]]),1),INDEX(Biroja_plāns[],,1),0),MATCH(Biroja_vērtību_novirzes[[#Headers],[Jan]],Biroja_plāns[#Headers],0))-INDEX(Biroja_faktiskās_izmaksas[],MATCH(INDEX(Biroja_vērtību_novirzes[],ROW()-ROW(Biroja_vērtību_novirzes[[#Headers],[Jan]]),1),INDEX(Biroja_plāns[],,1),0),MATCH(Biroja_vērtību_novirzes[[#Headers],[Jan]],Biroja_faktiskās_izmaksas[#Headers],0))","v":{"v":-56,"d":"-56.00 EUR"}},{"$f":"INDEX(Biroja_plāns[],MATCH(INDEX(Biroja_vērtību_novirzes[],ROW()-ROW(Biroja_vērtību_novirzes[[#Headers],[Feb]]),1),INDEX(Biroja_plāns[],,1),0),MATCH(Biroja_vērtību_novirzes[[#Headers],[Feb]],Biroja_plāns[#Headers],0))-INDEX(Biroja_faktiskās_izmaksas[],MATCH(INDEX(Biroja_vērtību_novirzes[],ROW()-ROW(Biroja_vērtību_novirzes[[#Headers],[Feb]]),1),INDEX(Biroja_plāns[],,1),0),MATCH(Biroja_vērtību_novirzes[[#Headers],[Feb]],Biroja_faktiskās_izmaksas[#Headers],0))","v":{"v":58,"d":"58.00 EUR"}},{"$f":"INDEX(Biroja_plāns[],MATCH(INDEX(Biroja_vērtību_novirzes[],ROW()-ROW(Biroja_vērtību_novirzes[[#Headers],[Mar]]),1),INDEX(Biroja_plāns[],,1),0),MATCH(Biroja_vērtību_novirzes[[#Headers],[Mar]],Biroja_plāns[#Headers],0))-INDEX(Biroja_faktiskās_izmaksas[],MATCH(INDEX(Biroja_vērtību_novirzes[],ROW()-ROW(Biroja_vērtību_novirzes[[#Headers],[Mar]]),1),INDEX(Biroja_plāns[],,1),0),MATCH(Biroja_vērtību_novirzes[[#Headers],[Mar]],Biroja_faktiskās_izmaksas[#Headers],0))","v":{"v":40,"d":"40.00 EUR"}},{"$f":"INDEX(Biroja_plāns[],MATCH(INDEX(Biroja_vērtību_novirzes[],ROW()-ROW(Biroja_vērtību_novirzes[[#Headers],[Apr]]),1),INDEX(Biroja_plāns[],,1),0),MATCH(Biroja_vērtību_novirzes[[#Headers],[Apr]],Biroja_plāns[#Headers],0))-INDEX(Biroja_faktiskās_izmaksas[],MATCH(INDEX(Biroja_vērtību_novirzes[],ROW()-ROW(Biroja_vērtību_novirzes[[#Headers],[Apr]]),1),INDEX(Biroja_plāns[],,1),0),MATCH(Biroja_vērtību_novirzes[[#Headers],[Apr]],Biroja_faktiskās_izmaksas[#Headers],0))","v":{"v":-21,"d":"-21.00 EUR"}},{"$f":"INDEX(Biroja_plāns[],MATCH(INDEX(Biroja_vērtību_novirzes[],ROW()-ROW(Biroja_vērtību_novirzes[[#Headers],[Maijs]]),1),INDEX(Biroja_plāns[],,1),0),MATCH(Biroja_vērtību_novirzes[[#Headers],[Maijs]],Biroja_plāns[#Headers],0))-INDEX(Biroja_faktiskās_izmaksas[],MATCH(INDEX(Biroja_vērtību_novirzes[],ROW()-ROW(Biroja_vērtību_novirzes[[#Headers],[Maijs]]),1),INDEX(Biroja_plāns[],,1),0),MATCH(Biroja_vērtību_novirzes[[#Headers],[Maijs]],Biroja_faktiskās_izmaksas[#Headers],0))","v":{"v":-56,"d":"-56.00 EUR"}},{"$f":"INDEX(Biroja_plāns[],MATCH(INDEX(Biroja_vērtību_novirzes[],ROW()-ROW(Biroja_vērtību_novirzes[[#Headers],[Jūn]]),1),INDEX(Biroja_plāns[],,1),0),MATCH(Biroja_vērtību_novirzes[[#Headers],[Jūn]],Biroja_plāns[#Headers],0))-INDEX(Biroja_faktiskās_izmaksas[],MATCH(INDEX(Biroja_vērtību_novirzes[],ROW()-ROW(Biroja_vērtību_novirzes[[#Headers],[Jūn]]),1),INDEX(Biroja_plāns[],,1),0),MATCH(Biroja_vērtību_novirzes[[#Headers],[Jūn]],Biroja_faktiskās_izmaksas[#Headers],0))","v":{"v":-40,"d":"-40.00 EUR"}},{"$f":"INDEX(Biroja_plāns[],MATCH(INDEX(Biroja_vērtību_novirzes[],ROW()-ROW(Biroja_vērtību_novirzes[[#Headers],[Jūl]]),1),INDEX(Biroja_plāns[],,1),0),MATCH(Biroja_vērtību_novirzes[[#Headers],[Jūl]],Biroja_plāns[#Headers],0))-INDEX(Biroja_faktiskās_izmaksas[],MATCH(INDEX(Biroja_vērtību_novirzes[],ROW()-ROW(Biroja_vērtību_novirzes[[#Headers],[Jūl]]),1),INDEX(Biroja_plāns[],,1),0),MATCH(Biroja_vērtību_novirzes[[#Headers],[Jūl]],Biroja_faktiskās_izmaksas[#Headers],0))","v":{"v":200,"d":"200.00 EUR"}},{"$f":"INDEX(Biroja_plāns[],MATCH(INDEX(Biroja_vērtību_novirzes[],ROW()-ROW(Biroja_vērtību_novirzes[[#Headers],[Aug]]),1),INDEX(Biroja_plāns[],,1),0),MATCH(Biroja_vērtību_novirzes[[#Headers],[Aug]],Biroja_plāns[#Headers],0))-INDEX(Biroja_faktiskās_izmaksas[],MATCH(INDEX(Biroja_vērtību_novirzes[],ROW()-ROW(Biroja_vērtību_novirzes[[#Headers],[Aug]]),1),INDEX(Biroja_plāns[],,1),0),MATCH(Biroja_vērtību_novirzes[[#Headers],[Aug]],Biroja_faktiskās_izmaksas[#Headers],0))","v":{"v":200,"d":"200.00 EUR"}},{"$f":"INDEX(Biroja_plāns[],MATCH(INDEX(Biroja_vērtību_novirzes[],ROW()-ROW(Biroja_vērtību_novirzes[[#Headers],[Sep]]),1),INDEX(Biroja_plāns[],,1),0),MATCH(Biroja_vērtību_novirzes[[#Headers],[Sep]],Biroja_plāns[#Headers],0))-INDEX(Biroja_faktiskās_izmaksas[],MATCH(INDEX(Biroja_vērtību_novirzes[],ROW()-ROW(Biroja_vērtību_novirzes[[#Headers],[Sep]]),1),INDEX(Biroja_plāns[],,1),0),MATCH(Biroja_vērtību_novirzes[[#Headers],[Sep]],Biroja_faktiskās_izmaksas[#Headers],0))","v":{"v":200,"d":"200.00 EUR"}},{"$f":"INDEX(Biroja_plāns[],MATCH(INDEX(Biroja_vērtību_novirzes[],ROW()-ROW(Biroja_vērtību_novirzes[[#Headers],[Okt]]),1),INDEX(Biroja_plāns[],,1),0),MATCH(Biroja_vērtību_novirzes[[#Headers],[Okt]],Biroja_plāns[#Headers],0))-INDEX(Biroja_faktiskās_izmaksas[],MATCH(INDEX(Biroja_vērtību_novirzes[],ROW()-ROW(Biroja_vērtību_novirzes[[#Headers],[Okt]]),1),INDEX(Biroja_plāns[],,1),0),MATCH(Biroja_vērtību_novirzes[[#Headers],[Okt]],Biroja_faktiskās_izmaksas[#Headers],0))","v":{"v":200,"d":"200.00 EUR"}},{"$f":"INDEX(Biroja_plāns[],MATCH(INDEX(Biroja_vērtību_novirzes[],ROW()-ROW(Biroja_vērtību_novirzes[[#Headers],[Nov]]),1),INDEX(Biroja_plāns[],,1),0),MATCH(Biroja_vērtību_novirzes[[#Headers],[Nov]],Biroja_plāns[#Headers],0))-INDEX(Biroja_faktiskās_izmaksas[],MATCH(INDEX(Biroja_vērtību_novirzes[],ROW()-ROW(Biroja_vērtību_novirzes[[#Headers],[Nov]]),1),INDEX(Biroja_plāns[],,1),0),MATCH(Biroja_vērtību_novirzes[[#Headers],[Nov]],Biroja_faktiskās_izmaksas[#Headers],0))","v":{"v":200,"d":"200.00 EUR"}},{"$f":"INDEX(Biroja_plāns[],MATCH(INDEX(Biroja_vērtību_novirzes[],ROW()-ROW(Biroja_vērtību_novirzes[[#Headers],[Dec]]),1),INDEX(Biroja_plāns[],,1),0),MATCH(Biroja_vērtību_novirzes[[#Headers],[Dec]],Biroja_plāns[#Headers],0))-INDEX(Biroja_faktiskās_izmaksas[],MATCH(INDEX(Biroja_vērtību_novirzes[],ROW()-ROW(Biroja_vērtību_novirzes[[#Headers],[Dec]]),1),INDEX(Biroja_plāns[],,1),0),MATCH(Biroja_vērtību_novirzes[[#Headers],[Dec]],Biroja_faktiskās_izmaksas[#Headers],0))","v":{"v":200,"d":"200.00 EUR"}},{"$f":"SUM(Biroja_vērtību_novirzes[[#This Row],[Jan]:[Dec]])","v":{"v":1125,"d":"1,125.00 EUR"}}]
[null,"Drošība",{"$f":"INDEX(Biroja_plāns[],MATCH(INDEX(Biroja_vērtību_novirzes[],ROW()-ROW(Biroja_vērtību_novirzes[[#Headers],[Jan]]),1),INDEX(Biroja_plāns[],,1),0),MATCH(Biroja_vērtību_novirzes[[#Headers],[Jan]],Biroja_plāns[#Headers],0))-INDEX(Biroja_faktiskās_izmaksas[],MATCH(INDEX(Biroja_vērtību_novirzes[],ROW()-ROW(Biroja_vērtību_novirzes[[#Headers],[Jan]]),1),INDEX(Biroja_plāns[],,1),0),MATCH(Biroja_vērtību_novirzes[[#Headers],[Jan]],Biroja_faktiskās_izmaksas[#Headers],0))","v":{"v":0,"d":"0.00 EUR"}},{"$f":"INDEX(Biroja_plāns[],MATCH(INDEX(Biroja_vērtību_novirzes[],ROW()-ROW(Biroja_vērtību_novirzes[[#Headers],[Feb]]),1),INDEX(Biroja_plāns[],,1),0),MATCH(Biroja_vērtību_novirzes[[#Headers],[Feb]],Biroja_plāns[#Headers],0))-INDEX(Biroja_faktiskās_izmaksas[],MATCH(INDEX(Biroja_vērtību_novirzes[],ROW()-ROW(Biroja_vērtību_novirzes[[#Headers],[Feb]]),1),INDEX(Biroja_plāns[],,1),0),MATCH(Biroja_vērtību_novirzes[[#Headers],[Feb]],Biroja_faktiskās_izmaksas[#Headers],0))","v":{"v":0,"d":"0.00 EUR"}},{"$f":"INDEX(Biroja_plāns[],MATCH(INDEX(Biroja_vērtību_novirzes[],ROW()-ROW(Biroja_vērtību_novirzes[[#Headers],[Mar]]),1),INDEX(Biroja_plāns[],,1),0),MATCH(Biroja_vērtību_novirzes[[#Headers],[Mar]],Biroja_plāns[#Headers],0))-INDEX(Biroja_faktiskās_izmaksas[],MATCH(INDEX(Biroja_vērtību_novirzes[],ROW()-ROW(Biroja_vērtību_novirzes[[#Headers],[Mar]]),1),INDEX(Biroja_plāns[],,1),0),MATCH(Biroja_vērtību_novirzes[[#Headers],[Mar]],Biroja_faktiskās_izmaksas[#Headers],0))","v":{"v":0,"d":"0.00 EUR"}},{"$f":"INDEX(Biroja_plāns[],MATCH(INDEX(Biroja_vērtību_novirzes[],ROW()-ROW(Biroja_vērtību_novirzes[[#Headers],[Apr]]),1),INDEX(Biroja_plāns[],,1),0),MATCH(Biroja_vērtību_novirzes[[#Headers],[Apr]],Biroja_plāns[#Headers],0))-INDEX(Biroja_faktiskās_izmaksas[],MATCH(INDEX(Biroja_vērtību_novirzes[],ROW()-ROW(Biroja_vērtību_novirzes[[#Headers],[Apr]]),1),INDEX(Biroja_plāns[],,1),0),MATCH(Biroja_vērtību_novirzes[[#Headers],[Apr]],Biroja_faktiskās_izmaksas[#Headers],0))","v":{"v":0,"d":"0.00 EUR"}},{"$f":"INDEX(Biroja_plāns[],MATCH(INDEX(Biroja_vērtību_novirzes[],ROW()-ROW(Biroja_vērtību_novirzes[[#Headers],[Maijs]]),1),INDEX(Biroja_plāns[],,1),0),MATCH(Biroja_vērtību_novirzes[[#Headers],[Maijs]],Biroja_plāns[#Headers],0))-INDEX(Biroja_faktiskās_izmaksas[],MATCH(INDEX(Biroja_vērtību_novirzes[],ROW()-ROW(Biroja_vērtību_novirzes[[#Headers],[Maijs]]),1),INDEX(Biroja_plāns[],,1),0),MATCH(Biroja_vērtību_novirzes[[#Headers],[Maijs]],Biroja_faktiskās_izmaksas[#Headers],0))","v":{"v":0,"d":"0.00 EUR"}},{"$f":"INDEX(Biroja_plāns[],MATCH(INDEX(Biroja_vērtību_novirzes[],ROW()-ROW(Biroja_vērtību_novirzes[[#Headers],[Jūn]]),1),INDEX(Biroja_plāns[],,1),0),MATCH(Biroja_vērtību_novirzes[[#Headers],[Jūn]],Biroja_plāns[#Headers],0))-INDEX(Biroja_faktiskās_izmaksas[],MATCH(INDEX(Biroja_vērtību_novirzes[],ROW()-ROW(Biroja_vērtību_novirzes[[#Headers],[Jūn]]),1),INDEX(Biroja_plāns[],,1),0),MATCH(Biroja_vērtību_novirzes[[#Headers],[Jūn]],Biroja_faktiskās_izmaksas[#Headers],0))","v":{"v":0,"d":"0.00 EUR"}},{"$f":"INDEX(Biroja_plāns[],MATCH(INDEX(Biroja_vērtību_novirzes[],ROW()-ROW(Biroja_vērtību_novirzes[[#Headers],[Jūl]]),1),INDEX(Biroja_plāns[],,1),0),MATCH(Biroja_vērtību_novirzes[[#Headers],[Jūl]],Biroja_plāns[#Headers],0))-INDEX(Biroja_faktiskās_izmaksas[],MATCH(INDEX(Biroja_vērtību_novirzes[],ROW()-ROW(Biroja_vērtību_novirzes[[#Headers],[Jūl]]),1),INDEX(Biroja_plāns[],,1),0),MATCH(Biroja_vērtību_novirzes[[#Headers],[Jūl]],Biroja_faktiskās_izmaksas[#Headers],0))","v":{"v":600,"d":"600.00 EUR"}},{"$f":"INDEX(Biroja_plāns[],MATCH(INDEX(Biroja_vērtību_novirzes[],ROW()-ROW(Biroja_vērtību_novirzes[[#Headers],[Aug]]),1),INDEX(Biroja_plāns[],,1),0),MATCH(Biroja_vērtību_novirzes[[#Headers],[Aug]],Biroja_plāns[#Headers],0))-INDEX(Biroja_faktiskās_izmaksas[],MATCH(INDEX(Biroja_vērtību_novirzes[],ROW()-ROW(Biroja_vērtību_novirzes[[#Headers],[Aug]]),1),INDEX(Biroja_plāns[],,1),0),MATCH(Biroja_vērtību_novirzes[[#Headers],[Aug]],Biroja_faktiskās_izmaksas[#Headers],0))","v":{"v":600,"d":"600.00 EUR"}},{"$f":"INDEX(Biroja_plāns[],MATCH(INDEX(Biroja_vērtību_novirzes[],ROW()-ROW(Biroja_vērtību_novirzes[[#Headers],[Sep]]),1),INDEX(Biroja_plāns[],,1),0),MATCH(Biroja_vērtību_novirzes[[#Headers],[Sep]],Biroja_plāns[#Headers],0))-INDEX(Biroja_faktiskās_izmaksas[],MATCH(INDEX(Biroja_vērtību_novirzes[],ROW()-ROW(Biroja_vērtību_novirzes[[#Headers],[Sep]]),1),INDEX(Biroja_plāns[],,1),0),MATCH(Biroja_vērtību_novirzes[[#Headers],[Sep]],Biroja_faktiskās_izmaksas[#Headers],0))","v":{"v":600,"d":"600.00 EUR"}},{"$f":"INDEX(Biroja_plāns[],MATCH(INDEX(Biroja_vērtību_novirzes[],ROW()-ROW(Biroja_vērtību_novirzes[[#Headers],[Okt]]),1),INDEX(Biroja_plāns[],,1),0),MATCH(Biroja_vērtību_novirzes[[#Headers],[Okt]],Biroja_plāns[#Headers],0))-INDEX(Biroja_faktiskās_izmaksas[],MATCH(INDEX(Biroja_vērtību_novirzes[],ROW()-ROW(Biroja_vērtību_novirzes[[#Headers],[Okt]]),1),INDEX(Biroja_plāns[],,1),0),MATCH(Biroja_vērtību_novirzes[[#Headers],[Okt]],Biroja_faktiskās_izmaksas[#Headers],0))","v":{"v":600,"d":"600.00 EUR"}},{"$f":"INDEX(Biroja_plāns[],MATCH(INDEX(Biroja_vērtību_novirzes[],ROW()-ROW(Biroja_vērtību_novirzes[[#Headers],[Nov]]),1),INDEX(Biroja_plāns[],,1),0),MATCH(Biroja_vērtību_novirzes[[#Headers],[Nov]],Biroja_plāns[#Headers],0))-INDEX(Biroja_faktiskās_izmaksas[],MATCH(INDEX(Biroja_vērtību_novirzes[],ROW()-ROW(Biroja_vērtību_novirzes[[#Headers],[Nov]]),1),INDEX(Biroja_plāns[],,1),0),MATCH(Biroja_vērtību_novirzes[[#Headers],[Nov]],Biroja_faktiskās_izmaksas[#Headers],0))","v":{"v":600,"d":"600.00 EUR"}},{"$f":"INDEX(Biroja_plāns[],MATCH(INDEX(Biroja_vērtību_novirzes[],ROW()-ROW(Biroja_vērtību_novirzes[[#Headers],[Dec]]),1),INDEX(Biroja_plāns[],,1),0),MATCH(Biroja_vērtību_novirzes[[#Headers],[Dec]],Biroja_plāns[#Headers],0))-INDEX(Biroja_faktiskās_izmaksas[],MATCH(INDEX(Biroja_vērtību_novirzes[],ROW()-ROW(Biroja_vērtību_novirzes[[#Headers],[Dec]]),1),INDEX(Biroja_plāns[],,1),0),MATCH(Biroja_vērtību_novirzes[[#Headers],[Dec]],Biroja_faktiskās_izmaksas[#Headers],0))","v":{"v":600,"d":"600.00 EUR"}},{"$f":"SUM(Biroja_vērtību_novirzes[[#This Row],[Jan]:[Dec]])","v":{"v":3600,"d":"3,600.00 EUR"}}]
[null,"Starpsumma",{"$f":"SUBTOTAL(109,Biroja_vērtību_novirzes[Jan])","v":{"v":-17,"d":"-17.00 EUR"}},{"$f":"SUBTOTAL(109,Biroja_vērtību_novirzes[Feb])","v":{"v":72,"d":"72.00 EUR"}},{"$f":"SUBTOTAL(109,Biroja_vērtību_novirzes[Mar])","v":{"v":78,"d":"78.00 EUR"}},{"$f":"SUBTOTAL(109,Biroja_vērtību_novirzes[Apr])","v":{"v":-141,"d":"-141.00 EUR"}},{"$f":"SUBTOTAL(109,Biroja_vērtību_novirzes[Maijs])","v":{"v":-38,"d":"-38.00 EUR"}},{"$f":"SUBTOTAL(109,Biroja_vērtību_novirzes[Jūn])","v":{"v":16,"d":"16.00 EUR"}},{"$f":"SUBTOTAL(109,Biroja_vērtību_novirzes[Jūl])","v":{"v":11470,"d":"11,470.00 EUR"}},{"$f":"SUBTOTAL(109,Biroja_vērtību_novirzes[Aug])","v":{"v":11470,"d":"11,470.00 EUR"}},{"$f":"SUBTOTAL(109,Biroja_vērtību_novirzes[Sep])","v":{"v":11470,"d":"11,470.00 EUR"}},{"$f":"SUBTOTAL(109,Biroja_vērtību_novirzes[Okt])","v":{"v":11470,"d":"11,470.00 EUR"}},{"$f":"SUBTOTAL(109,Biroja_vērtību_novirzes[Nov])","v":{"v":11770,"d":"11,770.00 EUR"}},{"$f":"SUBTOTAL(109,Biroja_vērtību_novirzes[Dec])","v":{"v":11770,"d":"11,770.00 EUR"}},{"$f":"SUBTOTAL(109,Biroja_vērtību_novirzes[GADS])","v":{"v":69390,"d":"69,390.00 EUR"}}]
[]
["Mārketinga izmaksas novirze tiek automātiski aprēķināta tabulā Mārketinga vērtību novirzes, sākot ar šūnu pa labi. Nākamais norādījums ir šūnā A30.","Mārketinga izmaksas","Jan","Feb","Mar","Apr","Maijs","Jūn","Jūl","Aug","Sep","Okt","Nov","Dec","GADS"]
[null,"Tīmekļa vietnes viesošana",{"$f":"INDEX(Mārketinga_plāns[],MATCH(INDEX(Mārketinga_vērtību_novirzes[],ROW()-ROW(Mārketinga_vērtību_novirzes[[#Headers],[Jan]]),1),INDEX(Mārketinga_plāns[],,1),0),MATCH(Mārketinga_vērtību_novirzes[[#Headers],[Jan]],Mārketinga_plāns[#Headers],0))-INDEX(Mārketinga_faktiskās_izmaksas[],MATCH(INDEX(Mārketinga_vērtību_novirzes[],ROW()-ROW(Mārketinga_vērtību_novirzes[[#Headers],[Jan]]),1),INDEX(Mārketinga_plāns[],,1),0),MATCH(Mārketinga_vērtību_novirzes[[#Headers],[Jan]],Mārketinga_faktiskās_izmaksas[#Headers],0))","v":{"v":0,"d":"0.00 EUR"}},{"$f":"INDEX(Mārketinga_plāns[],MATCH(INDEX(Mārketinga_vērtību_novirzes[],ROW()-ROW(Mārketinga_vērtību_novirzes[[#Headers],[Feb]]),1),INDEX(Mārketinga_plāns[],,1),0),MATCH(Mārketinga_vērtību_novirzes[[#Headers],[Feb]],Mārketinga_plāns[#Headers],0))-INDEX(Mārketinga_faktiskās_izmaksas[],MATCH(INDEX(Mārketinga_vērtību_novirzes[],ROW()-ROW(Mārketinga_vērtību_novirzes[[#Headers],[Feb]]),1),INDEX(Mārketinga_plāns[],,1),0),MATCH(Mārketinga_vērtību_novirzes[[#Headers],[Feb]],Mārketinga_faktiskās_izmaksas[#Headers],0))","v":{"v":0,"d":"0.00 EUR"}},{"$f":"INDEX(Mārketinga_plāns[],MATCH(INDEX(Mārketinga_vērtību_novirzes[],ROW()-ROW(Mārketinga_vērtību_novirzes[[#Headers],[Mar]]),1),INDEX(Mārketinga_plāns[],,1),0),MATCH(Mārketinga_vērtību_novirzes[[#Headers],[Mar]],Mārketinga_plāns[#Headers],0))-INDEX(Mārketinga_faktiskās_izmaksas[],MATCH(INDEX(Mārketinga_vērtību_novirzes[],ROW()-ROW(Mārketinga_vērtību_novirzes[[#Headers],[Mar]]),1),INDEX(Mārketinga_plāns[],,1),0),MATCH(Mārketinga_vērtību_novirzes[[#Headers],[Mar]],Mārketinga_faktiskās_izmaksas[#Headers],0))","v":{"v":0,"d":"0.00 EUR"}},{"$f":"INDEX(Mārketinga_plāns[],MATCH(INDEX(Mārketinga_vērtību_novirzes[],ROW()-ROW(Mārketinga_vērtību_novirzes[[#Headers],[Apr]]),1),INDEX(Mārketinga_plāns[],,1),0),MATCH(Mārketinga_vērtību_novirzes[[#Headers],[Apr]],Mārketinga_plāns[#Headers],0))-INDEX(Mārketinga_faktiskās_izmaksas[],MATCH(INDEX(Mārketinga_vērtību_novirzes[],ROW()-ROW(Mārketinga_vērtību_novirzes[[#Headers],[Apr]]),1),INDEX(Mārketinga_plāns[],,1),0),MATCH(Mārketinga_vērtību_novirzes[[#Headers],[Apr]],Mārketinga_faktiskās_izmaksas[#Headers],0))","v":{"v":0,"d":"0.00 EUR"}},{"$f":"INDEX(Mārketinga_plāns[],MATCH(INDEX(Mārketinga_vērtību_novirzes[],ROW()-ROW(Mārketinga_vērtību_novirzes[[#Headers],[Maijs]]),1),INDEX(Mārketinga_plāns[],,1),0),MATCH(Mārketinga_vērtību_novirzes[[#Headers],[Maijs]],Mārketinga_plāns[#Headers],0))-INDEX(Mārketinga_faktiskās_izmaksas[],MATCH(INDEX(Mārketinga_vērtību_novirzes[],ROW()-ROW(Mārketinga_vērtību_novirzes[[#Headers],[Maijs]]),1),INDEX(Mārketinga_plāns[],,1),0),MATCH(Mārketinga_vērtību_novirzes[[#Headers],[Maijs]],Mārketinga_faktiskās_izmaksas[#Headers],0))","v":{"v":0,"d":"0.00 EUR"}},{"$f":"INDEX(Mārketinga_plāns[],MATCH(INDEX(Mārketinga_vērtību_novirzes[],ROW()-ROW(Mārketinga_vērtību_novirzes[[#Headers],[Jūn]]),1),INDEX(Mārketinga_plāns[],,1),0),MATCH(Mārketinga_vērtību_novirzes[[#Headers],[Jūn]],Mārketinga_plāns[#Headers],0))-INDEX(Mārketinga_faktiskās_izmaksas[],MATCH(INDEX(Mārketinga_vērtību_novirzes[],ROW()-ROW(Mārketinga_vērtību_novirzes[[#Headers],[Jūn]]),1),INDEX(Mārketinga_plāns[],,1),0),MATCH(Mārketinga_vērtību_novirzes[[#Headers],[Jūn]],Mārketinga_faktiskās_izmaksas[#Headers],0))","v":{"v":0,"d":"0.00 EUR"}},{"$f":"INDEX(Mārketinga_plāns[],MATCH(INDEX(Mārketinga_vērtību_novirzes[],ROW()-ROW(Mārketinga_vērtību_novirzes[[#Headers],[Jūl]]),1),INDEX(Mārketinga_plāns[],,1),0),MATCH(Mārketinga_vērtību_novirzes[[#Headers],[Jūl]],Mārketinga_plāns[#Headers],0))-INDEX(Mārketinga_faktiskās_izmaksas[],MATCH(INDEX(Mārketinga_vērtību_novirzes[],ROW()-ROW(Mārketinga_vērtību_novirzes[[#Headers],[Jūl]]),1),INDEX(Mārketinga_plāns[],,1),0),MATCH(Mārketinga_vērtību_novirzes[[#Headers],[Jūl]],Mārketinga_faktiskās_izmaksas[#Headers],0))","v":{"v":500,"d":"500.00 EUR"}},{"$f":"INDEX(Mārketinga_plāns[],MATCH(INDEX(Mārketinga_vērtību_novirzes[],ROW()-ROW(Mārketinga_vērtību_novirzes[[#Headers],[Aug]]),1),INDEX(Mārketinga_plāns[],,1),0),MATCH(Mārketinga_vērtību_novirzes[[#Headers],[Aug]],Mārketinga_plāns[#Headers],0))-INDEX(Mārketinga_faktiskās_izmaksas[],MATCH(INDEX(Mārketinga_vērtību_novirzes[],ROW()-ROW(Mārketinga_vērtību_novirzes[[#Headers],[Aug]]),1),INDEX(Mārketinga_plāns[],,1),0),MATCH(Mārketinga_vērtību_novirzes[[#Headers],[Aug]],Mārketinga_faktiskās_izmaksas[#Headers],0))","v":{"v":500,"d":"500.00 EUR"}},{"$f":"INDEX(Mārketinga_plāns[],MATCH(INDEX(Mārketinga_vērtību_novirzes[],ROW()-ROW(Mārketinga_vērtību_novirzes[[#Headers],[Sep]]),1),INDEX(Mārketinga_plāns[],,1),0),MATCH(Mārketinga_vērtību_novirzes[[#Headers],[Sep]],Mārketinga_plāns[#Headers],0))-INDEX(Mārketinga_faktiskās_izmaksas[],MATCH(INDEX(Mārketinga_vērtību_novirzes[],ROW()-ROW(Mārketinga_vērtību_novirzes[[#Headers],[Sep]]),1),INDEX(Mārketinga_plāns[],,1),0),MATCH(Mārketinga_vērtību_novirzes[[#Headers],[Sep]],Mārketinga_faktiskās_izmaksas[#Headers],0))","v":{"v":500,"d":"500.00 EUR"}},{"$f":"INDEX(Mārketinga_plāns[],MATCH(INDEX(Mārketinga_vērtību_novirzes[],ROW()-ROW(Mārketinga_vērtību_novirzes[[#Headers],[Okt]]),1),INDEX(Mārketinga_plāns[],,1),0),MATCH(Mārketinga_vērtību_novirzes[[#Headers],[Okt]],Mārketinga_plāns[#Headers],0))-INDEX(Mārketinga_faktiskās_izmaksas[],MATCH(INDEX(Mārketinga_vērtību_novirzes[],ROW()-ROW(Mārketinga_vērtību_novirzes[[#Headers],[Okt]]),1),INDEX(Mārketinga_plāns[],,1),0),MATCH(Mārketinga_vērtību_novirzes[[#Headers],[Okt]],Mārketinga_faktiskās_izmaksas[#Headers],0))","v":{"v":500,"d":"500.00 EUR"}},{"$f":"INDEX(Mārketinga_plāns[],MATCH(INDEX(Mārketinga_vērtību_novirzes[],ROW()-ROW(Mārketinga_vērtību_novirzes[[#Headers],[Nov]]),1),INDEX(Mārketinga_plāns[],,1),0),MATCH(Mārketinga_vērtību_novirzes[[#Headers],[Nov]],Mārketinga_plāns[#Headers],0))-INDEX(Mārketinga_faktiskās_izmaksas[],MATCH(INDEX(Mārketinga_vērtību_novirzes[],ROW()-ROW(Mārketinga_vērtību_novirzes[[#Headers],[Nov]]),1),INDEX(Mārketinga_plāns[],,1),0),MATCH(Mārketinga_vērtību_novirzes[[#Headers],[Nov]],Mārketinga_faktiskās_izmaksas[#Headers],0))","v":{"v":500,"d":"500.00 EUR"}},{"$f":"INDEX(Mārketinga_plāns[],MATCH(INDEX(Mārketinga_vērtību_novirzes[],ROW()-ROW(Mārketinga_vērtību_novirzes[[#Headers],[Dec]]),1),INDEX(Mārketinga_plāns[],,1),0),MATCH(Mārketinga_vērtību_novirzes[[#Headers],[Dec]],Mārketinga_plāns[#Headers],0))-INDEX(Mārketinga_faktiskās_izmaksas[],MATCH(INDEX(Mārketinga_vērtību_novirzes[],ROW()-ROW(Mārketinga_vērtību_novirzes[[#Headers],[Dec]]),1),INDEX(Mārketinga_plāns[],,1),0),MATCH(Mārketinga_vērtību_novirzes[[#Headers],[Dec]],Mārketinga_faktiskās_izmaksas[#Headers],0))","v":{"v":500,"d":"500.00 EUR"}},{"$f":"SUM(Mārketinga_vērtību_novirzes[[#This Row],[Jan]:[Dec]])","v":{"v":3000,"d":"3,000.00 EUR"}}]
[null,"Tīmekļa vietnes atjauninājumi",{"$f":"INDEX(Mārketinga_plāns[],MATCH(INDEX(Mārketinga_vērtību_novirzes[],ROW()-ROW(Mārketinga_vērtību_novirzes[[#Headers],[Jan]]),1),INDEX(Mārketinga_plāns[],,1),0),MATCH(Mārketinga_vērtību_novirzes[[#Headers],[Jan]],Mārketinga_plāns[#Headers],0))-INDEX(Mārketinga_faktiskās_izmaksas[],MATCH(INDEX(Mārketinga_vērtību_novirzes[],ROW()-ROW(Mārketinga_vērtību_novirzes[[#Headers],[Jan]]),1),INDEX(Mārketinga_plāns[],,1),0),MATCH(Mārketinga_vērtību_novirzes[[#Headers],[Jan]],Mārketinga_faktiskās_izmaksas[#Headers],0))","v":{"v":0,"d":"0.00 EUR"}},{"$f":"INDEX(Mārketinga_plāns[],MATCH(INDEX(Mārketinga_vērtību_novirzes[],ROW()-ROW(Mārketinga_vērtību_novirzes[[#Headers],[Feb]]),1),INDEX(Mārketinga_plāns[],,1),0),MATCH(Mārketinga_vērtību_novirzes[[#Headers],[Feb]],Mārketinga_plāns[#Headers],0))-INDEX(Mārketinga_faktiskās_izmaksas[],MATCH(INDEX(Mārketinga_vērtību_novirzes[],ROW()-ROW(Mārketinga_vērtību_novirzes[[#Headers],[Feb]]),1),INDEX(Mārketinga_plāns[],,1),0),MATCH(Mārketinga_vērtību_novirzes[[#Headers],[Feb]],Mārketinga_faktiskās_izmaksas[#Headers],0))","v":{"v":0,"d":"0.00 EUR"}},{"$f":"INDEX(Mārketinga_plāns[],MATCH(INDEX(Mārketinga_vērtību_novirzes[],ROW()-ROW(Mārketinga_vērtību_novirzes[[#Headers],[Mar]]),1),INDEX(Mārketinga_plāns[],,1),0),MATCH(Mārketinga_vērtību_novirzes[[#Headers],[Mar]],Mārketinga_plāns[#Headers],0))-INDEX(Mārketinga_faktiskās_izmaksas[],MATCH(INDEX(Mārketinga_vērtību_novirzes[],ROW()-ROW(Mārketinga_vērtību_novirzes[[#Headers],[Mar]]),1),INDEX(Mārketinga_plāns[],,1),0),MATCH(Mārketinga_vērtību_novirzes[[#Headers],[Mar]],Mārketinga_faktiskās_izmaksas[#Headers],0))","v":{"v":0,"d":"0.00 EUR"}},{"$f":"INDEX(Mārketinga_plāns[],MATCH(INDEX(Mārketinga_vērtību_novirzes[],ROW()-ROW(Mārketinga_vērtību_novirzes[[#Headers],[Apr]]),1),INDEX(Mārketinga_plāns[],,1),0),MATCH(Mārketinga_vērtību_novirzes[[#Headers],[Apr]],Mārketinga_plāns[#Headers],0))-INDEX(Mārketinga_faktiskās_izmaksas[],MATCH(INDEX(Mārketinga_vērtību_novirzes[],ROW()-ROW(Mārketinga_vērtību_novirzes[[#Headers],[Apr]]),1),INDEX(Mārketinga_plāns[],,1),0),MATCH(Mārketinga_vērtību_novirzes[[#Headers],[Apr]],Mārketinga_faktiskās_izmaksas[#Headers],0))","v":{"v":0,"d":"0.00 EUR"}},{"$f":"INDEX(Mārketinga_plāns[],MATCH(INDEX(Mārketinga_vērtību_novirzes[],ROW()-ROW(Mārketinga_vērtību_novirzes[[#Headers],[Maijs]]),1),INDEX(Mārketinga_plāns[],,1),0),MATCH(Mārketinga_vērtību_novirzes[[#Headers],[Maijs]],Mārketinga_plāns[#Headers],0))-INDEX(Mārketinga_faktiskās_izmaksas[],MATCH(INDEX(Mārketinga_vērtību_novirzes[],ROW()-ROW(Mārketinga_vērtību_novirzes[[#Headers],[Maijs]]),1),INDEX(Mārketinga_plāns[],,1),0),MATCH(Mārketinga_vērtību_novirzes[[#Headers],[Maijs]],Mārketinga_faktiskās_izmaksas[#Headers],0))","v":{"v":0,"d":"0.00 EUR"}},{"$f":"INDEX(Mārketinga_plāns[],MATCH(INDEX(Mārketinga_vērtību_novirzes[],ROW()-ROW(Mārketinga_vērtību_novirzes[[#Headers],[Jūn]]),1),INDEX(Mārketinga_plāns[],,1),0),MATCH(Mārketinga_vērtību_novirzes[[#Headers],[Jūn]],Mārketinga_plāns[#Headers],0))-INDEX(Mārketinga_faktiskās_izmaksas[],MATCH(INDEX(Mārketinga_vērtību_novirzes[],ROW()-ROW(Mārketinga_vērtību_novirzes[[#Headers],[Jūn]]),1),INDEX(Mārketinga_plāns[],,1),0),MATCH(Mārketinga_vērtību_novirzes[[#Headers],[Jūn]],Mārketinga_faktiskās_izmaksas[#Headers],0))","v":{"v":-500,"d":"-500.00 EUR"}},{"$f":"INDEX(Mārketinga_plāns[],MATCH(INDEX(Mārketinga_vērtību_novirzes[],ROW()-ROW(Mārketinga_vērtību_novirzes[[#Headers],[Jūl]]),1),INDEX(Mārketinga_plāns[],,1),0),MATCH(Mārketinga_vērtību_novirzes[[#Headers],[Jūl]],Mārketinga_plāns[#Headers],0))-INDEX(Mārketinga_faktiskās_izmaksas[],MATCH(INDEX(Mārketinga_vērtību_novirzes[],ROW()-ROW(Mārketinga_vērtību_novirzes[[#Headers],[Jūl]]),1),INDEX(Mārketinga_plāns[],,1),0),MATCH(Mārketinga_vērtību_novirzes[[#Headers],[Jūl]],Mārketinga_faktiskās_izmaksas[#Headers],0))","v":{"v":200,"d":"200.00 EUR"}},{"$f":"INDEX(Mārketinga_plāns[],MATCH(INDEX(Mārketinga_vērtību_novirzes[],ROW()-ROW(Mārketinga_vērtību_novirzes[[#Headers],[Aug]]),1),INDEX(Mārketinga_plāns[],,1),0),MATCH(Mārketinga_vērtību_novirzes[[#Headers],[Aug]],Mārketinga_plāns[#Headers],0))-INDEX(Mārketinga_faktiskās_izmaksas[],MATCH(INDEX(Mārketinga_vērtību_novirzes[],ROW()-ROW(Mārketinga_vērtību_novirzes[[#Headers],[Aug]]),1),INDEX(Mārketinga_plāns[],,1),0),MATCH(Mārketinga_vērtību_novirzes[[#Headers],[Aug]],Mārketinga_faktiskās_izmaksas[#Headers],0))","v":{"v":200,"d":"200.00 EUR"}},{"$f":"INDEX(Mārketinga_plāns[],MATCH(INDEX(Mārketinga_vērtību_novirzes[],ROW()-ROW(Mārketinga_vērtību_novirzes[[#Headers],[Sep]]),1),INDEX(Mārketinga_plāns[],,1),0),MATCH(Mārketinga_vērtību_novirzes[[#Headers],[Sep]],Mārketinga_plāns[#Headers],0))-INDEX(Mārketinga_faktiskās_izmaksas[],MATCH(INDEX(Mārketinga_vērtību_novirzes[],ROW()-ROW(Mārketinga_vērtību_novirzes[[#Headers],[Sep]]),1),INDEX(Mārketinga_plāns[],,1),0),MATCH(Mārketinga_vērtību_novirzes[[#Headers],[Sep]],Mārketinga_faktiskās_izmaksas[#Headers],0))","v":{"v":200,"d":"200.00 EUR"}},{"$f":"INDEX(Mārketinga_plāns[],MATCH(INDEX(Mārketinga_vērtību_novirzes[],ROW()-ROW(Mārketinga_vērtību_novirzes[[#Headers],[Okt]]),1),INDEX(Mārketinga_plāns[],,1),0),MATCH(Mārketinga_vērtību_novirzes[[#Headers],[Okt]],Mārketinga_plāns[#Headers],0))-INDEX(Mārketinga_faktiskās_izmaksas[],MATCH(INDEX(Mārketinga_vērtību_novirzes[],ROW()-ROW(Mārketinga_vērtību_novirzes[[#Headers],[Okt]]),1),INDEX(Mārketinga_plāns[],,1),0),MATCH(Mārketinga_vērtību_novirzes[[#Headers],[Okt]],Mārketinga_faktiskās_izmaksas[#Headers],0))","v":{"v":200,"d":"200.00 EUR"}},{"$f":"INDEX(Mārketinga_plāns[],MATCH(INDEX(Mārketinga_vērtību_novirzes[],ROW()-ROW(Mārketinga_vērtību_novirzes[[#Headers],[Nov]]),1),INDEX(Mārketinga_plāns[],,1),0),MATCH(Mārketinga_vērtību_novirzes[[#Headers],[Nov]],Mārketinga_plāns[#Headers],0))-INDEX(Mārketinga_faktiskās_izmaksas[],MATCH(INDEX(Mārketinga_vērtību_novirzes[],ROW()-ROW(Mārketinga_vērtību_novirzes[[#Headers],[Nov]]),1),INDEX(Mārketinga_plāns[],,1),0),MATCH(Mārketinga_vērtību_novirzes[[#Headers],[Nov]],Mārketinga_faktiskās_izmaksas[#Headers],0))","v":{"v":200,"d":"200.00 EUR"}},{"$f":"INDEX(Mārketinga_plāns[],MATCH(INDEX(Mārketinga_vērtību_novirzes[],ROW()-ROW(Mārketinga_vērtību_novirzes[[#Headers],[Dec]]),1),INDEX(Mārketinga_plāns[],,1),0),MATCH(Mārketinga_vērtību_novirzes[[#Headers],[Dec]],Mārketinga_plāns[#Headers],0))-INDEX(Mārketinga_faktiskās_izmaksas[],MATCH(INDEX(Mārketinga_vērtību_novirzes[],ROW()-ROW(Mārketinga_vērtību_novirzes[[#Headers],[Dec]]),1),INDEX(Mārketinga_plāns[],,1),0),MATCH(Mārketinga_vērtību_novirzes[[#Headers],[Dec]],Mārketinga_faktiskās_izmaksas[#Headers],0))","v":{"v":1000,"d":"1,000.00 EUR"}},{"$f":"SUM(Mārketinga_vērtību_novirzes[[#This Row],[Jan]:[Dec]])","v":{"v":1500,"d":"1,500.00 EUR"}}]
[null,"Papildu sagatavošana",{"$f":"INDEX(Mārketinga_plāns[],MATCH(INDEX(Mārketinga_vērtību_novirzes[],ROW()-ROW(Mārketinga_vērtību_novirzes[[#Headers],[Jan]]),1),INDEX(Mārketinga_plāns[],,1),0),MATCH(Mārketinga_vērtību_novirzes[[#Headers],[Jan]],Mārketinga_plāns[#Headers],0))-INDEX(Mārketinga_faktiskās_izmaksas[],MATCH(INDEX(Mārketinga_vērtību_novirzes[],ROW()-ROW(Mārketinga_vērtību_novirzes[[#Headers],[Jan]]),1),INDEX(Mārketinga_plāns[],,1),0),MATCH(Mārketinga_vērtību_novirzes[[#Headers],[Jan]],Mārketinga_faktiskās_izmaksas[#Headers],0))","v":{"v":200,"d":"200.00 EUR"}},{"$f":"INDEX(Mārketinga_plāns[],MATCH(INDEX(Mārketinga_vērtību_novirzes[],ROW()-ROW(Mārketinga_vērtību_novirzes[[#Headers],[Feb]]),1),INDEX(Mārketinga_plāns[],,1),0),MATCH(Mārketinga_vērtību_novirzes[[#Headers],[Feb]],Mārketinga_plāns[#Headers],0))-INDEX(Mārketinga_faktiskās_izmaksas[],MATCH(INDEX(Mārketinga_vērtību_novirzes[],ROW()-ROW(Mārketinga_vērtību_novirzes[[#Headers],[Feb]]),1),INDEX(Mārketinga_plāns[],,1),0),MATCH(Mārketinga_vērtību_novirzes[[#Headers],[Feb]],Mārketinga_faktiskās_izmaksas[#Headers],0))","v":{"v":0,"d":"0.00 EUR"}},{"$f":"INDEX(Mārketinga_plāns[],MATCH(INDEX(Mārketinga_vērtību_novirzes[],ROW()-ROW(Mārketinga_vērtību_novirzes[[#Headers],[Mar]]),1),INDEX(Mārketinga_plāns[],,1),0),MATCH(Mārketinga_vērtību_novirzes[[#Headers],[Mar]],Mārketinga_plāns[#Headers],0))-INDEX(Mārketinga_faktiskās_izmaksas[],MATCH(INDEX(Mārketinga_vērtību_novirzes[],ROW()-ROW(Mārketinga_vērtību_novirzes[[#Headers],[Mar]]),1),INDEX(Mārketinga_plāns[],,1),0),MATCH(Mārketinga_vērtību_novirzes[[#Headers],[Mar]],Mārketinga_faktiskās_izmaksas[#Headers],0))","v":{"v":0,"d":"0.00 EUR"}},{"$f":"INDEX(Mārketinga_plāns[],MATCH(INDEX(Mārketinga_vērtību_novirzes[],ROW()-ROW(Mārketinga_vērtību_novirzes[[#Headers],[Apr]]),1),INDEX(Mārketinga_plāns[],,1),0),MATCH(Mārketinga_vērtību_novirzes[[#Headers],[Apr]],Mārketinga_plāns[#Headers],0))-INDEX(Mārketinga_faktiskās_izmaksas[],MATCH(INDEX(Mārketinga_vērtību_novirzes[],ROW()-ROW(Mārketinga_vērtību_novirzes[[#Headers],[Apr]]),1),INDEX(Mārketinga_plāns[],,1),0),MATCH(Mārketinga_vērtību_novirzes[[#Headers],[Apr]],Mārketinga_faktiskās_izmaksas[#Headers],0))","v":{"v":-500,"d":"-500.00 EUR"}},{"$f":"INDEX(Mārketinga_plāns[],MATCH(INDEX(Mārketinga_vērtību_novirzes[],ROW()-ROW(Mārketinga_vērtību_novirzes[[#Headers],[Maijs]]),1),INDEX(Mārketinga_plāns[],,1),0),MATCH(Mārketinga_vērtību_novirzes[[#Headers],[Maijs]],Mārketinga_plāns[#Headers],0))-INDEX(Mārketinga_faktiskās_izmaksas[],MATCH(INDEX(Mārketinga_vērtību_novirzes[],ROW()-ROW(Mārketinga_vērtību_novirzes[[#Headers],[Maijs]]),1),INDEX(Mārketinga_plāns[],,1),0),MATCH(Mārketinga_vērtību_novirzes[[#Headers],[Maijs]],Mārketinga_faktiskās_izmaksas[#Headers],0))","v":{"v":0,"d":"0.00 EUR"}},{"$f":"INDEX(Mārketinga_plāns[],MATCH(INDEX(Mārketinga_vērtību_novirzes[],ROW()-ROW(Mārketinga_vērtību_novirzes[[#Headers],[Jūn]]),1),INDEX(Mārketinga_plāns[],,1),0),MATCH(Mārketinga_vērtību_novirzes[[#Headers],[Jūn]],Mārketinga_plāns[#Headers],0))-INDEX(Mārketinga_faktiskās_izmaksas[],MATCH(INDEX(Mārketinga_vērtību_novirzes[],ROW()-ROW(Mārketinga_vērtību_novirzes[[#Headers],[Jūn]]),1),INDEX(Mārketinga_plāns[],,1),0),MATCH(Mārketinga_vērtību_novirzes[[#Headers],[Jūn]],Mārketinga_faktiskās_izmaksas[#Headers],0))","v":{"v":0,"d":"0.00 EUR"}},{"$f":"INDEX(Mārketinga_plāns[],MATCH(INDEX(Mārketinga_vērtību_novirzes[],ROW()-ROW(Mārketinga_vērtību_novirzes[[#Headers],[Jūl]]),1),INDEX(Mārketinga_plāns[],,1),0),MATCH(Mārketinga_vērtību_novirzes[[#Headers],[Jūl]],Mārketinga_plāns[#Headers],0))-INDEX(Mārketinga_faktiskās_izmaksas[],MATCH(INDEX(Mārketinga_vērtību_novirzes[],ROW()-ROW(Mārketinga_vērtību_novirzes[[#Headers],[Jūl]]),1),INDEX(Mārketinga_plāns[],,1),0),MATCH(Mārketinga_vērtību_novirzes[[#Headers],[Jūl]],Mārketinga_faktiskās_izmaksas[#Headers],0))","v":{"v":5000,"d":"5,000.00 EUR"}},{"$f":"INDEX(Mārketinga_plāns[],MATCH(INDEX(Mārketinga_vērtību_novirzes[],ROW()-ROW(Mārketinga_vērtību_novirzes[[#Headers],[Aug]]),1),INDEX(Mārketinga_plāns[],,1),0),MATCH(Mārketinga_vērtību_novirzes[[#Headers],[Aug]],Mārketinga_plāns[#Headers],0))-INDEX(Mārketinga_faktiskās_izmaksas[],MATCH(INDEX(Mārketinga_vērtību_novirzes[],ROW()-ROW(Mārketinga_vērtību_novirzes[[#Headers],[Aug]]),1),INDEX(Mārketinga_plāns[],,1),0),MATCH(Mārketinga_vērtību_novirzes[[#Headers],[Aug]],Mārketinga_faktiskās_izmaksas[#Headers],0))","v":{"v":0,"d":"0.00 EUR"}},{"$f":"INDEX(Mārketinga_plāns[],MATCH(INDEX(Mārketinga_vērtību_novirzes[],ROW()-ROW(Mārketinga_vērtību_novirzes[[#Headers],[Sep]]),1),INDEX(Mārketinga_plāns[],,1),0),MATCH(Mārketinga_vērtību_novirzes[[#Headers],[Sep]],Mārketinga_plāns[#Headers],0))-INDEX(Mārketinga_faktiskās_izmaksas[],MATCH(INDEX(Mārketinga_vērtību_novirzes[],ROW()-ROW(Mārketinga_vērtību_novirzes[[#Headers],[Sep]]),1),INDEX(Mārketinga_plāns[],,1),0),MATCH(Mārketinga_vērtību_novirzes[[#Headers],[Sep]],Mārketinga_faktiskās_izmaksas[#Headers],0))","v":{"v":0,"d":"0.00 EUR"}},{"$f":"INDEX(Mārketinga_plāns[],MATCH(INDEX(Mārketinga_vērtību_novirzes[],ROW()-ROW(Mārketinga_vērtību_novirzes[[#Headers],[Okt]]),1),INDEX(Mārketinga_plāns[],,1),0),MATCH(Mārketinga_vērtību_novirzes[[#Headers],[Okt]],Mārketinga_plāns[#Headers],0))-INDEX(Mārketinga_faktiskās_izmaksas[],MATCH(INDEX(Mārketinga_vērtību_novirzes[],ROW()-ROW(Mārketinga_vērtību_novirzes[[#Headers],[Okt]]),1),INDEX(Mārketinga_plāns[],,1),0),MATCH(Mārketinga_vērtību_novirzes[[#Headers],[Okt]],Mārketinga_faktiskās_izmaksas[#Headers],0))","v":{"v":5000,"d":"5,000.00 EUR"}},{"$f":"INDEX(Mārketinga_plāns[],MATCH(INDEX(Mārketinga_vērtību_novirzes[],ROW()-ROW(Mārketinga_vērtību_novirzes[[#Headers],[Nov]]),1),INDEX(Mārketinga_plāns[],,1),0),MATCH(Mārketinga_vērtību_novirzes[[#Headers],[Nov]],Mārketinga_plāns[#Headers],0))-INDEX(Mārketinga_faktiskās_izmaksas[],MATCH(INDEX(Mārketinga_vērtību_novirzes[],ROW()-ROW(Mārketinga_vērtību_novirzes[[#Headers],[Nov]]),1),INDEX(Mārketinga_plāns[],,1),0),MATCH(Mārketinga_vērtību_novirzes[[#Headers],[Nov]],Mārketinga_faktiskās_izmaksas[#Headers],0))","v":{"v":0,"d":"0.00 EUR"}},{"$f":"INDEX(Mārketinga_plāns[],MATCH(INDEX(Mārketinga_vērtību_novirzes[],ROW()-ROW(Mārketinga_vērtību_novirzes[[#Headers],[Dec]]),1),INDEX(Mārketinga_plāns[],,1),0),MATCH(Mārketinga_vērtību_novirzes[[#Headers],[Dec]],Mārketinga_plāns[#Headers],0))-INDEX(Mārketinga_faktiskās_izmaksas[],MATCH(INDEX(Mārketinga_vērtību_novirzes[],ROW()-ROW(Mārketinga_vērtību_novirzes[[#Headers],[Dec]]),1),INDEX(Mārketinga_plāns[],,1),0),MATCH(Mārketinga_vērtību_novirzes[[#Headers],[Dec]],Mārketinga_faktiskās_izmaksas[#Headers],0))","v":{"v":0,"d":"0.00 EUR"}},{"$f":"SUM(Mārketinga_vērtību_novirzes[[#This Row],[Jan]:[Dec]])","v":{"v":9700,"d":"9,700.00 EUR"}}]
[null,"Papildu drukāšana",{"$f":"INDEX(Mārketinga_plāns[],MATCH(INDEX(Mārketinga_vērtību_novirzes[],ROW()-ROW(Mārketinga_vērtību_novirzes[[#Headers],[Jan]]),1),INDEX(Mārketinga_plāns[],,1),0),MATCH(Mārketinga_vērtību_novirzes[[#Headers],[Jan]],Mārketinga_plāns[#Headers],0))-INDEX(Mārketinga_faktiskās_izmaksas[],MATCH(INDEX(Mārketinga_vērtību_novirzes[],ROW()-ROW(Mārketinga_vērtību_novirzes[[#Headers],[Jan]]),1),INDEX(Mārketinga_plāns[],,1),0),MATCH(Mārketinga_vērtību_novirzes[[#Headers],[Jan]],Mārketinga_faktiskās_izmaksas[#Headers],0))","v":{"v":100,"d":"100.00 EUR"}},{"$f":"INDEX(Mārketinga_plāns[],MATCH(INDEX(Mārketinga_vērtību_novirzes[],ROW()-ROW(Mārketinga_vērtību_novirzes[[#Headers],[Feb]]),1),INDEX(Mārketinga_plāns[],,1),0),MATCH(Mārketinga_vērtību_novirzes[[#Headers],[Feb]],Mārketinga_plāns[#Headers],0))-INDEX(Mārketinga_faktiskās_izmaksas[],MATCH(INDEX(Mārketinga_vērtību_novirzes[],ROW()-ROW(Mārketinga_vērtību_novirzes[[#Headers],[Feb]]),1),INDEX(Mārketinga_plāns[],,1),0),MATCH(Mārketinga_vērtību_novirzes[[#Headers],[Feb]],Mārketinga_faktiskās_izmaksas[#Headers],0))","v":{"v":-300,"d":"-300.00 EUR"}},{"$f":"INDEX(Mārketinga_plāns[],MATCH(INDEX(Mārketinga_vērtību_novirzes[],ROW()-ROW(Mārketinga_vērtību_novirzes[[#Headers],[Mar]]),1),INDEX(Mārketinga_plāns[],,1),0),MATCH(Mārketinga_vērtību_novirzes[[#Headers],[Mar]],Mārketinga_plāns[#Headers],0))-INDEX(Mārketinga_faktiskās_izmaksas[],MATCH(INDEX(Mārketinga_vērtību_novirzes[],ROW()-ROW(Mārketinga_vērtību_novirzes[[#Headers],[Mar]]),1),INDEX(Mārketinga_plāns[],,1),0),MATCH(Mārketinga_vērtību_novirzes[[#Headers],[Mar]],Mārketinga_faktiskās_izmaksas[#Headers],0))","v":{"v":100,"d":"100.00 EUR"}},{"$f":"INDEX(Mārketinga_plāns[],MATCH(INDEX(Mārketinga_vērtību_novirzes[],ROW()-ROW(Mārketinga_vērtību_novirzes[[#Headers],[Apr]]),1),INDEX(Mārketinga_plāns[],,1),0),MATCH(Mārketinga_vērtību_novirzes[[#Headers],[Apr]],Mārketinga_plāns[#Headers],0))-INDEX(Mārketinga_faktiskās_izmaksas[],MATCH(INDEX(Mārketinga_vērtību_novirzes[],ROW()-ROW(Mārketinga_vērtību_novirzes[[#Headers],[Apr]]),1),INDEX(Mārketinga_plāns[],,1),0),MATCH(Mārketinga_vērtību_novirzes[[#Headers],[Apr]],Mārketinga_faktiskās_izmaksas[#Headers],0))","v":{"v":100,"d":"100.00 EUR"}},{"$f":"INDEX(Mārketinga_plāns[],MATCH(INDEX(Mārketinga_vērtību_novirzes[],ROW()-ROW(Mārketinga_vērtību_novirzes[[#Headers],[Maijs]]),1),INDEX(Mārketinga_plāns[],,1),0),MATCH(Mārketinga_vērtību_novirzes[[#Headers],[Maijs]],Mārketinga_plāns[#Headers],0))-INDEX(Mārketinga_faktiskās_izmaksas[],MATCH(INDEX(Mārketinga_vērtību_novirzes[],ROW()-ROW(Mārketinga_vērtību_novirzes[[#Headers],[Maijs]]),1),INDEX(Mārketinga_plāns[],,1),0),MATCH(Mārketinga_vērtību_novirzes[[#Headers],[Maijs]],Mārketinga_faktiskās_izmaksas[#Headers],0))","v":{"v":-400,"d":"-400.00 EUR"}},{"$f":"INDEX(Mārketinga_plāns[],MATCH(INDEX(Mārketinga_vērtību_novirzes[],ROW()-ROW(Mārketinga_vērtību_novirzes[[#Headers],[Jūn]]),1),INDEX(Mārketinga_plāns[],,1),0),MATCH(Mārketinga_vērtību_novirzes[[#Headers],[Jūn]],Mārketinga_plāns[#Headers],0))-INDEX(Mārketinga_faktiskās_izmaksas[],MATCH(INDEX(Mārketinga_vērtību_novirzes[],ROW()-ROW(Mārketinga_vērtību_novirzes[[#Headers],[Jūn]]),1),INDEX(Mārketinga_plāns[],,1),0),MATCH(Mārketinga_vērtību_novirzes[[#Headers],[Jūn]],Mārketinga_faktiskās_izmaksas[#Headers],0))","v":{"v":20,"d":"20.00 EUR"}},{"$f":"INDEX(Mārketinga_plāns[],MATCH(INDEX(Mārketinga_vērtību_novirzes[],ROW()-ROW(Mārketinga_vērtību_novirzes[[#Headers],[Jūl]]),1),INDEX(Mārketinga_plāns[],,1),0),MATCH(Mārketinga_vērtību_novirzes[[#Headers],[Jūl]],Mārketinga_plāns[#Headers],0))-INDEX(Mārketinga_faktiskās_izmaksas[],MATCH(INDEX(Mārketinga_vērtību_novirzes[],ROW()-ROW(Mārketinga_vērtību_novirzes[[#Headers],[Jūl]]),1),INDEX(Mārketinga_plāns[],,1),0),MATCH(Mārketinga_vērtību_novirzes[[#Headers],[Jūl]],Mārketinga_faktiskās_izmaksas[#Headers],0))","v":{"v":200,"d":"200.00 EUR"}},{"$f":"INDEX(Mārketinga_plāns[],MATCH(INDEX(Mārketinga_vērtību_novirzes[],ROW()-ROW(Mārketinga_vērtību_novirzes[[#Headers],[Aug]]),1),INDEX(Mārketinga_plāns[],,1),0),MATCH(Mārketinga_vērtību_novirzes[[#Headers],[Aug]],Mārketinga_plāns[#Headers],0))-INDEX(Mārketinga_faktiskās_izmaksas[],MATCH(INDEX(Mārketinga_vērtību_novirzes[],ROW()-ROW(Mārketinga_vērtību_novirzes[[#Headers],[Aug]]),1),INDEX(Mārketinga_plāns[],,1),0),MATCH(Mārketinga_vērtību_novirzes[[#Headers],[Aug]],Mārketinga_faktiskās_izmaksas[#Headers],0))","v":{"v":200,"d":"200.00 EUR"}},{"$f":"INDEX(Mārketinga_plāns[],MATCH(INDEX(Mārketinga_vērtību_novirzes[],ROW()-ROW(Mārketinga_vērtību_novirzes[[#Headers],[Sep]]),1),INDEX(Mārketinga_plāns[],,1),0),MATCH(Mārketinga_vērtību_novirzes[[#Headers],[Sep]],Mārketinga_plāns[#Headers],0))-INDEX(Mārketinga_faktiskās_izmaksas[],MATCH(INDEX(Mārketinga_vērtību_novirzes[],ROW()-ROW(Mārketinga_vērtību_novirzes[[#Headers],[Sep]]),1),INDEX(Mārketinga_plāns[],,1),0),MATCH(Mārketinga_vērtību_novirzes[[#Headers],[Sep]],Mārketinga_faktiskās_izmaksas[#Headers],0))","v":{"v":200,"d":"200.00 EUR"}},{"$f":"INDEX(Mārketinga_plāns[],MATCH(INDEX(Mārketinga_vērtību_novirzes[],ROW()-ROW(Mārketinga_vērtību_novirzes[[#Headers],[Okt]]),1),INDEX(Mārketinga_plāns[],,1),0),MATCH(Mārketinga_vērtību_novirzes[[#Headers],[Okt]],Mārketinga_plāns[#Headers],0))-INDEX(Mārketinga_faktiskās_izmaksas[],MATCH(INDEX(Mārketinga_vērtību_novirzes[],ROW()-ROW(Mārketinga_vērtību_novirzes[[#Headers],[Okt]]),1),INDEX(Mārketinga_plāns[],,1),0),MATCH(Mārketinga_vērtību_novirzes[[#Headers],[Okt]],Mārketinga_faktiskās_izmaksas[#Headers],0))","v":{"v":200,"d":"200.00 EUR"}},{"$f":"INDEX(Mārketinga_plāns[],MATCH(INDEX(Mārketinga_vērtību_novirzes[],ROW()-ROW(Mārketinga_vērtību_novirzes[[#Headers],[Nov]]),1),INDEX(Mārketinga_plāns[],,1),0),MATCH(Mārketinga_vērtību_novirzes[[#Headers],[Nov]],Mārketinga_plāns[#Headers],0))-INDEX(Mārketinga_faktiskās_izmaksas[],MATCH(INDEX(Mārketinga_vērtību_novirzes[],ROW()-ROW(Mārketinga_vērtību_novirzes[[#Headers],[Nov]]),1),INDEX(Mārketinga_plāns[],,1),0),MATCH(Mārketinga_vērtību_novirzes[[#Headers],[Nov]],Mārketinga_faktiskās_izmaksas[#Headers],0))","v":{"v":200,"d":"200.00 EUR"}},{"$f":"INDEX(Mārketinga_plāns[],MATCH(INDEX(Mārketinga_vērtību_novirzes[],ROW()-ROW(Mārketinga_vērtību_novirzes[[#Headers],[Dec]]),1),INDEX(Mārketinga_plāns[],,1),0),MATCH(Mārketinga_vērtību_novirzes[[#Headers],[Dec]],Mārketinga_plāns[#Headers],0))-INDEX(Mārketinga_faktiskās_izmaksas[],MATCH(INDEX(Mārketinga_vērtību_novirzes[],ROW()-ROW(Mārketinga_vērtību_novirzes[[#Headers],[Dec]]),1),INDEX(Mārketinga_plāns[],,1),0),MATCH(Mārketinga_vērtību_novirzes[[#Headers],[Dec]],Mārketinga_faktiskās_izmaksas[#Headers],0))","v":{"v":200,"d":"200.00 EUR"}},{"$f":"SUM(Mārketinga_vērtību_novirzes[[#This Row],[Jan]:[Dec]])","v":{"v":820,"d":"820.00 EUR"}}]
[null,"Mārketinga pasākumi",{"$f":"INDEX(Mārketinga_plāns[],MATCH(INDEX(Mārketinga_vērtību_novirzes[],ROW()-ROW(Mārketinga_vērtību_novirzes[[#Headers],[Jan]]),1),INDEX(Mārketinga_plāns[],,1),0),MATCH(Mārketinga_vērtību_novirzes[[#Headers],[Jan]],Mārketinga_plāns[#Headers],0))-INDEX(Mārketinga_faktiskās_izmaksas[],MATCH(INDEX(Mārketinga_vērtību_novirzes[],ROW()-ROW(Mārketinga_vērtību_novirzes[[#Headers],[Jan]]),1),INDEX(Mārketinga_plāns[],,1),0),MATCH(Mārketinga_vērtību_novirzes[[#Headers],[Jan]],Mārketinga_faktiskās_izmaksas[#Headers],0))","v":{"v":200,"d":"200.00 EUR"}},{"$f":"INDEX(Mārketinga_plāns[],MATCH(INDEX(Mārketinga_vērtību_novirzes[],ROW()-ROW(Mārketinga_vērtību_novirzes[[#Headers],[Feb]]),1),INDEX(Mārketinga_plāns[],,1),0),MATCH(Mārketinga_vērtību_novirzes[[#Headers],[Feb]],Mārketinga_plāns[#Headers],0))-INDEX(Mārketinga_faktiskās_izmaksas[],MATCH(INDEX(Mārketinga_vērtību_novirzes[],ROW()-ROW(Mārketinga_vērtību_novirzes[[#Headers],[Feb]]),1),INDEX(Mārketinga_plāns[],,1),0),MATCH(Mārketinga_vērtību_novirzes[[#Headers],[Feb]],Mārketinga_faktiskās_izmaksas[#Headers],0))","v":{"v":-200,"d":"-200.00 EUR"}},{"$f":"INDEX(Mārketinga_plāns[],MATCH(INDEX(Mārketinga_vērtību_novirzes[],ROW()-ROW(Mārketinga_vērtību_novirzes[[#Headers],[Mar]]),1),INDEX(Mārketinga_plāns[],,1),0),MATCH(Mārketinga_vērtību_novirzes[[#Headers],[Mar]],Mārketinga_plāns[#Headers],0))-INDEX(Mārketinga_faktiskās_izmaksas[],MATCH(INDEX(Mārketinga_vērtību_novirzes[],ROW()-ROW(Mārketinga_vērtību_novirzes[[#Headers],[Mar]]),1),INDEX(Mārketinga_plāns[],,1),0),MATCH(Mārketinga_vērtību_novirzes[[#Headers],[Mar]],Mārketinga_faktiskās_izmaksas[#Headers],0))","v":{"v":-200,"d":"-200.00 EUR"}},{"$f":"INDEX(Mārketinga_plāns[],MATCH(INDEX(Mārketinga_vērtību_novirzes[],ROW()-ROW(Mārketinga_vērtību_novirzes[[#Headers],[Apr]]),1),INDEX(Mārketinga_plāns[],,1),0),MATCH(Mārketinga_vērtību_novirzes[[#Headers],[Apr]],Mārketinga_plāns[#Headers],0))-INDEX(Mārketinga_faktiskās_izmaksas[],MATCH(INDEX(Mārketinga_vērtību_novirzes[],ROW()-ROW(Mārketinga_vērtību_novirzes[[#Headers],[Apr]]),1),INDEX(Mārketinga_plāns[],,1),0),MATCH(Mārketinga_vērtību_novirzes[[#Headers],[Apr]],Mārketinga_faktiskās_izmaksas[#Headers],0))","v":{"v":300,"d":"300.00 EUR"}},{"$f":"INDEX(Mārketinga_plāns[],MATCH(INDEX(Mārketinga_vērtību_novirzes[],ROW()-ROW(Mārketinga_vērtību_novirzes[[#Headers],[Maijs]]),1),INDEX(Mārketinga_plāns[],,1),0),MATCH(Mārketinga_vērtību_novirzes[[#Headers],[Maijs]],Mārketinga_plāns[#Headers],0))-INDEX(Mārketinga_faktiskās_izmaksas[],MATCH(INDEX(Mārketinga_vērtību_novirzes[],ROW()-ROW(Mārketinga_vērtību_novirzes[[#Headers],[Maijs]]),1),INDEX(Mārketinga_plāns[],,1),0),MATCH(Mārketinga_vērtību_novirzes[[#Headers],[Maijs]],Mārketinga_faktiskās_izmaksas[#Headers],0))","v":{"v":500,"d":"500.00 EUR"}},{"$f":"INDEX(Mārketinga_plāns[],MATCH(INDEX(Mārketinga_vērtību_novirzes[],ROW()-ROW(Mārketinga_vērtību_novirzes[[#Headers],[Jūn]]),1),INDEX(Mārketinga_plāns[],,1),0),MATCH(Mārketinga_vērtību_novirzes[[#Headers],[Jūn]],Mārketinga_plāns[#Headers],0))-INDEX(Mārketinga_faktiskās_izmaksas[],MATCH(INDEX(Mārketinga_vērtību_novirzes[],ROW()-ROW(Mārketinga_vērtību_novirzes[[#Headers],[Jūn]]),1),INDEX(Mārketinga_plāns[],,1),0),MATCH(Mārketinga_vērtību_novirzes[[#Headers],[Jūn]],Mārketinga_faktiskās_izmaksas[#Headers],0))","v":{"v":-300,"d":"-300.00 EUR"}},{"$f":"INDEX(Mārketinga_plāns[],MATCH(INDEX(Mārketinga_vērtību_novirzes[],ROW()-ROW(Mārketinga_vērtību_novirzes[[#Headers],[Jūl]]),1),INDEX(Mārketinga_plāns[],,1),0),MATCH(Mārketinga_vērtību_novirzes[[#Headers],[Jūl]],Mārketinga_plāns[#Headers],0))-INDEX(Mārketinga_faktiskās_izmaksas[],MATCH(INDEX(Mārketinga_vērtību_novirzes[],ROW()-ROW(Mārketinga_vērtību_novirzes[[#Headers],[Jūl]]),1),INDEX(Mārketinga_plāns[],,1),0),MATCH(Mārketinga_vērtību_novirzes[[#Headers],[Jūl]],Mārketinga_faktiskās_izmaksas[#Headers],0))","v":{"v":2000,"d":"2,000.00 EUR"}},{"$f":"INDEX(Mārketinga_plāns[],MATCH(INDEX(Mārketinga_vērtību_novirzes[],ROW()-ROW(Mārketinga_vērtību_novirzes[[#Headers],[Aug]]),1),INDEX(Mārketinga_plāns[],,1),0),MATCH(Mārketinga_vērtību_novirzes[[#Headers],[Aug]],Mārketinga_plāns[#Headers],0))-INDEX(Mārketinga_faktiskās_izmaksas[],MATCH(INDEX(Mārketinga_vērtību_novirzes[],ROW()-ROW(Mārketinga_vērtību_novirzes[[#Headers],[Aug]]),1),INDEX(Mārketinga_plāns[],,1),0),MATCH(Mārketinga_vērtību_novirzes[[#Headers],[Aug]],Mārketinga_faktiskās_izmaksas[#Headers],0))","v":{"v":5000,"d":"5,000.00 EUR"}},{"$f":"INDEX(Mārketinga_plāns[],MATCH(INDEX(Mārketinga_vērtību_novirzes[],ROW()-ROW(Mārketinga_vērtību_novirzes[[#Headers],[Sep]]),1),INDEX(Mārketinga_plāns[],,1),0),MATCH(Mārketinga_vērtību_novirzes[[#Headers],[Sep]],Mārketinga_plāns[#Headers],0))-INDEX(Mārketinga_faktiskās_izmaksas[],MATCH(INDEX(Mārketinga_vērtību_novirzes[],ROW()-ROW(Mārketinga_vērtību_novirzes[[#Headers],[Sep]]),1),INDEX(Mārketinga_plāns[],,1),0),MATCH(Mārketinga_vērtību_novirzes[[#Headers],[Sep]],Mārketinga_faktiskās_izmaksas[#Headers],0))","v":{"v":2000,"d":"2,000.00 EUR"}},{"$f":"INDEX(Mārketinga_plāns[],MATCH(INDEX(Mārketinga_vērtību_novirzes[],ROW()-ROW(Mārketinga_vērtību_novirzes[[#Headers],[Okt]]),1),INDEX(Mārketinga_plāns[],,1),0),MATCH(Mārketinga_vērtību_novirzes[[#Headers],[Okt]],Mārketinga_plāns[#Headers],0))-INDEX(Mārketinga_faktiskās_izmaksas[],MATCH(INDEX(Mārketinga_vērtību_novirzes[],ROW()-ROW(Mārketinga_vērtību_novirzes[[#Headers],[Okt]]),1),INDEX(Mārketinga_plāns[],,1),0),MATCH(Mārketinga_vērtību_novirzes[[#Headers],[Okt]],Mārketinga_faktiskās_izmaksas[#Headers],0))","v":{"v":2000,"d":"2,000.00 EUR"}},{"$f":"INDEX(Mārketinga_plāns[],MATCH(INDEX(Mārketinga_vērtību_novirzes[],ROW()-ROW(Mārketinga_vērtību_novirzes[[#Headers],[Nov]]),1),INDEX(Mārketinga_plāns[],,1),0),MATCH(Mārketinga_vērtību_novirzes[[#Headers],[Nov]],Mārketinga_plāns[#Headers],0))-INDEX(Mārketinga_faktiskās_izmaksas[],MATCH(INDEX(Mārketinga_vērtību_novirzes[],ROW()-ROW(Mārketinga_vērtību_novirzes[[#Headers],[Nov]]),1),INDEX(Mārketinga_plāns[],,1),0),MATCH(Mārketinga_vērtību_novirzes[[#Headers],[Nov]],Mārketinga_faktiskās_izmaksas[#Headers],0))","v":{"v":2000,"d":"2,000.00 EUR"}},{"$f":"INDEX(Mārketinga_plāns[],MATCH(INDEX(Mārketinga_vērtību_novirzes[],ROW()-ROW(Mārketinga_vērtību_novirzes[[#Headers],[Dec]]),1),INDEX(Mārketinga_plāns[],,1),0),MATCH(Mārketinga_vērtību_novirzes[[#Headers],[Dec]],Mārketinga_plāns[#Headers],0))-INDEX(Mārketinga_faktiskās_izmaksas[],MATCH(INDEX(Mārketinga_vērtību_novirzes[],ROW()-ROW(Mārketinga_vērtību_novirzes[[#Headers],[Dec]]),1),INDEX(Mārketinga_plāns[],,1),0),MATCH(Mārketinga_vērtību_novirzes[[#Headers],[Dec]],Mārketinga_faktiskās_izmaksas[#Headers],0))","v":{"v":5000,"d":"5,000.00 EUR"}},{"$f":"SUM(Mārketinga_vērtību_novirzes[[#This Row],[Jan]:[Dec]])","v":{"v":18300,"d":"18,300.00 EUR"}}]
[null,"Dažādi izdevumi",{"$f":"INDEX(Mārketinga_plāns[],MATCH(INDEX(Mārketinga_vērtību_novirzes[],ROW()-ROW(Mārketinga_vērtību_novirzes[[#Headers],[Jan]]),1),INDEX(Mārketinga_plāns[],,1),0),MATCH(Mārketinga_vērtību_novirzes[[#Headers],[Jan]],Mārketinga_plāns[#Headers],0))-INDEX(Mārketinga_faktiskās_izmaksas[],MATCH(INDEX(Mārketinga_vērtību_novirzes[],ROW()-ROW(Mārketinga_vērtību_novirzes[[#Headers],[Jan]]),1),INDEX(Mārketinga_plāns[],,1),0),MATCH(Mārketinga_vērtību_novirzes[[#Headers],[Jan]],Mārketinga_faktiskās_izmaksas[#Headers],0))","v":{"v":55,"d":"55.00 EUR"}},{"$f":"INDEX(Mārketinga_plāns[],MATCH(INDEX(Mārketinga_vērtību_novirzes[],ROW()-ROW(Mārketinga_vērtību_novirzes[[#Headers],[Feb]]),1),INDEX(Mārketinga_plāns[],,1),0),MATCH(Mārketinga_vērtību_novirzes[[#Headers],[Feb]],Mārketinga_plāns[#Headers],0))-INDEX(Mārketinga_faktiskās_izmaksas[],MATCH(INDEX(Mārketinga_vērtību_novirzes[],ROW()-ROW(Mārketinga_vērtību_novirzes[[#Headers],[Feb]]),1),INDEX(Mārketinga_plāns[],,1),0),MATCH(Mārketinga_vērtību_novirzes[[#Headers],[Feb]],Mārketinga_faktiskās_izmaksas[#Headers],0))","v":{"v":44,"d":"44.00 EUR"}},{"$f":"INDEX(Mārketinga_plāns[],MATCH(INDEX(Mārketinga_vērtību_novirzes[],ROW()-ROW(Mārketinga_vērtību_novirzes[[#Headers],[Mar]]),1),INDEX(Mārketinga_plāns[],,1),0),MATCH(Mārketinga_vērtību_novirzes[[#Headers],[Mar]],Mārketinga_plāns[#Headers],0))-INDEX(Mārketinga_faktiskās_izmaksas[],MATCH(INDEX(Mārketinga_vērtību_novirzes[],ROW()-ROW(Mārketinga_vērtību_novirzes[[#Headers],[Mar]]),1),INDEX(Mārketinga_plāns[],,1),0),MATCH(Mārketinga_vērtību_novirzes[[#Headers],[Mar]],Mārketinga_faktiskās_izmaksas[#Headers],0))","v":{"v":77,"d":"77.00 EUR"}},{"$f":"INDEX(Mārketinga_plāns[],MATCH(INDEX(Mārketinga_vērtību_novirzes[],ROW()-ROW(Mārketinga_vērtību_novirzes[[#Headers],[Apr]]),1),INDEX(Mārketinga_plāns[],,1),0),MATCH(Mārketinga_vērtību_novirzes[[#Headers],[Apr]],Mārketinga_plāns[#Headers],0))-INDEX(Mārketinga_faktiskās_izmaksas[],MATCH(INDEX(Mārketinga_vērtību_novirzes[],ROW()-ROW(Mārketinga_vērtību_novirzes[[#Headers],[Apr]]),1),INDEX(Mārketinga_plāns[],,1),0),MATCH(Mārketinga_vērtību_novirzes[[#Headers],[Apr]],Mārketinga_faktiskās_izmaksas[#Headers],0))","v":{"v":-23,"d":"-23.00 EUR"}},{"$f":"INDEX(Mārketinga_plāns[],MATCH(INDEX(Mārketinga_vērtību_novirzes[],ROW()-ROW(Mārketinga_vērtību_novirzes[[#Headers],[Maijs]]),1),INDEX(Mārketinga_plāns[],,1),0),MATCH(Mārketinga_vērtību_novirzes[[#Headers],[Maijs]],Mārketinga_plāns[#Headers],0))-INDEX(Mārketinga_faktiskās_izmaksas[],MATCH(INDEX(Mārketinga_vērtību_novirzes[],ROW()-ROW(Mārketinga_vērtību_novirzes[[#Headers],[Maijs]]),1),INDEX(Mārketinga_plāns[],,1),0),MATCH(Mārketinga_vērtību_novirzes[[#Headers],[Maijs]],Mārketinga_faktiskās_izmaksas[#Headers],0))","v":{"v":13,"d":"13.00 EUR"}},{"$f":"INDEX(Mārketinga_plāns[],MATCH(INDEX(Mārketinga_vērtību_novirzes[],ROW()-ROW(Mārketinga_vērtību_novirzes[[#Headers],[Jūn]]),1),INDEX(Mārketinga_plāns[],,1),0),MATCH(Mārketinga_vērtību_novirzes[[#Headers],[Jūn]],Mārketinga_plāns[#Headers],0))-INDEX(Mārketinga_faktiskās_izmaksas[],MATCH(INDEX(Mārketinga_vērtību_novirzes[],ROW()-ROW(Mārketinga_vērtību_novirzes[[#Headers],[Jūn]]),1),INDEX(Mārketinga_plāns[],,1),0),MATCH(Mārketinga_vērtību_novirzes[[#Headers],[Jūn]],Mārketinga_faktiskās_izmaksas[#Headers],0))","v":{"v":-45,"d":"-45.00 EUR"}},{"$f":"INDEX(Mārketinga_plāns[],MATCH(INDEX(Mārketinga_vērtību_novirzes[],ROW()-ROW(Mārketinga_vērtību_novirzes[[#Headers],[Jūl]]),1),INDEX(Mārketinga_plāns[],,1),0),MATCH(Mārketinga_vērtību_novirzes[[#Headers],[Jūl]],Mārketinga_plāns[#Headers],0))-INDEX(Mārketinga_faktiskās_izmaksas[],MATCH(INDEX(Mārketinga_vērtību_novirzes[],ROW()-ROW(Mārketinga_vērtību_novirzes[[#Headers],[Jūl]]),1),INDEX(Mārketinga_plāns[],,1),0),MATCH(Mārketinga_vērtību_novirzes[[#Headers],[Jūl]],Mārketinga_faktiskās_izmaksas[#Headers],0))","v":{"v":200,"d":"200.00 EUR"}},{"$f":"INDEX(Mārketinga_plāns[],MATCH(INDEX(Mārketinga_vērtību_novirzes[],ROW()-ROW(Mārketinga_vērtību_novirzes[[#Headers],[Aug]]),1),INDEX(Mārketinga_plāns[],,1),0),MATCH(Mārketinga_vērtību_novirzes[[#Headers],[Aug]],Mārketinga_plāns[#Headers],0))-INDEX(Mārketinga_faktiskās_izmaksas[],MATCH(INDEX(Mārketinga_vērtību_novirzes[],ROW()-ROW(Mārketinga_vērtību_novirzes[[#Headers],[Aug]]),1),INDEX(Mārketinga_plāns[],,1),0),MATCH(Mārketinga_vērtību_novirzes[[#Headers],[Aug]],Mārketinga_faktiskās_izmaksas[#Headers],0))","v":{"v":200,"d":"200.00 EUR"}},{"$f":"INDEX(Mārketinga_plāns[],MATCH(INDEX(Mārketinga_vērtību_novirzes[],ROW()-ROW(Mārketinga_vērtību_novirzes[[#Headers],[Sep]]),1),INDEX(Mārketinga_plāns[],,1),0),MATCH(Mārketinga_vērtību_novirzes[[#Headers],[Sep]],Mārketinga_plāns[#Headers],0))-INDEX(Mārketinga_faktiskās_izmaksas[],MATCH(INDEX(Mārketinga_vērtību_novirzes[],ROW()-ROW(Mārketinga_vērtību_novirzes[[#Headers],[Sep]]),1),INDEX(Mārketinga_plāns[],,1),0),MATCH(Mārketinga_vērtību_novirzes[[#Headers],[Sep]],Mārketinga_faktiskās_izmaksas[#Headers],0))","v":{"v":200,"d":"200.00 EUR"}},{"$f":"INDEX(Mārketinga_plāns[],MATCH(INDEX(Mārketinga_vērtību_novirzes[],ROW()-ROW(Mārketinga_vērtību_novirzes[[#Headers],[Okt]]),1),INDEX(Mārketinga_plāns[],,1),0),MATCH(Mārketinga_vērtību_novirzes[[#Headers],[Okt]],Mārketinga_plāns[#Headers],0))-INDEX(Mārketinga_faktiskās_izmaksas[],MATCH(INDEX(Mārketinga_vērtību_novirzes[],ROW()-ROW(Mārketinga_vērtību_novirzes[[#Headers],[Okt]]),1),INDEX(Mārketinga_plāns[],,1),0),MATCH(Mārketinga_vērtību_novirzes[[#Headers],[Okt]],Mārketinga_faktiskās_izmaksas[#Headers],0))","v":{"v":200,"d":"200.00 EUR"}},{"$f":"INDEX(Mārketinga_plāns[],MATCH(INDEX(Mārketinga_vērtību_novirzes[],ROW()-ROW(Mārketinga_vērtību_novirzes[[#Headers],[Nov]]),1),INDEX(Mārketinga_plāns[],,1),0),MATCH(Mārketinga_vērtību_novirzes[[#Headers],[Nov]],Mārketinga_plāns[#Headers],0))-INDEX(Mārketinga_faktiskās_izmaksas[],MATCH(INDEX(Mārketinga_vērtību_novirzes[],ROW()-ROW(Mārketinga_vērtību_novirzes[[#Headers],[Nov]]),1),INDEX(Mārketinga_plāns[],,1),0),MATCH(Mārketinga_vērtību_novirzes[[#Headers],[Nov]],Mārketinga_faktiskās_izmaksas[#Headers],0))","v":{"v":200,"d":"200.00 EUR"}},{"$f":"INDEX(Mārketinga_plāns[],MATCH(INDEX(Mārketinga_vērtību_novirzes[],ROW()-ROW(Mārketinga_vērtību_novirzes[[#Headers],[Dec]]),1),INDEX(Mārketinga_plāns[],,1),0),MATCH(Mārketinga_vērtību_novirzes[[#Headers],[Dec]],Mārketinga_plāns[#Headers],0))-INDEX(Mārketinga_faktiskās_izmaksas[],MATCH(INDEX(Mārketinga_vērtību_novirzes[],ROW()-ROW(Mārketinga_vērtību_novirzes[[#Headers],[Dec]]),1),INDEX(Mārketinga_plāns[],,1),0),MATCH(Mārketinga_vērtību_novirzes[[#Headers],[Dec]],Mārketinga_faktiskās_izmaksas[#Headers],0))","v":{"v":200,"d":"200.00 EUR"}},{"$f":"SUM(Mārketinga_vērtību_novirzes[[#This Row],[Jan]:[Dec]])","v":{"v":1321,"d":"1,321.00 EUR"}}]
[null,"Starpsumma",{"$f":"SUBTOTAL(109,Mārketinga_vērtību_novirzes[Jan])","v":{"v":555,"d":"555.00 EUR"}},{"$f":"SUBTOTAL(109,Mārketinga_vērtību_novirzes[Feb])","v":{"v":-456,"d":"-456.00 EUR"}},{"$f":"SUBTOTAL(109,Mārketinga_vērtību_novirzes[Mar])","v":{"v":-23,"d":"-23.00 EUR"}},{"$f":"SUBTOTAL(109,Mārketinga_vērtību_novirzes[Apr])","v":{"v":-123,"d":"-123.00 EUR"}},{"$f":"SUBTOTAL(109,Mārketinga_vērtību_novirzes[Maijs])","v":{"v":113,"d":"113.00 EUR"}},{"$f":"SUBTOTAL(109,Mārketinga_vērtību_novirzes[Jūn])","v":{"v":-825,"d":"-825.00 EUR"}},{"$f":"SUBTOTAL(109,Mārketinga_vērtību_novirzes[Jūl])","v":{"v":8100,"d":"8,100.00 EUR"}},{"$f":"SUBTOTAL(109,Mārketinga_vērtību_novirzes[Aug])","v":{"v":6100,"d":"6,100.00 EUR"}},{"$f":"SUBTOTAL(109,Mārketinga_vērtību_novirzes[Sep])","v":{"v":3100,"d":"3,100.00 EUR"}},{"$f":"SUBTOTAL(109,Mārketinga_vērtību_novirzes[Okt])","v":{"v":8100,"d":"8,100.00 EUR"}},{"$f":"SUBTOTAL(109,Mārketinga_vērtību_novirzes[Nov])","v":{"v":3100,"d":"3,100.00 EUR"}},{"$f":"SUBTOTAL(109,Mārketinga_vērtību_novirzes[Dec])","v":{"v":6900,"d":"6,900.00 EUR"}},{"$f":"SUBTOTAL(109,Mārketinga_vērtību_novirzes[GADS])","v":{"v":34641,"d":"34,641.00 EUR"}}]
[]
["Apmācību vai komandējumu izmaksas novirze tiek automātiski aprēķināta tabulā Apmācību vai komandējumu vērtību novirzes, sākot ar šūnu pa labi. Nākamais norādījums ir šūnā A35.","Apmācības/komandējumi","Jan","Feb","Mar","Apr","Maijs","Jūn","Jūl","Aug","Sep","Okt","Nov","Dec","GADS"]
[null,"Apmācību nodarbības",{"$f":"INDEX(Apmācību_un_komandējumu_plāns[],MATCH(INDEX(Apmācību_un_komandējumu_vērtību_novirzes[],ROW()-ROW(Apmācību_un_komandējumu_vērtību_novirzes[[#Headers],[Jan]]),1),INDEX(Apmācību_un_komandējumu_plāns[],,1),0),MATCH(Apmācību_un_komandējumu_vērtību_novirzes[[#Headers],[Jan]],Apmācību_un_komandējumu_plāns[#Headers],0))-INDEX(Apmācību_un_komandējumu_faktiskās_izmaksas[],MATCH(INDEX(Apmācību_un_komandējumu_vērtību_novirzes[],ROW()-ROW(Apmācību_un_komandējumu_vērtību_novirzes[[#Headers],[Jan]]),1),INDEX(Apmācību_un_komandējumu_plāns[],,1),0),MATCH(Apmācību_un_komandējumu_vērtību_novirzes[[#Headers],[Jan]],Apmācību_un_komandējumu_faktiskās_izmaksas[#Headers],0))","v":{"v":400,"d":"400.00 EUR"}},{"$f":"INDEX(Apmācību_un_komandējumu_plāns[],MATCH(INDEX(Apmācību_un_komandējumu_vērtību_novirzes[],ROW()-ROW(Apmācību_un_komandējumu_vērtību_novirzes[[#Headers],[Feb]]),1),INDEX(Apmācību_un_komandējumu_plāns[],,1),0),MATCH(Apmācību_un_komandējumu_vērtību_novirzes[[#Headers],[Feb]],Apmācību_un_komandējumu_plāns[#Headers],0))-INDEX(Apmācību_un_komandējumu_faktiskās_izmaksas[],MATCH(INDEX(Apmācību_un_komandējumu_vērtību_novirzes[],ROW()-ROW(Apmācību_un_komandējumu_vērtību_novirzes[[#Headers],[Feb]]),1),INDEX(Apmācību_un_komandējumu_plāns[],,1),0),MATCH(Apmācību_un_komandējumu_vērtību_novirzes[[#Headers],[Feb]],Apmācību_un_komandējumu_faktiskās_izmaksas[#Headers],0))","v":{"v":-400,"d":"-400.00 EUR"}},{"$f":"INDEX(Apmācību_un_komandējumu_plāns[],MATCH(INDEX(Apmācību_un_komandējumu_vērtību_novirzes[],ROW()-ROW(Apmācību_un_komandējumu_vērtību_novirzes[[#Headers],[Mar]]),1),INDEX(Apmācību_un_komandējumu_plāns[],,1),0),MATCH(Apmācību_un_komandējumu_vērtību_novirzes[[#Headers],[Mar]],Apmācību_un_komandējumu_plāns[#Headers],0))-INDEX(Apmācību_un_komandējumu_faktiskās_izmaksas[],MATCH(INDEX(Apmācību_un_komandējumu_vērtību_novirzes[],ROW()-ROW(Apmācību_un_komandējumu_vērtību_novirzes[[#Headers],[Mar]]),1),INDEX(Apmācību_un_komandējumu_plāns[],,1),0),MATCH(Apmācību_un_komandējumu_vērtību_novirzes[[#Headers],[Mar]],Apmācību_un_komandējumu_faktiskās_izmaksas[#Headers],0))","v":{"v":600,"d":"600.00 EUR"}},{"$f":"INDEX(Apmācību_un_komandējumu_plāns[],MATCH(INDEX(Apmācību_un_komandējumu_vērtību_novirzes[],ROW()-ROW(Apmācību_un_komandējumu_vērtību_novirzes[[#Headers],[Apr]]),1),INDEX(Apmācību_un_komandējumu_plāns[],,1),0),MATCH(Apmācību_un_komandējumu_vērtību_novirzes[[#Headers],[Apr]],Apmācību_un_komandējumu_plāns[#Headers],0))-INDEX(Apmācību_un_komandējumu_faktiskās_izmaksas[],MATCH(INDEX(Apmācību_un_komandējumu_vērtību_novirzes[],ROW()-ROW(Apmācību_un_komandējumu_vērtību_novirzes[[#Headers],[Apr]]),1),INDEX(Apmācību_un_komandējumu_plāns[],,1),0),MATCH(Apmācību_un_komandējumu_vērtību_novirzes[[#Headers],[Apr]],Apmācību_un_komandējumu_faktiskās_izmaksas[#Headers],0))","v":{"v":400,"d":"400.00 EUR"}},{"$f":"INDEX(Apmācību_un_komandējumu_plāns[],MATCH(INDEX(Apmācību_un_komandējumu_vērtību_novirzes[],ROW()-ROW(Apmācību_un_komandējumu_vērtību_novirzes[[#Headers],[Maijs]]),1),INDEX(Apmācību_un_komandējumu_plāns[],,1),0),MATCH(Apmācību_un_komandējumu_vērtību_novirzes[[#Headers],[Maijs]],Apmācību_un_komandējumu_plāns[#Headers],0))-INDEX(Apmācību_un_komandējumu_faktiskās_izmaksas[],MATCH(INDEX(Apmācību_un_komandējumu_vērtību_novirzes[],ROW()-ROW(Apmācību_un_komandējumu_vērtību_novirzes[[#Headers],[Maijs]]),1),INDEX(Apmācību_un_komandējumu_plāns[],,1),0),MATCH(Apmācību_un_komandējumu_vērtību_novirzes[[#Headers],[Maijs]],Apmācību_un_komandējumu_faktiskās_izmaksas[#Headers],0))","v":{"v":800,"d":"800.00 EUR"}},{"$f":"INDEX(Apmācību_un_komandējumu_plāns[],MATCH(INDEX(Apmācību_un_komandējumu_vērtību_novirzes[],ROW()-ROW(Apmācību_un_komandējumu_vērtību_novirzes[[#Headers],[Jūn]]),1),INDEX(Apmācību_un_komandējumu_plāns[],,1),0),MATCH(Apmācību_un_komandējumu_vērtību_novirzes[[#Headers],[Jūn]],Apmācību_un_komandējumu_plāns[#Headers],0))-INDEX(Apmācību_un_komandējumu_faktiskās_izmaksas[],MATCH(INDEX(Apmācību_un_komandējumu_vērtību_novirzes[],ROW()-ROW(Apmācību_un_komandējumu_vērtību_novirzes[[#Headers],[Jūn]]),1),INDEX(Apmācību_un_komandējumu_plāns[],,1),0),MATCH(Apmācību_un_komandējumu_vērtību_novirzes[[#Headers],[Jūn]],Apmācību_un_komandējumu_faktiskās_izmaksas[#Headers],0))","v":{"v":-800,"d":"-800.00 EUR"}},{"$f":"INDEX(Apmācību_un_komandējumu_plāns[],MATCH(INDEX(Apmācību_un_komandējumu_vērtību_novirzes[],ROW()-ROW(Apmācību_un_komandējumu_vērtību_novirzes[[#Headers],[Jūl]]),1),INDEX(Apmācību_un_komandējumu_plāns[],,1),0),MATCH(Apmācību_un_komandējumu_vērtību_novirzes[[#Headers],[Jūl]],Apmācību_un_komandējumu_plāns[#Headers],0))-INDEX(Apmācību_un_komandējumu_faktiskās_izmaksas[],MATCH(INDEX(Apmācību_un_komandējumu_vērtību_novirzes[],ROW()-ROW(Apmācību_un_komandējumu_vērtību_novirzes[[#Headers],[Jūl]]),1),INDEX(Apmācību_un_komandējumu_plāns[],,1),0),MATCH(Apmācību_un_komandējumu_vērtību_novirzes[[#Headers],[Jūl]],Apmācību_un_komandējumu_faktiskās_izmaksas[#Headers],0))","v":{"v":2000,"d":"2,000.00 EUR"}},{"$f":"INDEX(Apmācību_un_komandējumu_plāns[],MATCH(INDEX(Apmācību_un_komandējumu_vērtību_novirzes[],ROW()-ROW(Apmācību_un_komandējumu_vērtību_novirzes[[#Headers],[Aug]]),1),INDEX(Apmācību_un_komandējumu_plāns[],,1),0),MATCH(Apmācību_un_komandējumu_vērtību_novirzes[[#Headers],[Aug]],Apmācību_un_komandējumu_plāns[#Headers],0))-INDEX(Apmācību_un_komandējumu_faktiskās_izmaksas[],MATCH(INDEX(Apmācību_un_komandējumu_vērtību_novirzes[],ROW()-ROW(Apmācību_un_komandējumu_vērtību_novirzes[[#Headers],[Aug]]),1),INDEX(Apmācību_un_komandējumu_plāns[],,1),0),MATCH(Apmācību_un_komandējumu_vērtību_novirzes[[#Headers],[Aug]],Apmācību_un_komandējumu_faktiskās_izmaksas[#Headers],0))","v":{"v":2000,"d":"2,000.00 EUR"}},{"$f":"INDEX(Apmācību_un_komandējumu_plāns[],MATCH(INDEX(Apmācību_un_komandējumu_vērtību_novirzes[],ROW()-ROW(Apmācību_un_komandējumu_vērtību_novirzes[[#Headers],[Sep]]),1),INDEX(Apmācību_un_komandējumu_plāns[],,1),0),MATCH(Apmācību_un_komandējumu_vērtību_novirzes[[#Headers],[Sep]],Apmācību_un_komandējumu_plāns[#Headers],0))-INDEX(Apmācību_un_komandējumu_faktiskās_izmaksas[],MATCH(INDEX(Apmācību_un_komandējumu_vērtību_novirzes[],ROW()-ROW(Apmācību_un_komandējumu_vērtību_novirzes[[#Headers],[Sep]]),1),INDEX(Apmācību_un_komandējumu_plāns[],,1),0),MATCH(Apmācību_un_komandējumu_vērtību_novirzes[[#Headers],[Sep]],Apmācību_un_komandējumu_faktiskās_izmaksas[#Headers],0))","v":{"v":2000,"d":"2,000.00 EUR"}},{"$f":"INDEX(Apmācību_un_komandējumu_plāns[],MATCH(INDEX(Apmācību_un_komandējumu_vērtību_novirzes[],ROW()-ROW(Apmācību_un_komandējumu_vērtību_novirzes[[#Headers],[Okt]]),1),INDEX(Apmācību_un_komandējumu_plāns[],,1),0),MATCH(Apmācību_un_komandējumu_vērtību_novirzes[[#Headers],[Okt]],Apmācību_un_komandējumu_plāns[#Headers],0))-INDEX(Apmācību_un_komandējumu_faktiskās_izmaksas[],MATCH(INDEX(Apmācību_un_komandējumu_vērtību_novirzes[],ROW()-ROW(Apmācību_un_komandējumu_vērtību_novirzes[[#Headers],[Okt]]),1),INDEX(Apmācību_un_komandējumu_plāns[],,1),0),MATCH(Apmācību_un_komandējumu_vērtību_novirzes[[#Headers],[Okt]],Apmācību_un_komandējumu_faktiskās_izmaksas[#Headers],0))","v":{"v":2000,"d":"2,000.00 EUR"}},{"$f":"INDEX(Apmācību_un_komandējumu_plāns[],MATCH(INDEX(Apmācību_un_komandējumu_vērtību_novirzes[],ROW()-ROW(Apmācību_un_komandējumu_vērtību_novirzes[[#Headers],[Nov]]),1),INDEX(Apmācību_un_komandējumu_plāns[],,1),0),MATCH(Apmācību_un_komandējumu_vērtību_novirzes[[#Headers],[Nov]],Apmācību_un_komandējumu_plāns[#Headers],0))-INDEX(Apmācību_un_komandējumu_faktiskās_izmaksas[],MATCH(INDEX(Apmācību_un_komandējumu_vērtību_novirzes[],ROW()-ROW(Apmācību_un_komandējumu_vērtību_novirzes[[#Headers],[Nov]]),1),INDEX(Apmācību_un_komandējumu_plāns[],,1),0),MATCH(Apmācību_un_komandējumu_vērtību_novirzes[[#Headers],[Nov]],Apmācību_un_komandējumu_faktiskās_izmaksas[#Headers],0))","v":{"v":2000,"d":"2,000.00 EUR"}},{"$f":"INDEX(Apmācību_un_komandējumu_plāns[],MATCH(INDEX(Apmācību_un_komandējumu_vērtību_novirzes[],ROW()-ROW(Apmācību_un_komandējumu_vērtību_novirzes[[#Headers],[Dec]]),1),INDEX(Apmācību_un_komandējumu_plāns[],,1),0),MATCH(Apmācību_un_komandējumu_vērtību_novirzes[[#Headers],[Dec]],Apmācību_un_komandējumu_plāns[#Headers],0))-INDEX(Apmācību_un_komandējumu_faktiskās_izmaksas[],MATCH(INDEX(Apmācību_un_komandējumu_vērtību_novirzes[],ROW()-ROW(Apmācību_un_komandējumu_vērtību_novirzes[[#Headers],[Dec]]),1),INDEX(Apmācību_un_komandējumu_plāns[],,1),0),MATCH(Apmācību_un_komandējumu_vērtību_novirzes[[#Headers],[Dec]],Apmācību_un_komandējumu_faktiskās_izmaksas[#Headers],0))","v":{"v":2000,"d":"2,000.00 EUR"}},{"$f":"SUM(Apmācību_un_komandējumu_vērtību_novirzes[[#This Row],[Jan]:[Dec]])","v":{"v":13000,"d":"13,000.00 EUR"}}]
[null,"Ar apmācībām saistītu komandējumu izmaksas",{"$f":"INDEX(Apmācību_un_komandējumu_plāns[],MATCH(INDEX(Apmācību_un_komandējumu_vērtību_novirzes[],ROW()-ROW(Apmācību_un_komandējumu_vērtību_novirzes[[#Headers],[Jan]]),1),INDEX(Apmācību_un_komandējumu_plāns[],,1),0),MATCH(Apmācību_un_komandējumu_vērtību_novirzes[[#Headers],[Jan]],Apmācību_un_komandējumu_plāns[#Headers],0))-INDEX(Apmācību_un_komandējumu_faktiskās_izmaksas[],MATCH(INDEX(Apmācību_un_komandējumu_vērtību_novirzes[],ROW()-ROW(Apmācību_un_komandējumu_vērtību_novirzes[[#Headers],[Jan]]),1),INDEX(Apmācību_un_komandējumu_plāns[],,1),0),MATCH(Apmācību_un_komandējumu_vērtību_novirzes[[#Headers],[Jan]],Apmācību_un_komandējumu_faktiskās_izmaksas[#Headers],0))","v":{"v":800,"d":"800.00 EUR"}},{"$f":"INDEX(Apmācību_un_komandējumu_plāns[],MATCH(INDEX(Apmācību_un_komandējumu_vērtību_novirzes[],ROW()-ROW(Apmācību_un_komandējumu_vērtību_novirzes[[#Headers],[Feb]]),1),INDEX(Apmācību_un_komandējumu_plāns[],,1),0),MATCH(Apmācību_un_komandējumu_vērtību_novirzes[[#Headers],[Feb]],Apmācību_un_komandējumu_plāns[#Headers],0))-INDEX(Apmācību_un_komandējumu_faktiskās_izmaksas[],MATCH(INDEX(Apmācību_un_komandējumu_vērtību_novirzes[],ROW()-ROW(Apmācību_un_komandējumu_vērtību_novirzes[[#Headers],[Feb]]),1),INDEX(Apmācību_un_komandējumu_plāns[],,1),0),MATCH(Apmācību_un_komandējumu_vērtību_novirzes[[#Headers],[Feb]],Apmācību_un_komandējumu_faktiskās_izmaksas[#Headers],0))","v":{"v":-200,"d":"-200.00 EUR"}},{"$f":"INDEX(Apmācību_un_komandējumu_plāns[],MATCH(INDEX(Apmācību_un_komandējumu_vērtību_novirzes[],ROW()-ROW(Apmācību_un_komandējumu_vērtību_novirzes[[#Headers],[Mar]]),1),INDEX(Apmācību_un_komandējumu_plāns[],,1),0),MATCH(Apmācību_un_komandējumu_vērtību_novirzes[[#Headers],[Mar]],Apmācību_un_komandējumu_plāns[#Headers],0))-INDEX(Apmācību_un_komandējumu_faktiskās_izmaksas[],MATCH(INDEX(Apmācību_un_komandējumu_vērtību_novirzes[],ROW()-ROW(Apmācību_un_komandējumu_vērtību_novirzes[[#Headers],[Mar]]),1),INDEX(Apmācību_un_komandējumu_plāns[],,1),0),MATCH(Apmācību_un_komandējumu_vērtību_novirzes[[#Headers],[Mar]],Apmācību_un_komandējumu_faktiskās_izmaksas[#Headers],0))","v":{"v":600,"d":"600.00 EUR"}},{"$f":"INDEX(Apmācību_un_komandējumu_plāns[],MATCH(INDEX(Apmācību_un_komandējumu_vērtību_novirzes[],ROW()-ROW(Apmācību_un_komandējumu_vērtību_novirzes[[#Headers],[Apr]]),1),INDEX(Apmācību_un_komandējumu_plāns[],,1),0),MATCH(Apmācību_un_komandējumu_vērtību_novirzes[[#Headers],[Apr]],Apmācību_un_komandējumu_plāns[#Headers],0))-INDEX(Apmācību_un_komandējumu_faktiskās_izmaksas[],MATCH(INDEX(Apmācību_un_komandējumu_vērtību_novirzes[],ROW()-ROW(Apmācību_un_komandējumu_vērtību_novirzes[[#Headers],[Apr]]),1),INDEX(Apmācību_un_komandējumu_plāns[],,1),0),MATCH(Apmācību_un_komandējumu_vērtību_novirzes[[#Headers],[Apr]],Apmācību_un_komandējumu_faktiskās_izmaksas[#Headers],0))","v":{"v":800,"d":"800.00 EUR"}},{"$f":"INDEX(Apmācību_un_komandējumu_plāns[],MATCH(INDEX(Apmācību_un_komandējumu_vērtību_novirzes[],ROW()-ROW(Apmācību_un_komandējumu_vērtību_novirzes[[#Headers],[Maijs]]),1),INDEX(Apmācību_un_komandējumu_plāns[],,1),0),MATCH(Apmācību_un_komandējumu_vērtību_novirzes[[#Headers],[Maijs]],Apmācību_un_komandējumu_plāns[#Headers],0))-INDEX(Apmācību_un_komandējumu_faktiskās_izmaksas[],MATCH(INDEX(Apmācību_un_komandējumu_vērtību_novirzes[],ROW()-ROW(Apmācību_un_komandējumu_vērtību_novirzes[[#Headers],[Maijs]]),1),INDEX(Apmācību_un_komandējumu_plāns[],,1),0),MATCH(Apmācību_un_komandējumu_vērtību_novirzes[[#Headers],[Maijs]],Apmācību_un_komandējumu_faktiskās_izmaksas[#Headers],0))","v":{"v":1200,"d":"1,200.00 EUR"}},{"$f":"INDEX(Apmācību_un_komandējumu_plāns[],MATCH(INDEX(Apmācību_un_komandējumu_vērtību_novirzes[],ROW()-ROW(Apmācību_un_komandējumu_vērtību_novirzes[[#Headers],[Jūn]]),1),INDEX(Apmācību_un_komandējumu_plāns[],,1),0),MATCH(Apmācību_un_komandējumu_vērtību_novirzes[[#Headers],[Jūn]],Apmācību_un_komandējumu_plāns[#Headers],0))-INDEX(Apmācību_un_komandējumu_faktiskās_izmaksas[],MATCH(INDEX(Apmācību_un_komandējumu_vērtību_novirzes[],ROW()-ROW(Apmācību_un_komandējumu_vērtību_novirzes[[#Headers],[Jūn]]),1),INDEX(Apmācību_un_komandējumu_plāns[],,1),0),MATCH(Apmācību_un_komandējumu_vērtību_novirzes[[#Headers],[Jūn]],Apmācību_un_komandējumu_faktiskās_izmaksas[#Headers],0))","v":{"v":-1500,"d":"-1,500.00 EUR"}},{"$f":"INDEX(Apmācību_un_komandējumu_plāns[],MATCH(INDEX(Apmācību_un_komandējumu_vērtību_novirzes[],ROW()-ROW(Apmācību_un_komandējumu_vērtību_novirzes[[#Headers],[Jūl]]),1),INDEX(Apmācību_un_komandējumu_plāns[],,1),0),MATCH(Apmācību_un_komandējumu_vērtību_novirzes[[#Headers],[Jūl]],Apmācību_un_komandējumu_plāns[#Headers],0))-INDEX(Apmācību_un_komandējumu_faktiskās_izmaksas[],MATCH(INDEX(Apmācību_un_komandējumu_vērtību_novirzes[],ROW()-ROW(Apmācību_un_komandējumu_vērtību_novirzes[[#Headers],[Jūl]]),1),INDEX(Apmācību_un_komandējumu_plāns[],,1),0),MATCH(Apmācību_un_komandējumu_vērtību_novirzes[[#Headers],[Jūl]],Apmācību_un_komandējumu_faktiskās_izmaksas[#Headers],0))","v":{"v":2000,"d":"2,000.00 EUR"}},{"$f":"INDEX(Apmācību_un_komandējumu_plāns[],MATCH(INDEX(Apmācību_un_komandējumu_vērtību_novirzes[],ROW()-ROW(Apmācību_un_komandējumu_vērtību_novirzes[[#Headers],[Aug]]),1),INDEX(Apmācību_un_komandējumu_plāns[],,1),0),MATCH(Apmācību_un_komandējumu_vērtību_novirzes[[#Headers],[Aug]],Apmācību_un_komandējumu_plāns[#Headers],0))-INDEX(Apmācību_un_komandējumu_faktiskās_izmaksas[],MATCH(INDEX(Apmācību_un_komandējumu_vērtību_novirzes[],ROW()-ROW(Apmācību_un_komandējumu_vērtību_novirzes[[#Headers],[Aug]]),1),INDEX(Apmācību_un_komandējumu_plāns[],,1),0),MATCH(Apmācību_un_komandējumu_vērtību_novirzes[[#Headers],[Aug]],Apmācību_un_komandējumu_faktiskās_izmaksas[#Headers],0))","v":{"v":2000,"d":"2,000.00 EUR"}},{"$f":"INDEX(Apmācību_un_komandējumu_plāns[],MATCH(INDEX(Apmācību_un_komandējumu_vērtību_novirzes[],ROW()-ROW(Apmācību_un_komandējumu_vērtību_novirzes[[#Headers],[Sep]]),1),INDEX(Apmācību_un_komandējumu_plāns[],,1),0),MATCH(Apmācību_un_komandējumu_vērtību_novirzes[[#Headers],[Sep]],Apmācību_un_komandējumu_plāns[#Headers],0))-INDEX(Apmācību_un_komandējumu_faktiskās_izmaksas[],MATCH(INDEX(Apmācību_un_komandējumu_vērtību_novirzes[],ROW()-ROW(Apmācību_un_komandējumu_vērtību_novirzes[[#Headers],[Sep]]),1),INDEX(Apmācību_un_komandējumu_plāns[],,1),0),MATCH(Apmācību_un_komandējumu_vērtību_novirzes[[#Headers],[Sep]],Apmācību_un_komandējumu_faktiskās_izmaksas[#Headers],0))","v":{"v":2000,"d":"2,000.00 EUR"}},{"$f":"INDEX(Apmācību_un_komandējumu_plāns[],MATCH(INDEX(Apmācību_un_komandējumu_vērtību_novirzes[],ROW()-ROW(Apmācību_un_komandējumu_vērtību_novirzes[[#Headers],[Okt]]),1),INDEX(Apmācību_un_komandējumu_plāns[],,1),0),MATCH(Apmācību_un_komandējumu_vērtību_novirzes[[#Headers],[Okt]],Apmācību_un_komandējumu_plāns[#Headers],0))-INDEX(Apmācību_un_komandējumu_faktiskās_izmaksas[],MATCH(INDEX(Apmācību_un_komandējumu_vērtību_novirzes[],ROW()-ROW(Apmācību_un_komandējumu_vērtību_novirzes[[#Headers],[Okt]]),1),INDEX(Apmācību_un_komandējumu_plāns[],,1),0),MATCH(Apmācību_un_komandējumu_vērtību_novirzes[[#Headers],[Okt]],Apmācību_un_komandējumu_faktiskās_izmaksas[#Headers],0))","v":{"v":2000,"d":"2,000.00 EUR"}},{"$f":"INDEX(Apmācību_un_komandējumu_plāns[],MATCH(INDEX(Apmācību_un_komandējumu_vērtību_novirzes[],ROW()-ROW(Apmācību_un_komandējumu_vērtību_novirzes[[#Headers],[Nov]]),1),INDEX(Apmācību_un_komandējumu_plāns[],,1),0),MATCH(Apmācību_un_komandējumu_vērtību_novirzes[[#Headers],[Nov]],Apmācību_un_komandējumu_plāns[#Headers],0))-INDEX(Apmācību_un_komandējumu_faktiskās_izmaksas[],MATCH(INDEX(Apmācību_un_komandējumu_vērtību_novirzes[],ROW()-ROW(Apmācību_un_komandējumu_vērtību_novirzes[[#Headers],[Nov]]),1),INDEX(Apmācību_un_komandējumu_plāns[],,1),0),MATCH(Apmācību_un_komandējumu_vērtību_novirzes[[#Headers],[Nov]],Apmācību_un_komandējumu_faktiskās_izmaksas[#Headers],0))","v":{"v":2000,"d":"2,000.00 EUR"}},{"$f":"INDEX(Apmācību_un_komandējumu_plāns[],MATCH(INDEX(Apmācību_un_komandējumu_vērtību_novirzes[],ROW()-ROW(Apmācību_un_komandējumu_vērtību_novirzes[[#Headers],[Dec]]),1),INDEX(Apmācību_un_komandējumu_plāns[],,1),0),MATCH(Apmācību_un_komandējumu_vērtību_novirzes[[#Headers],[Dec]],Apmācību_un_komandējumu_plāns[#Headers],0))-INDEX(Apmācību_un_komandējumu_faktiskās_izmaksas[],MATCH(INDEX(Apmācību_un_komandējumu_vērtību_novirzes[],ROW()-ROW(Apmācību_un_komandējumu_vērtību_novirzes[[#Headers],[Dec]]),1),INDEX(Apmācību_un_komandējumu_plāns[],,1),0),MATCH(Apmācību_un_komandējumu_vērtību_novirzes[[#Headers],[Dec]],Apmācību_un_komandējumu_faktiskās_izmaksas[#Headers],0))","v":{"v":2000,"d":"2,000.00 EUR"}},{"$f":"SUM(Apmācību_un_komandējumu_vērtību_novirzes[[#This Row],[Jan]:[Dec]])","v":{"v":13700,"d":"13,700.00 EUR"}}]
[null,"Starpsumma",{"$f":"SUBTOTAL(109,Apmācību_un_komandējumu_vērtību_novirzes[Jan])","v":{"v":1200,"d":"1,200.00 EUR"}},{"$f":"SUBTOTAL(109,Apmācību_un_komandējumu_vērtību_novirzes[Feb])","v":{"v":-600,"d":"-600.00 EUR"}},{"$f":"SUBTOTAL(109,Apmācību_un_komandējumu_vērtību_novirzes[Mar])","v":{"v":1200,"d":"1,200.00 EUR"}},{"$f":"SUBTOTAL(109,Apmācību_un_komandējumu_vērtību_novirzes[Apr])","v":{"v":1200,"d":"1,200.00 EUR"}},{"$f":"SUBTOTAL(109,Apmācību_un_komandējumu_vērtību_novirzes[Maijs])","v":{"v":2000,"d":"2,000.00 EUR"}},{"$f":"SUBTOTAL(109,Apmācību_un_komandējumu_vērtību_novirzes[Jūn])","v":{"v":-2300,"d":"-2,300.00 EUR"}},{"$f":"SUBTOTAL(109,Apmācību_un_komandējumu_vērtību_novirzes[Jūl])","v":{"v":4000,"d":"4,000.00 EUR"}},{"$f":"SUBTOTAL(109,Apmācību_un_komandējumu_vērtību_novirzes[Aug])","v":{"v":4000,"d":"4,000.00 EUR"}},{"$f":"SUBTOTAL(109,Apmācību_un_komandējumu_vērtību_novirzes[Sep])","v":{"v":4000,"d":"4,000.00 EUR"}},{"$f":"SUBTOTAL(109,Apmācību_un_komandējumu_vērtību_novirzes[Okt])","v":{"v":4000,"d":"4,000.00 EUR"}},{"$f":"SUBTOTAL(109,Apmācību_un_komandējumu_vērtību_novirzes[Nov])","v":{"v":4000,"d":"4,000.00 EUR"}},{"$f":"SUBTOTAL(109,Apmācību_un_komandējumu_vērtību_novirzes[Dec])","v":{"v":4000,"d":"4,000.00 EUR"}},{"$f":"SUBTOTAL(109,Apmācību_un_komandējumu_vērtību_novirzes[GADS])","v":{"v":26700,"d":"26,700.00 EUR"}}]
[]
["Izdevumu novirzes tiek automātiski aprēķinātas tabulā Kopējā novirze, sākot ar šūnu pa labi.","KOPSUMMAS","Jan","Feb","Mar","Apr","Maijs","Jūn","Jūl","Aug","Sep","Okt","Nov","Dec","Gads"]
[null,"Mēneša faktiskie izdevumi",{"$f":"Apmācību_un_komandējumu_vērtību_novirzes[[#Totals],[Jan]]+Mārketinga_vērtību_novirzes[[#Totals],[Jan]]+Biroja_vērtību_novirzes[[#Totals],[Jan]]+Darbinieku_vērtību_novirzes[[#Totals],[Jan]]","v":{"v":1738,"d":"1,738.00 EUR"}},{"$f":"Apmācību_un_komandējumu_vērtību_novirzes[[#Totals],[Feb]]+Mārketinga_vērtību_novirzes[[#Totals],[Feb]]+Biroja_vērtību_novirzes[[#Totals],[Feb]]+Darbinieku_vērtību_novirzes[[#Totals],[Feb]]","v":{"v":-984,"d":"-984.00 EUR"}},{"$f":"Apmācību_un_komandējumu_vērtību_novirzes[[#Totals],[Mar]]+Mārketinga_vērtību_novirzes[[#Totals],[Mar]]+Biroja_vērtību_novirzes[[#Totals],[Mar]]+Darbinieku_vērtību_novirzes[[#Totals],[Mar]]","v":{"v":1255,"d":"1,255.00 EUR"}},{"$f":"Apmācību_un_komandējumu_vērtību_novirzes[[#Totals],[Apr]]+Mārketinga_vērtību_novirzes[[#Totals],[Apr]]+Biroja_vērtību_novirzes[[#Totals],[Apr]]+Darbinieku_vērtību_novirzes[[#Totals],[Apr]]","v":{"v":301,"d":"301.00 EUR"}},{"$f":"Apmācību_un_komandējumu_vērtību_novirzes[[#Totals],[Maijs]]+Mārketinga_vērtību_novirzes[[#Totals],[Maijs]]+Biroja_vērtību_novirzes[[#Totals],[Maijs]]+Darbinieku_vērtību_novirzes[[#Totals],[Maijs]]","v":{"v":1440,"d":"1,440.00 EUR"}},{"$f":"Apmācību_un_komandējumu_vērtību_novirzes[[#Totals],[Jūn]]+Mārketinga_vērtību_novirzes[[#Totals],[Jūn]]+Biroja_vērtību_novirzes[[#Totals],[Jūn]]+Darbinieku_vērtību_novirzes[[#Totals],[Jūn]]","v":{"v":-3744,"d":"-3,744.00 EUR"}},{"$f":"Apmācību_un_komandējumu_vērtību_novirzes[[#Totals],[Jūl]]+Mārketinga_vērtību_novirzes[[#Totals],[Jūl]]+Biroja_vērtību_novirzes[[#Totals],[Jūl]]+Darbinieku_vērtību_novirzes[[#Totals],[Jūl]]","v":{"v":134695,"d":"134,695.00 EUR"}},{"$f":"Apmācību_un_komandējumu_vērtību_novirzes[[#Totals],[Aug]]+Mārketinga_vērtību_novirzes[[#Totals],[Aug]]+Biroja_vērtību_novirzes[[#Totals],[Aug]]+Darbinieku_vērtību_novirzes[[#Totals],[Aug]]","v":{"v":138918,"d":"138,918.00 EUR"}},{"$f":"Apmācību_un_komandējumu_vērtību_novirzes[[#Totals],[Sep]]+Mārketinga_vērtību_novirzes[[#Totals],[Sep]]+Biroja_vērtību_novirzes[[#Totals],[Sep]]+Darbinieku_vērtību_novirzes[[#Totals],[Sep]]","v":{"v":135918,"d":"135,918.00 EUR"}},{"$f":"Apmācību_un_komandējumu_vērtību_novirzes[[#Totals],[Okt]]+Mārketinga_vērtību_novirzes[[#Totals],[Okt]]+Biroja_vērtību_novirzes[[#Totals],[Okt]]+Darbinieku_vērtību_novirzes[[#Totals],[Okt]]","v":{"v":140918,"d":"140,918.00 EUR"}},{"$f":"Apmācību_un_komandējumu_vērtību_novirzes[[#Totals],[Nov]]+Mārketinga_vērtību_novirzes[[#Totals],[Nov]]+Biroja_vērtību_novirzes[[#Totals],[Nov]]+Darbinieku_vērtību_novirzes[[#Totals],[Nov]]","v":{"v":136218,"d":"136,218.00 EUR"}},{"$f":"Apmācību_un_komandējumu_vērtību_novirzes[[#Totals],[Dec]]+Mārketinga_vērtību_novirzes[[#Totals],[Dec]]+Biroja_vērtību_novirzes[[#Totals],[Dec]]+Darbinieku_vērtību_novirzes[[#Totals],[Dec]]","v":{"v":140018,"d":"140,018.00 EUR"}},{"$f":"Apmācību_un_komandējumu_vērtību_novirzes[[#Totals],[GADS]]+Mārketinga_vērtību_novirzes[[#Totals],[GADS]]+Biroja_vērtību_novirzes[[#Totals],[GADS]]+Darbinieku_vērtību_novirzes[[#Totals],[GADS]]","v":{"v":826691,"d":"826,691.00 EUR"}}]
[null,"KOPĒJIE faktiskie izdevumi",{"$f":"SUM($C$36:C36)","v":{"v":1738,"d":"1,738.00 EUR"}},{"$f":"SUM($C$36:D36)","v":{"v":754,"d":"754.00 EUR"}},{"$f":"SUM($C$36:E36)","v":{"v":2009,"d":"2,009.00 EUR"}},{"$f":"SUM($C$36:F36)","v":{"v":2310,"d":"2,310.00 EUR"}},{"$f":"SUM($C$36:G36)","v":{"v":3750,"d":"3,750.00 EUR"}},{"$f":"SUM($C$36:H36)","v":{"v":6,"d":"6.00 EUR"}},{"$f":"SUM($C$36:I36)","v":{"v":134701,"d":"134,701.00 EUR"}},{"$f":"SUM($C$36:J36)","v":{"v":273619,"d":"273,619.00 EUR"}},{"$f":"SUM($C$36:K36)","v":{"v":409537,"d":"409,537.00 EUR"}},{"$f":"SUM($C$36:L36)","v":{"v":550455,"d":"550,455.00 EUR"}},{"$f":"SUM($C$36:M36)","v":{"v":686673,"d":"686,673.00 EUR"}},{"$f":"SUM($C$36:N36)","v":{"v":826691,"d":"826,691.00 EUR"}}]

{"sheet":"IZDEVUMU ANALĪZE","index":4,"n_rows":14,"n_cols":16,"rows_kept":14,"merged":[[1,1,2,3],[1,5,1,6],[2,4,2,6],[11,1,11,2],[11,3,11,5],[13,1,36,5]]}
["Gada plānotās izmaksas un faktiskie izdevumi, izdevumu novirzes un novirzes procentuālā attiecība tiek automātiski atjaunināta katrai izdevumu kategorija šajā darblapā. Noderīgi norādījumi par to, kā lietot šo darblapu, ir šīs kolonnas šūnās. Bultiņa uz leju, lai sāktu darbu. ",{"$nulls":5}," ",{"$nulls":8}," "]
["Šūnā pa labi tiek automātiski atjaunināts uzņēmuma nosaukumu. Ievadiet logotipu šūnā F2.",{"$f":"'PLĀNOTIE IZDEVUMI'!B2:D3","v":"Uzņēmuma nosaukumu"},{"$nulls":3},"Logotipa vietturis ir šajā šūnā."]
["Šūnā E3 ir šīs darblapas nosaukums. Nākamais norādījums ir šūnā A5.",{"$nulls":3},{"$f":"darblapas_nosaukums","v":"Detalizēti izdevumu aprēķini"}]
[]
["Plānotie izdevumi, faktiskie izdevumi, izdevumu novirzes un novirzes procentuālā attiecība tiek automātiski aprēķināta tabulā Analīze, sākot ar šūnu pa labi. Nākamais norādījums ir šūnā A12.","Izdevumu kategorija","Plānotie izdevumi","Faktiskie izdevumi","Izdevumu novirzes","Novirzes procentuālā attiecība"]
[null,"Darbinieku izmaksas",{"$f":"Darbinieku_plāns[[#Totals],[GADS]]","v":{"v":1355090,"d":"1,355,090.00 EUR"}},{"$f":"Darbinieku_faktiskās_izmaksas[[#Totals],[GADS]]","v":{"v":659130,"d":"659,130.00 EUR"}},{"$f":"C6-D6","v":{"v":695960,"d":"695,960.00 EUR"}},{"$f":"E6/C6","v":{"v":0.5135895032802249,"d":"51%"}}]
[null,{"$f":"'PLĀNOTIE IZDEVUMI'!B10","v":"Biroja izmaksas"},{"$f":"Biroja_plāns[[#Totals],[GADS]]","v":{"v":138740,"d":"138,740.00 EUR"}},{"$f":"Biroja_faktiskās_izmaksas[[#Totals],[GADS]]","v":{"v":69350,"d":"69,350.00 EUR"}},{"$f":"C7-D7","v":{"v":69390,"d":"69,390.00 EUR"}},{"$f":"E7/C7","v":{"v":0.5001441545336601,"d":"50%"}}]
[null,{"$f":"'PLĀNOTIE IZDEVUMI'!B21","v":"Mārketinga izmaksas"},{"$f":"Mārketinga_plāns[[#Totals],[GADS]]","v":{"v":67800,"d":"67,800.00 EUR"}},{"$f":"Mārketinga_faktiskās_izmaksas[[#Totals],[GADS]]","v":{"v":33159,"d":"33,159.00 EUR"}},{"$f":"C8-D8","v":{"v":34641,"d":"34,641.00 EUR"}},{"$f":"E8/C8","v":{"v":0.510929203539823,"d":"51%"}}]
[null,{"$f":"'PLĀNOTIE IZDEVUMI'!B30","v":"Apmācības/komandējumi"},{"$f":"Apmācību_un_komandējumu_plāns[[#Totals],[GADS]]","v":{"v":48000,"d":"48,000.00 EUR"}},{"$f":"Apmācību_un_komandējumu_faktiskās_izmaksas[[#Totals],[GADS]]","v":{"v":21300,"d":"21,300.00 EUR"}},{"$f":"C9-D9","v":{"v":26700,"d":"26,700.00 EUR"}},{"$f":"E9/C9","v":{"v":0.55625,"d":"56%"}}]
[null,{"$f":"'PLĀNOTIE IZDEVUMI'!B35","v":"KOPSUMMAS"},{"$f":"'PLĀNOTIE IZDEVUMI'!O36","v":{"v":1609630,"d":"1,609,630.00 EUR"}},{"$f":"'FAKTISKIE IZDEVUMI'!O36","v":{"v":782939,"d":"782,939.00 EUR"}},{"$f":"C10-D10","v":{"v":826691,"d":"826,691.00 EUR"}},{"$f":"E10/C10","v":{"v":0.5135907009685455,"d":"51%"}}]
[]
["Sektoru diagramma Plānotie izdevumi ir šūnā pa labi un sektoru diagramma Faktiskie izdevumi ir šūnā D12. Nākamais norādījums ir šūnā A14.","Sektoru diagramma, kur redzami plānotie izdevumi dažādās kategorijās, ir šajā šūnā.",null,"Sektoru diagramma, kur redzami faktiskie izdevumi, kas rodas dažādās kategorijās, ir šajā šūnā."]
[]
["Diagramma, kurā redzamas plānotāis izmaksas, faktiskāis izmaksas un novirze ikmēneša izdevumi, ir šūnā pa labi."]